Workbook

Sheet ÍNDICE GENERAL
L1: https://secundarias.resultadosplanea.connectit.company/map?state=8

Sheet UNIDADES DE DIAGNÓSTICO
L1: https://secundarias.resultadosplanea.connectit.company/map?state=8

Sheet MAT 19 PLANEA SEC
A1: MATEMÁTICAS 3o SECUNDARIA PLANEA 2019
A2: El ordenamiento de las entidades federativas se apega al criterio tradicionalmente empleado por el inee, considerando el porcentaje de estudiantes en el nivel I. Así, mientras sea menor el porcentaje de estudiantes en este nivel, la entidad se ubica en mejor posición.
B6: ENTIDAD FEDERATIVA | C6: NIVEL I | D6: NIVEL II | E6: NIVEL III | F6: NIV IV
A7: 1 | B7: QUERÉTARO | C7: 46.91486989 | D7: 29.12825279 | E7: 12.20836431 | F7: 11.75
A8: 2 | B8: PUEBLA | C8: 46.91776564 | D8: 28.70335993 | E8: 12.67824444 | F8: 11.70419992
A9: 3 | B9: CIUDAD DE MÉXICO | C9: 47.0224812 | D9: 25.39533835 | E9: 13.06609023 | F9: 14.51669173
A10: 4 | B10: SINALOA | C10: 47.17205882 | D10: 27.17037815 | E10: 12.80535714 | F10: 12.85546218
A11: 5 | B11: HIDALGO | C11: 48.87588055 | D11: 28.85658499 | E11: 11.53598775 | F11: 10.73621746
A12: 6 | B12: SONORA | C12: 49.64092827 | D12: 25.96596343 | E12: 12.11940928 | F12: 12.27580872
A13: 7 | B13: JALISCO | C13: 50.70744321 | D13: 26.90937651 | E13: 12.02039633 | F13: 10.36292895
A14: 8 | B14: TLAXCALA | C14: 50.88461538 | D14: 24.43461538 | E14: 10.25769231 | F14: 14.42307692
A15: 9 | B15: MÉXICO | C15: 53.95875912 | D15: 26.96126173 | E15: 10.34160584 | F15: 8.742596455
A16: 10 | B16: NUEVO LEÓN | C16: 54.16839709 | D16: 24.58806922 | E16: 10.5935337 | F16: 10.65063752
A17: 11 | B17: AGUASCALIENTES | C17: 54.82988506 | D17: 26.68821839 | E17: 10.07586207 | F17: 8.408333333
A18: 12 | B18: CAMPECHE | C18: 55.67715134 | D18: 26.68338279 | E18: 10.40148368 | F18: 7.240949555
B19: NACIONAL | C19: 56.86454944 | D19: 24.91950848 | E19: 9.711673493 | F19: 8.506729081
A20: 13 | B20: MORELOS | C20: 56.92328767 | D20: 24.63150685 | E20: 10.39471624 | F20: 8.058121331
A21: 14 | B21: COLIMA | C21: 57.10344828 | D21: 23.46551724 | E21: 10.43448276 | F21: 8.994252874
A22: 15 | B22: TAMAULIPAS | C22: 57.43605263 | D22: 23.89118421 | E22: 10.11302632 | F22: 8.562368421
A23: 16 | B23: DURANGO | C23: 57.52336957 | D23: 24.81543478 | E23: 9.759565217 | F23: 7.902826087
A24: 17 | B24: GUANAJUATO | C24: 57.62242687 | D24: 25.84544962 | E24: 9.146153846 | F24: 7.388190683
A25: 18 | B25: ZACATECAS | C25: 58.97920705 | D25: 25.9169163 | E25: 8.596475771 | F25: 6.51092511
A26: 19 | B26: SAN LUIS POTOSÍ | C26: 59.13929867 | D26: 25.92339782 | E26: 8.445586457 | F26: 6.496251511
A27: 20 | B27: BAJA CALIFORNIA SUR | C27: 59.72356021 | D27: 24.10732984 | E27: 8.269633508 | F27: 7.9
A28: 21 | B28: CHIHUAHUA | C28: 60.78259936 | D28: 23.05413534 | E28: 7.986143931 | F28: 8.181203008
A29: 22 | B29: COAHUILA | C29: 61.15219512 | D29: 23.18731707 | E29: 8.25804878 | F29: 7.406178862
A30: 23 | B30: MICHOACÁN | C30: 61.38563135 | D30: 21.12496372 | E30: 9.832801161 | F30: 7.657764877
A31: 24 | B31: VERACRUZ | C31: 61.68013225 | D31: 24.4587917 | E31: 7.970003006 | F31: 5.892816351
A32: 25 | B32: TABASCO | C32: 62.29109677 | D32: 20.92916129 | E32: 8.390709677 | F32: 8.390580645
A33: 26 | B33: BAJA CALIFORNIA | C33: 63.38235294 | D33: 21.96702786 | E33: 7.940092879 | F33: 6.708204334
A34: 27 | B34: QUINTANA ROO | C34: 64.23363636 | D34: 22.87318182 | E34: 7.431363636 | F34: 5.462272727
A35: 28 | B35: NAYARIT | C35: 65.14991424 | D35: 22.91886792 | E35: 7.667409949 | F35: 4.268096055
A36: 29 | B36: OAXACA | C36: 65.74353741 | D36: 23.80493197 | E36: 5.858333333 | F36: 4.593877551
A37: 30 | B37: CHIAPAS | C37: 66.74701719 | D37: 17.78240647 | E37: 7.803033367 | F37: 7.669868554
A38: 31 | B38: YUCATÁN | C38: 67.2025 | D38: 20.880625 | E38: 6.7959375 | F38: 5.12140625
A39: 32 | B39: GUERRERO | C39: 69.01930207 | D39: 18.66412214 | E39: 6.444056707 | F39: 5.874645583

Sheet LYC 19 PLANEA SEC
A1: LENGUAJE Y COMUNICACIÓN 3o SECUNDARIA PLANEA 2019
A4: El ordenamiento de las entidades federativas se apega al criterio tradicionalmente empleado por el inee, considerando el porcentaje de estudiantes en el nivel I. Así, mientras sea menor el porcentaje de estudiantes en este nivel, la entidad se ubica en mejor posición.
B6: ESTADO | C6: I | D6: II | E6: III | F6: IV
A7: 1 | B7: CIUDAD DE MÉXICO | C7: 23.37082707 | D7: 37.93759398 | E7: 23.6556391 | F7: 15.03676692
A8: 2 | B8: MÉXICO | C8: 29.92234681 | D8: 44.38943937 | E8: 18.42425033 | F8: 7.268526728 | O8: ESTADO_17 | P8: LYC 2017 NIVEL I | Q8: LYC 2019 NIV I | R8: DIF. LYC 17-19 PLANEA SEC | S8: PORCENTAJE DE AVANCE
A9: 3 | B9: QUERÉTARO | C9: 30.87350746 | D9: 42.46567164 | E9: 17.88264925 | F9: 8.778358209 | O9: AGUASCALIENTES | P9: 35.56 | Q9: 32.95 | R9: =(Q9-P9) -> -2.61
A10: 4 | B10: MORELOS | C10: 30.99509804 | D10: 42.55921569 | E10: 18.1727451 | F10: 8.281176471 | O10: BAJA CALIFORNIA | P10: 32.752 | Q10: 30.78 | R10: =(Q10-P10) -> -1.972
A11: 5 | B11: COLIMA | C11: 31.94770115 | D11: 40.99827586 | E11: 18.80517241 | F11: 8.242528736 | O11: BAJA CALIFORNIA SUR | P11: 33.405 | Q11: 33.94 | R11: 0.535
A12: 6 | B12: JALISCO | C12: 31.95913926 | D12: 41.66774662 | E12: 18.29119923 | F12: 8.080996132 | O12: CAMPECHE | P12: 40.417 | Q12: 40.01 | R12: -0.407
A13: 7 | B13: NUEVO LEÓN | C13: 31.97470428 | D13: 40.97688808 | E13: 18.56178344 | F13: 8.48844404 | O13: CHIAPAS | P13: 63.816 | Q13: 58.63 | R13: -5.186
A14: 8 | B14: BAJA CALIFORNIA | C14: 32.03364198 | D14: 43.23395062 | E14: 17.08194444 | F14: 7.65308642 | O14: CHIHUAHUA | P14: 46.295 | Q14: 43.74 | R14: -2.555
A15: 9 | B15: SONORA | C15: 32.22901408 | D15: 40.29901408 | E15: 18.41971831 | F15: 9.055774648 | O15: CIUDAD DE MÉXICO | P15: 26.584 | Q15: 23.39 | R15: -3.194
A16: 10 | B16: HIDALGO | C16: 32.46076628 | D16: 44.00613027 | E16: 17.10229885 | F16: 6.432030651 | O16: COAHUILA | P16: 34.363 | Q16: 34.48 | R16: 0.117
A17: 11 | B17: SINALOA | C17: 32.50819328 | D17: 41.89464286 | E17: 18.70588235 | F17: 6.894222689 | O17: COLIMA | P17: 30.756 | Q17: 30.8 | R17: 0.044
A18: 12 | B18: BAJA CALIFORNIA SUR | C18: 33.62722513 | D18: 40.97748691 | E18: 17.97068063 | F18: 7.423036649 | O18: DURANGO | P18: 45.02 | Q18: 45.79 | R18: 0.77
A19: 13 | B19: PUEBLA | C19: 33.69853003 | D19: 42.63070139 | E19: 17.05821084 | F19: 6.617765645 | O19: GUANAJUATO | P19: 38.35 | Q19: 37.99 | R19: -0.36
A20: 14 | B20: AGUASCALIENTES | C20: 33.78933718 | D20: 42.75331412 | E20: 16.86368876 | F20: 6.597982709 | O20: GUERRERO | P20: 56.015 | Q20: 55.29 | R20: -0.725
A21: 15 | B21: TAMAULIPAS | C21: 34.93596838 | D21: 40.9486166 | E21: 16.90197628 | F21: 7.214492754 | O21: HIDALGO | P21: 35.247 | Q21: 31.98 | R21: -3.267
A22: 16 | B22: COAHUILA | C22: 35.20228013 | D22: 40.96954397 | E22: 16.46986971 | F22: 7.358631922 | O22: JALISCO | P22: 31.57 | Q22: 31.44 | R22: -0.13
B23: NACIONAL | C23: 37.87354637 | D23: 40.7294004 | E23: 15.2949463 | F23: 6.104409914 | O23: MÉXICO | P23: 32.957 | Q23: 32.08 | R23: -0.877
A24: 17 | B24: GUANAJUATO | C24: 38.05579632 | D24: 41.85086674 | E24: 14.96045504 | F24: 5.132340195 | O24: MICHOACÁN | P24: 47.797 | Q24: 41.03 | R24: -6.767
A25: 18 | B25: QUINTANA ROO | C25: 38.2 | D25: 40.66272727 | E25: 14.78159091 | F25: 6.355909091 | O25: MORELOS | P25: 32.788 | Q25: 30.87 | R25: -1.918
A26: 19 | B26: VERACRUZ | C26: 39.6538924 | D26: 42.29816652 | E26: 13.44126841 | F26: 4.609918846 | O26: NAYARIT | P26: 48.64 | Q26: 45.13 | R26: -3.51
A27: 20 | B27: CAMPECHE | C27: 40.36875 | D27: 40.91458333 | E27: 13.57529762 | F27: 5.14672619 | O27: NUEVO LEÓN | P27: 37.693 | Q27: 31.58 | R27: -6.113
A28: 21 | B28: SAN LUIS POTOSÍ | C28: 40.5021148 | D28: 42.84574018 | E28: 12.77353474 | F28: 3.882356495 | O28: OAXACA | P28: 51.931 | Q28: 47.36 | R28: -4.571
A29: 22 | B29: TLAXCALA | C29: 43.95384615 | D29: 47.32692308 | E29: 7.434615385 | F29: 1.280769231 | O29: PUEBLA | P29: 32.914 | Q29: 32.69 | R29: -0.224
A30: 23 | B30: ZACATECAS | C30: 44.41286344 | D30: 40.23885463 | E30: 12.14933921 | F30: 3.200528634 | O30: QUERÉTARO | P30: 32.042 | Q30: 30.63 | R30: -1.412
A31: 24 | B31: TABASCO | C31: 44.4365285 | D31: 39.73225389 | E31: 11.71567358 | F31: 4.119559585 | O31: QUINTANA ROO | P31: 36.611 | Q31: 32.93 | R31: -3.681
A32: 25 | B32: MICHOACÁN | C32: 44.49522431 | D32: 38.51230101 | E32: 12.34833575 | F32: 4.644283647 | O32: SAN LUIS POTOSÍ | P32: 41.457 | Q32: 30.84 | R32: -10.617
A33: 26 | B33: YUCATÁN | C33: 44.9146875 | D33: 38.3765625 | E33: 11.95890625 | F33: 4.7496875 | O33: SINALOA | P33: 37.25 | Q33: 32.09 | R33: -5.16
A34: 27 | B34: NAYARIT | C34: 45.06110155 | D34: 39.44561102 | E34: 11.30309811 | F34: 4.191049914 | O34: SONORA | P34: 36.764 | Q34: 32.25 | R34: -4.514
A35: 28 | B35: CHIHUAHUA | C35: 45.06362661 | D35: 37.61373391 | E35: 12.50311159 | F35: 4.823283262 | O35: TABASCO | P35: 49.524 | Q35: 44.29 | R35: -5.234
A36: 29 | B36: DURANGO | C36: 45.8675 | D36: 38.77663043 | E36: 11.68195652 | F36: 3.675326087 | O36: TAMAULIPAS | P36: 41.711 | Q36: 35.27 | R36: -6.441
A37: 30 | B37: OAXACA | C37: 50.23174061 | D37: 35.078157 | E37: 11.5168942 | F37: 3.174232082 | O37: TLAXCALA | P37: 38.063 | Q37: 49.69 | R37: 11.627
A38: 31 | B38: GUERRERO | C38: 56.07027763 | D38: 32.66330974 | E38: 8.841535112 | F38: 2.426673925 | O38: VERACRUZ | P38: 41.269 | Q38: 39.77 | R38: -1.499
A39: 32 | B39: CHIAPAS | C39: 58.64828283 | D39: 30.8340404 | E39: 7.451010101 | F39: 3.068383838 | O39: YUCATÁN | P39: 43.54 | Q39: 45.2 | R39: 1.66
O40: ZACATECAS | P40: 44.515 | Q40: 44.19 | R40: -0.325
O41: Total | P41: 39.49 | Q41: 37.87 | R41: -1.62

Sheet VARIACIÓN LYC
B1: PORCENTAJE DE AVANCE DE PLANEA 2017-19 SECUNDARIAS | H1: PORCENTAJE DE AVANCE PLANEA 2017-19 SECUNDARIAS
B2: En el caso del nivel iv el dato de variación, los números NEGATIVOS indican mejoría debido a que existen en el 2019 un porcentaje mayor de estudiantes en este nivel i I Los números POSITIVOS indican que al contrario disminuyeron el porcentaje en este mismo nivel. Ninguna entidad incrementó positivamente el porcentaje de estudiantes en este nivel.
C3: ESTADO | D3: NIV I LYC 17 | E3: NIV I LYC 19 | F3: VARIACIÓN | G3: PORCENTAJE DE AVANCE
B4: 1 | C4: TAMAULIPAS | D4: 41.711 | E4: 34.94 | F4: =(D4-E4)*-1 -> -6.771 | G4: =((E4-D4)*100)/E4 -> -19.37893532
B5: 2 | C5: NUEVO LEÓN | D5: 37.693 | E5: 31.97 | F5: -5.723 | G5: -17.90115734
B6: 3 | C6: SINALOA | D6: 37.25 | E6: 32.51 | F6: -4.74 | G6: -14.58012919
B7: 4 | C7: SONORA | D7: 36.764 | E7: 32.23 | F7: -4.534 | G7: -14.06763885
B8: 5 | C8: CIUDAD DE MÉXICO | D8: 26.584 | E8: 23.37 | F8: -3.214 | G8: -13.75267437
B9: 6 | C9: TABASCO | D9: 49.524 | E9: 44.44 | F9: -5.084 | G9: -11.44014401
B10: 7 | C10: MÉXICO | D10: 32.957 | E10: 29.92 | F10: -3.037 | G10: -10.15040107
B11: 8 | C11: CHIAPAS | D11: 63.816 | E11: 58.65 | F11: -5.166 | G11: -8.808184143
B12: 9 | C12: HIDALGO | D12: 35.247 | E12: 32.46 | F12: -2.787 | G12: -8.585951941
B13: 10 | C13: NAYARIT | D13: 48.64 | E13: 45.06 | F13: -3.58 | G13: -7.944962273
B14: 11 | C14: MICHOACÁN | D14: 47.797 | E14: 44.5 | F14: -3.297 | G14: -7.408988764
B15: 12 | C15: MORELOS | D15: 32.788 | E15: 31 | F15: -1.788 | G15: -5.767741935
B16: 13 | C16: AGUASCALIENTES | D16: 35.56 | E16: 33.79 | F16: -1.77 | G16: -5.238236165
C17: NACIONAL | D17: 39.49 | E17: 37.87 | F17: -1.62 | G17: -4.277792448
B18: 14 | C18: VERACRUZ | D18: 41.269 | E18: 39.65 | F18: -1.619 | G18: -4.083228247
B19: 15 | C19: QUERÉTARO | D19: 32.042 | E19: 30.87 | F19: -1.172 | G19: -3.796566246
B20: 16 | C20: OAXACA | D20: 51.931 | E20: 50.23 | F20: -1.701 | G20: -3.386422457
B21: 17 | C21: CHIHUAHUA | D21: 46.295 | E21: 45.06 | F21: -1.235 | G21: -2.740790058
B22: 18 | C22: SAN LUIS POTOSÍ | D22: 41.457 | E22: 40.5 | F22: -0.957 | G22: -2.362962963
B23: 19 | C23: BAJA CALIFORNIA | D23: 32.752 | E23: 32.03 | F23: -0.722 | G23: -2.254136747
B24: 20 | C24: GUANAJUATO | D24: 38.35 | E24: 38.06 | F24: -0.29 | G24: -0.7619548082
B25: 21 | C25: ZACATECAS | D25: 44.515 | E25: 44.41 | F25: -0.105 | G25: -0.2364332358
B26: 22 | C26: CAMPECHE | D26: 40.417 | E26: 40.37 | F26: -0.047 | G26: -0.1164230865
B27: 23 | C27: GUERRERO | D27: 56.015 | E27: 56.07 | F27: 0.055 | G27: 0.09809167113
B28: 24 | C28: BAJA CALIFORNIA SUR | D28: 33.405 | E28: 33.63 | F28: 0.225 | G28: 0.6690454951
B29: 25 | C29: JALISCO | D29: 31.57 | E29: 31.96 | F29: 0.39 | G29: 1.220275344
B30: 26 | C30: DURANGO | D30: 45.02 | E30: 45.87 | F30: 0.85 | G30: 1.853063004
B31: 27 | C31: PUEBLA | D31: 32.914 | E31: 33.7 | F31: 0.786 | G31: 2.332344214
B32: 28 | C32: COAHUILA | D32: 34.363 | E32: 35.2 | F32: 0.837 | G32: 2.377840909
B33: 29 | C33: YUCATÁN | D33: 43.54 | E33: 44.91 | F33: 1.37 | G33: 3.050545536
B34: 30 | C34: COLIMA | D34: 30.756 | E34: 31.95 | F34: 1.194 | G34: 3.737089202
B35: 31 | C35: QUINTANA ROO | D35: 36.611 | E35: 38.2 | F35: 1.589 | G35: 4.159685864
B36: 32 | C36: TLAXCALA | D36: 38.063 | E36: 43.95 | F36: 5.887 | G36: 13.39476678
B41: PORCENTAJE DE AVANCE PLANEA 2017-19 SECUNDARIAS | H41: PORCENTAJE DE AVANCE PLANEA 2017-19 SECUNDARIAS
B42: En el caso del nivel iv el dato de variación, los números POSITIVOS indican mejoría debido a que existen en el 2019 un porcentaje mayor de estudiantes en este nivel i I Los números NEGATIVOS indican que al contrario disminuyeron el porcentaje en este mismo nivel. Ninguna entidad incrementó positivamente el porcentaje de estudiantes en este nivel.
C43: ENTIDAD | D43: LYC 2017 NIVEL IV | E43: LYC 2019 NIV IV | F43: VARIACIÓN | G43: PORCENTAJE DE AVANCE 17-19
B44: 1 | C44: CIUDAD DE MÉXICO | D44: 25.174 | E44: 15.04 | F44: =(E44-D44) -> -10.134 | G44: =((E44-D44)*100)/E44 -> -67.38031915
B45: 2 | C45: NUEVO LEÓN | D45: 15.591 | E45: 8.49 | F45: =(E45-D45) -> -7.101 | G45: -83.63957597
B46: 3 | C46: SONORA | D46: 17.001 | E46: 9.06 | F46: -7.941 | G46: -87.64900662
B47: 4 | C47: TAMAULIPAS | D47: 13.661 | E47: 7.21 | F47: -6.451 | G47: -89.47295423
B48: 5 | C48: CHIAPAS | D48: 6.251 | E48: 3.07 | F48: -3.181 | G48: -103.6156352
B49: 6 | C49: BAJA CALIFORNIA | D49: 16.008 | E49: 7.65 | F49: -8.358 | G49: -109.254902
B50: 7 | C50: MORELOS | D50: 17.456 | E50: 8.28 | F50: -9.176 | G50: -110.821256
B51: 8 | C51: BAJA CALIFORNIA SUR | D51: 15.906 | E51: 7.42 | F51: -8.486 | G51: -114.3665768
B52: 9 | C52: QUERÉTARO | D52: 19.572 | E52: 8.78 | F52: -10.792 | G52: -122.9157175
B53: 10 | C53: TABASCO | D53: 9.352 | E53: 4.12 | F53: -5.232 | G53: -126.9902913
B54: 11 | C54: AGUASCALIENTES | D54: 15.014 | E54: 6.6 | F54: -8.414 | G54: -127.4848485
B55: 12 | C55: CAMPECHE | D55: 11.761 | E55: 5.15 | F55: -6.611 | G55: -128.368932
B56: 13 | C56: COLIMA | D56: 18.926 | E56: 8.24 | F56: -10.686 | G56: -129.684466
B57: 14 | C57: MÉXICO | D57: 16.74 | E57: 7.27 | F57: -9.47 | G57: -130.261348
B58: 15 | C58: JALISCO | D58: 18.691 | E58: 8.08 | F58: -10.611 | G58: -131.3242574
B59: 16 | C59: MICHOACÁN | D59: 10.739 | E59: 4.64 | F59: -6.099 | G59: -131.4439655
B60: 17 | C60: COAHUILA | D60: 17.227 | E60: 7.36 | F60: -9.867 | G60: -134.0625
B61: 18 | C61: YUCATÁN | D61: 11.141 | E61: 4.75 | F61: -6.391 | G61: -134.5473684
C62: NACIONAL | D62: 14.375 | E62: 6.1 | F62: -8.275 | G62: -135.6557377
B63: 19 | C63: SINALOA | D63: 16.354 | E63: 6.89 | F63: -9.464 | G63: -137.3584906
B64: 20 | C64: NAYARIT | D64: 9.962 | E64: 4.19 | F64: -5.772 | G64: -137.7565632
B65: 21 | C65: QUINTANA ROO | D65: 15.467 | E65: 6.36 | F65: -9.107 | G65: -143.1918239
B66: 22 | C66: HIDALGO | D66: 15.97 | E66: 6.43 | F66: -9.54 | G66: -148.3670295
B67: 23 | C67: CHIHUAHUA | D67: 12.03 | E67: 4.82 | F67: -7.21 | G67: -149.5850622
B68: 24 | C68: PUEBLA | D68: 17.127 | E68: 6.62 | F68: -10.507 | G68: -158.7160121
B69: 25 | C69: VERACRUZ | D69: 12.004 | E69: 4.61 | F69: -7.394 | G69: -160.3904555
B70: 26 | C70: OAXACA | D70: 8.773 | E70: 3.17 | F70: -5.603 | G70: -176.7507886
B71: 27 | C71: GUANAJUATO | D71: 14.842 | E71: 5.13 | F71: -9.712 | G71: -189.3177388
B72: 28 | C72: GUERRERO | D72: 7.292 | E72: 2.43 | F72: -4.862 | G72: -200.0823045
B73: 29 | C73: SAN LUIS POTOSÍ | D73: 12.425 | E73: 3.88 | F73: -8.545 | G73: -220.2319588
B74: 30 | C74: DURANGO | D74: 11.873 | E74: 3.68 | F74: -8.193 | G74: -222.6358696
B75: 31 | C75: ZACATECAS | D75: 10.907 | E75: 3.2 | F75: -7.707 | G75: -240.84375
B76: 32 | C76: TLAXCALA | D76: 12.661 | E76: 1.28 | F76: -11.381 | G76: -889.140625

Sheet VARIACIÓN MAT
B1: PORCENTAJE DE VARIACIÓN ENTRE 2017 Y 2019 EN EL NIVEL I MATEMÁTICAS | H1: PORCENTAJE DE VARIACIÓN ENTRE 2017 Y 2019 EN EL NIVEL I MATEMÁTICAS
B4: ENTIDAD | C4: MAT 2017 NIVEL I | D4: MAT 2019 NIV I | E4: DIF. 17-19 MAT | F4: PORCENTAJE DE AVANCE
A5: 1 | B5: TLAXCALA | C5: 60.563 | D5: 50.88 | E5: =(C5-D5) -> 9.683 | F5: =((C5-D5)*100)/C5 -> 15.98830969 | Z5: PUNTAJE COMPARATIVO NIVEL I MATEMATICAS 17-19
A6: 2 | B6: SONORA | C6: 56.67 | D6: 49.64 | E6: 7.03 | F6: 12.40515264
A7: 3 | B7: SINALOA | C7: 53.012 | D7: 47.17 | E7: 5.842 | F7: 11.02014638
A8: 4 | B8: TABASCO | C8: 69.859 | D8: 62.29 | E8: 7.569 | F8: 10.83468129
A9: 5 | B9: TAMAULIPAS | C9: 63.834 | D9: 57.44 | E9: 6.394 | F9: 10.01660557
A10: 6 | B10: MICHOACÁN | C10: 67.734 | D10: 61.39 | E10: 6.344 | F10: 9.366049547
A11: 7 | B11: HIDALGO | C11: 53.883 | D11: 48.88 | E11: 5.003 | F11: 9.284932168
A12: 8 | B12: NUEVO LEÓN | C12: 58.862 | D12: 54.17 | E12: 4.692 | F12: 7.971186844
A13: 9 | B13: OAXACA | C13: 71.363 | D13: 65.74 | E13: 5.623 | F13: 7.87943332
A14: 10 | B14: SAN LUIS POTOSÍ | C14: 63.645 | D14: 59.14 | E14: 4.505 | F14: 7.078325084
A15: 11 | B15: CAMPECHE | C15: 59.668 | D15: 55.68 | E15: 3.988 | F15: 6.683649527
A16: 12 | B16: CHIAPAS | C16: 71.372 | D16: 66.75 | E16: 4.622 | F16: 6.475928936
A17: 13 | B17: QUERÉTARO | C17: 49.667 | D17: 46.91 | E17: 2.757 | F17: 5.550969457
A18: 14 | B18: CIUDAD DE MÉXICO | C18: 49.505 | D18: 47.02 | E18: 2.485 | F18: 5.01969498
A19: 15 | B19: CHIHUAHUA | C19: 63.055 | D19: 60.78 | E19: 2.275 | F19: 3.607961304
A20: 16 | B20: MÉXICO | C20: 55.712 | D20: 53.96 | E20: 1.752 | F20: 3.1447444
B21: NACIONAL | C21: 58.382 | D21: 56.86 | E21: 1.522 | F21: 2.606967901
A22: 17 | B22: BAJA CALIFORNIA SUR | C22: 60.475 | D22: 59.72 | E22: 0.755 | F22: 1.248449773
A23: 18 | B23: DURANGO | C23: 58.048 | D23: 57.52 | E23: 0.528 | F23: 0.9095920617
A24: 19 | B24: AGUASCALIENTES | C24: 55.197 | D24: 54.83 | E24: 0.367 | F24: 0.6648912079
A25: 20 | B25: GUERRERO | C25: 69.215 | D25: 69.02 | E25: 0.195 | F25: 0.2817308387
A26: 21 | B26: BAJA CALIFORNIA | C26: 62.857 | D26: 63.38 | E26: -0.523 | F26: -0.8320473456
A27: 22 | B27: PUEBLA | C27: 46.522 | D27: 46.92 | E27: -0.398 | F27: -0.8555092214
A28: 23 | B28: MORELOS | C28: 56.386 | D28: 56.92 | E28: -0.534 | F28: -0.9470435924
A29: 24 | B29: VERACRUZ | C29: 60.892 | D29: 61.68 | E29: -0.788 | F29: -1.294094462
A30: 25 | B30: JALISCO | C30: 49.957 | D30: 50.71 | E30: -0.753 | F30: -1.507296275
A31: 26 | B31: NAYARIT | C31: 64.004 | D31: 65.15 | E31: -1.146 | F31: -1.790513093
A32: 27 | B32: ZACATECAS | C32: 57.642 | D32: 58.98 | E32: -1.338 | F32: -2.321224107
A33: 28 | B33: COAHUILA | C33: 59.497 | D33: 61.15 | E33: -1.653 | F33: -2.778291342
A34: 29 | B34: GUANAJUATO | C34: 55.72 | D34: 57.62 | E34: -1.9 | F34: -3.409906676
A35: 30 | B35: YUCATÁN | C35: 64.58 | D35: 67.2 | E35: -2.62 | F35: -4.056983586
A36: 31 | B36: QUINTANA ROO | C36: 61.466 | D36: 64.23 | E36: -2.764 | F36: -4.496794976
A37: 32 | B37: COLIMA | C37: 54.364 | D37: 57.1 | E37: -2.736 | F37: -5.032742256
A44: PORCENTAJE DE VARIACIÓN ENTRE 2017 Y 2019 EN EL NIVEL IV MATEMÁTICAS | H44: PORCENTAJE DE VARIACIÓN ENTRE 2017 Y 2019 EN EL NIVEL IV MATEMÁTICAS
B47: ESTADO | C47: NIVIV MAT 17 | D47: NIVIV MAT 19 | E47: VARIACIÓN 2017-19 | F47: PORCENTAJE DE AVANCE
A48: 1 | B48: TLAXCALA | C48: 8.475 | D48: 14.42 | E48: =(D48-C48) -> 5.945 | F48: =((D48-C48)*100)/C48 -> 70.14749263
A49: 2 | B49: TABASCO | C49: 7.035 | D49: 8.39 | E49: 1.355 | F49: 19.26083866
A50: 3 | B50: MICHOACÁN | C50: 8.81 | D50: 7.66 | E50: -1.15 | F50: -13.05334847
A51: 4 | B51: CHIAPAS | C51: 9.062 | D51: 7.67 | E51: -1.392 | F51: -15.3608475
A52: 5 | B52: TAMAULIPAS | C52: 10.533 | D52: 8.56 | E52: -1.973 | F52: -18.73160543
A53: 6 | B53: SONORA | C53: 15.129 | D53: 12.28 | E53: -2.849 | F53: -18.83138344
A54: 7 | B54: SINALOA | C54: 15.967 | D54: 12.86 | E54: -3.107 | F54: -19.45888395
A55: 8 | B55: NUEVO LEÓN | C55: 13.35 | D55: 10.65 | E55: -2.7 | F55: -20.2247191
A56: 9 | B56: CIUDAD DE MÉXICO | C56: 18.354 | D56: 14.52 | E56: -3.834 | F56: -20.88917947
A57: 10 | B57: HIDALGO | C57: 14.586 | D57: 10.74 | E57: -3.846 | F57: -26.3677499
A58: 11 | B58: BAJA CALIFORNIA SUR | C58: 10.765 | D58: 7.9 | E58: -2.865 | F58: -26.61402694
A59: 12 | B59: CHIHUAHUA | C59: 11.36 | D59: 8.18 | E59: -3.18 | F59: -27.99295775
A60: 13 | B60: OAXACA | C60: 6.431 | D60: 4.59 | E60: -1.841 | F60: -28.62696315
A61: 14 | B61: SAN LUIS POTOSÍ | C61: 9.254 | D61: 6.5 | E61: -2.754 | F61: -29.76010374
A62: 15 | B62: MÉXICO | C62: 12.662 | D62: 8.74 | E62: -3.922 | F62: -30.97456958
A63: 16 | B63: DURANGO | C63: 11.492 | D63: 7.9 | E63: -3.592 | F63: -31.25652628
A64: 17 | B64: GUERRERO | C64: 8.566 | D64: 5.87 | E64: -2.696 | F64: -31.4732664
B65: NACIONAL | C65: 12.525 | D65: 8.51 | E65: -4.015 | F65: -32.05588822
A66: 18 | B66: QUERÉTARO | C66: 17.981 | D66: 11.75 | E66: -6.231 | F66: -34.65324509
A67: 19 | B67: BAJA CALIFORNIA | C67: 10.312 | D67: 6.71 | E67: -3.602 | F67: -34.93017843
A68: 20 | B68: CAMPECHE | C68: 11.148 | D68: 7.24 | E68: -3.908 | F68: -35.05561536
A69: 21 | B69: PUEBLA | C69: 18.406 | D69: 11.7 | E69: -6.706 | F69: -36.4337716
A70: 22 | B70: MORELOS | C70: 13.299 | D70: 8.06 | E70: -5.239 | F70: -39.39393939
A71: 23 | B71: COLIMA | C71: 14.841 | D71: 8.99 | E71: -5.851 | F71: -39.42456708
A72: 24 | B72: JALISCO | C72: 17.471 | D72: 10.36 | E72: -7.111 | F72: -40.7017343
A73: 25 | B73: AGUASCALIENTES | C73: 14.271 | D73: 8.41 | E73: -5.861 | F73: -41.06930138
A74: 26 | B74: COAHUILA | C74: 12.633 | D74: 7.41 | E74: -5.223 | F74: -41.34409879
A75: 27 | B75: VERACRUZ | C75: 10.143 | D75: 5.89 | E75: -4.253 | F75: -41.93039535
A76: 28 | B76: ZACATECAS | C76: 11.521 | D76: 6.51 | E76: -5.011 | F76: -43.49448833
A77: 29 | B77: GUANAJUATO | C77: 13.342 | D77: 7.39 | E77: -5.952 | F77: -44.61100285
A78: 30 | B78: YUCATÁN | C78: 9.574 | D78: 5.12 | E78: -4.454 | F78: -46.52182996
A79: 31 | B79: QUINTANA ROO | C79: 10.619 | D79: 5.46 | E79: -5.159 | F79: -48.58272907
A80: 32 | B80: NAYARIT | C80: 8.737 | D80: 4.27 | E80: -4.467 | F80: -51.12738926

Sheet LYC AVANCE NI SUBSISTEMAS
B4: MODALIDAD_SEECH | C4: LYC NIV I 2017 | D4: LYC NIV I 2019 | E4: DIFERENCIA PUNTAJE 17-19 | F4: PORCENTAJE DE AVANCE | I4: MODALIDAD_SEECH | J4: LYC NIV IV 2017 | K4: LYC NIV IV 2019 | L4: DIFERENCIA PUNTAJE NIV MAT 17-19 | M4: PORCENTAJE DE AVANCE
B5: TELESECUNDARIA FEDERAL TRANSFERIDO | C5: 66.962 | D5: 54.32 | E5: =(D5-C5) -> -12.642 | F5: =((D5-C5)*100)/D5 -> -23.27319588 | I5: SECUNDARIA TÉCNICA PRIVADO | J5: 18.65 | K5: 11.85 | L5: =(K5-J5) -> -6.8 | M5: =((K5-J5)*100)/K5 -> -57.38396624
B6: SECUNDARIA TÉCNICA FEDERAL TRANSFERIDO | C6: 39.353 | D6: 35.43 | E6: -3.923 | F6: -11.0725374 | I6: TELESECUNDARIA FEDERAL TRANSFERIDO | J6: 4.099 | K6: 2.17 | L6: -1.929 | M6: -88.89400922
B7: SECUNDARIA GENERAL FEDERAL TRANSFERIDO | C7: 43.814 | D7: 40.8 | E7: -3.014 | F7: -7.387254902 | I7: SECUNDARIA GENERAL PRIVADO | J7: 34.119 | K7: 15.41 | L7: -18.709 | M7: -121.4081765
B8: SECUNDARIA TÉCNICA PRIVADO | C8: 23.45 | D8: 22.53 | E8: -0.92 | F8: -4.083444296 | I8: SECUNDARIA TÉCNICA FEDERAL TRANSFERIDO | J8: 12.566 | K8: 5.47 | L8: -7.096 | M8: -129.725777
B9: PROMEDIO | C9: 46.295 | D9: 45.06 | E9: -1.235 | F9: -2.740790058 | I9: SECUNDARIA TÉCNICA ESTATAL | J9: 18.05 | K9: 7.6 | L9: -10.45 | M9: -137.5
B10: TELESECUNDARIA ESTATAL | C10: 50.754 | D10: 53.84 | E10: 3.086 | F10: 5.73179792 | I10: PROMEDIO | J10: 12.03 | K10: 4.82 | L10: -7.21 | M10: -149.5850622
B11: SECUNDARIA GENERAL PRIVADO | C11: 16.055 | D11: 18.56 | E11: 2.505 | F11: 13.49676724 | I11: TELESECUNDARIA ESTATAL | J11: 7.495 | K11: 2.68 | L11: -4.815 | M11: -179.6641791
B12: SECUNDARIA TÉCNICA ESTATAL | C12: 31.95 | D12: 38.05 | E12: 6.1 | F12: 16.03153745 | I12: SECUNDARIA GENERAL FEDERAL TRANSFERIDO | J12: 11.536 | K12: 3.89 | L12: -7.646 | M12: -196.5552699
B13: SECUNDARIA GENERAL SUBSIDIO | C13: 46.052 | D13: 56.81 | E13: 10.758 | F13: 18.9368069 | I13: SECUNDARIA GENERAL ESTATAL | J13: 16.008 | K13: 3.22 | L13: -12.788 | M13: -397.1428571
B14: SECUNDARIA GENERAL ESTATAL | C14: 37.788 | D14: 46.89 | E14: 9.102 | F14: 19.41138836 | I14: SECUNDARIA GENERAL SUBSIDIO | J14: 11.271 | K14: 1.84 | L14: -9.431 | M14: -512.5543478

Sheet MAT AVANCE NIV SUBSISTEMAS
B1: NIVEL DE AVANCE EN EL DESEMPEÑO DE ACUERDO AL SUBSISTEMA
B4: MODALIDAD_SEECH | C4: MAT NIV I 2017 | D4: MAT 2019 NIV I | E4: DIF. 2017-19 PLANEA MAT | F4: PORCENTAJE DE AVANCE | I4: MODALIDAD_SEECH | J4: MAT NIV IV 2017 | K4: MAT 2019 N IV | L4: DIF. MAT IV 17-19 | M4: PORCENTAJE DE AVANCE
B5: TELESECUNDARIA FEDERAL TRANSFERIDO | C5: 72.087 | D5: 59.35 | E5: =(D5-C5) -> -12.737 | F5: =((D5-C5)*100)/D5 -> -21.46082561 | I5: SECUNDARIA TÉCNICA PRIVADO | J5: 9.575 | K5: 15.55 | L5: =(K5-J5) -> 5.975 | M5: =((K5-J5)*100)/K5 -> 38.4244373
B6: SECUNDARIA TÉCNICA FEDERAL TRANSFERIDO | C6: 66.715 | D6: 62.37 | E6: -4.345 | F6: =((D6-C6)*100)/D6 -> -6.9664903 | I6: TELESECUNDARIA FEDERAL TRANSFERIDO | J6: 6.468 | K6: 9.41 | L6: 2.942 | M6: 31.26461211
B7: PROMEDIO | C7: 63.055 | D7: 60.78 | E7: -2.275 | F7: -3.743007568 | I7: PROMEDIO | J7: 11.36 | K7: 8.18 | L7: -3.18 | M7: -38.87530562
B8: SECUNDARIA TÉCNICA PRIVADO | C8: 53.95 | D8: 52.25 | E8: -1.7 | F8: -3.253588517 | I8: SECUNDARIA TÉCNICA FEDERAL TRANSFERIDO | J8: 7.718 | K8: 5.48 | L8: -2.238 | M8: -40.83941606
B9: SECUNDARIA GENERAL FEDERAL TRANSFERIDO | C9: 67.078 | D9: 67.53 | E9: 0.452 | F9: 0.6693321487 | I9: SECUNDARIA GENERAL PRIVADO | J9: 27.145 | K9: 16.55 | L9: -10.595 | M9: -64.01812689
B10: TELESECUNDARIA ESTATAL | C10: 62.781 | D10: 66.91 | E10: 4.129 | F10: 6.170975938 | I10: SECUNDARIA GENERAL FEDERAL TRANSFERIDO | J10: 7.909 | K10: 4.06 | L10: -3.849 | M10: -94.80295567
B11: SECUNDARIA GENERAL SUBSIDIO | C11: 73.852 | D11: 80.98 | E11: 7.128 | F11: 8.802173376 | I11: TELESECUNDARIA ESTATAL | J11: 11.172 | K11: 5.41 | L11: -5.762 | M11: -106.5064695
B12: SECUNDARIA GENERAL PRIVADO | C12: 36.604 | D12: 41.33 | E12: 4.726 | F12: 11.43479313 | I12: SECUNDARIA GENERAL ESTATAL | J12: 10.087 | K12: 3.7 | L12: -6.387 | M12: -172.6216216
B13: SECUNDARIA GENERAL ESTATAL | C13: 62.648 | D13: 73.16 | E13: 10.512 | F13: 14.36850738 | I13: SECUNDARIA TÉCNICA ESTATAL | J13: 6.85 | K13: 1 | L13: -5.85 | M13: -585
B14: SECUNDARIA TÉCNICA ESTATAL | C14: 59.85 | D14: 70.6 | E14: 10.75 | F14: 15.2266289 | I14: SECUNDARIA GENERAL SUBSIDIO | J14: 7.267 | K14: 0.76 | L14: -6.507 | M14: -856.1842105

Sheet NIVELES SUBSISTEMAS
B1: NIVELES DE DESEMPEÑO EN PLANEA 2019 DE ACUERDO AL TIPO DE ESCUELA
B4: MODALIDAD_SEECH | C4: LYC NIV I 2019 | D4: LYC NIV II 2019 | E4: LYC NIV III 2019 | F4: LYC NIV IV 2019
B5: SECUNDARIA GENERAL PRIVADO | C5: 18.56 | D5: 38.76 | E5: 27.28 | F5: 15.41 | I5: MODALIDAD_SEECH | J5: MAT 2019 NIV I | K5: MAT 2019 NIV II | L5: MAT 2019 N III | M5: MAT 2019 N IV
B6: SECUNDARIA TÉCNICA PRIVADO | C6: 22.53 | D6: 40.03 | E6: 25.65 | F6: 11.85 | I6: SECUNDARIA GENERAL PRIVADO | J6: 41.33 | K6: 27.81 | L6: 14.31 | M6: 16.55
B7: SECUNDARIA TÉCNICA FEDERAL TRANSFERIDO | C7: 35.43 | D7: 43.89 | E7: 15.22 | F7: 5.47 | I7: SECUNDARIA TÉCNICA PRIVADO | J7: 52.25 | K7: 23.3 | L7: 8.88 | M7: 15.55
B8: SECUNDARIA TÉCNICA ESTATAL | C8: 38.05 | D8: 41.6 | E8: 12.75 | F8: 7.6 | I8: SIN DATOS | J8: 53.88 | K8: 27.47 | L8: 5.31 | M8: 13.33
B9: SECUNDARIA GENERAL FEDERAL TRANSFERIDO | C9: 40.8 | D9: 42.26 | E9: 13.06 | F9: 3.89 | I9: TELESECUNDARIA FEDERAL TRANSFERIDO | J9: 59.35 | K9: 21.65 | L9: 9.6 | M9: 9.41
B10: Total | C10: 45.06 | D10: 37.61 | E10: 12.5 | F10: 4.82 | I10: Total | J10: 60.78 | K10: 23.05 | L10: 7.99 | M10: 8.18
B11: SECUNDARIA GENERAL ESTATAL | C11: 46.89 | D11: 39.75 | E11: 10.13 | F11: 3.22 | I11: SECUNDARIA TÉCNICA FEDERAL TRANSFERIDO | J11: 62.37 | K11: 24.38 | L11: 7.78 | M11: 5.48
B12: TELESECUNDARIA ESTATAL | C12: 53.84 | D12: 35.13 | E12: 8.35 | F12: 2.68 | I12: TELESECUNDARIA ESTATAL | J12: 66.91 | K12: 21.52 | L12: 6.18 | M12: 5.41
B13: TELESECUNDARIA FEDERAL TRANSFERIDO | C13: 54.32 | D13: 33.19 | E13: 10.32 | F13: 2.17 | I13: SECUNDARIA GENERAL FEDERAL TRANSFERIDO | J13: 67.53 | K13: 21.69 | L13: 6.73 | M13: 4.06
B14: SECUNDARIA GENERAL SUBSIDIO | C14: 56.81 | D14: 32.76 | E14: 8.6 | F14: 1.84 | I14: SECUNDARIA TÉCNICA ESTATAL | J14: 70.6 | K14: 23.3 | L14: 5.15 | M14: 1
B15: SIN DATOS | C15: 57.88 | D15: 34.55 | E15: 4.33 | F15: 3.24 | I15: SECUNDARIA GENERAL ESTATAL | J15: 73.16 | K15: 18.8 | L15: 4.34 | M15: 3.7
I16: SECUNDARIA GENERAL SUBSIDIO | J16: 80.98 | K16: 13.87 | L16: 4.4 | M16: 0.76

Sheet TURNO 17-19 LYC
C1: PORCENTAJE DE AVANCE EN LOS NIVELES DE DESEMPEÑO EXTREMOS CON RELACIÓN AL TURNO DE LAS ESCUELAS
B4: TURNO_SEECH | C4: LYC NIV I 2017 | D4: LYC NIV I 2019 | E4: DIF. 17-19 LYC NIV I | F4: PORCENTAJE DE AVANCE | J4: TURNO_SEECH | K4: LYC NIV IV 2017 | L4: LYC NIV IV 2019 | M4: DIF 17-19 LYC N IV | N4: PORCENTAJE DE AVANCE | S4: TURNO_SEECH | T4: LENGUAJE Y COMUNICACIÓN | U4: MATEMÁTICAS
B5: NOCTURNO | C5: 54.167 | D5: 35.97 | E5: =(D5-C5) -> -18.197 | F5: =((D5-C5)*100)/C5 -> -33.5942548 | J5: NOCTURNO | K5: 0 | L5: 0 | M5: =(L5-K5) -> 0 | N5: 0 | S5: NOCTURNO | T5: -33.5942548 | U5: 0
B6: DISCONTINUO | C6: 40.567 | D6: 31.06 | E6: =(D6-C6) -> -9.507 | F6: =((D6-C6)*100)/C6 -> -23.43530456 | J6: DISCONTINUO | K6: 10.433 | L6: 7.16 | M6: =(L6-K6) -> -3.273 | N6: =((L6-K6)*100)/L6 -> -45.7122905 | S6: DISCONTINUO | T6: -23.43530456 | U6: -45.7122905
B7: MATUTINO | C7: 44.787 | D7: 42.5 | E7: =(D7-C7) -> -2.287 | F7: =((D7-C7)*100)/C7 -> -5.10639248 | J7: MATUTINO | K7: 13.496 | L7: 5.45 | M7: =(L7-K7) -> -8.046 | N7: =((L7-K7)*100)/L7 -> -147.6330275 | S7: MATUTINO | T7: -5.10639248 | U7: -147.6330275
B8: PROMEDIO | C8: 46.295 | D8: 45.06 | E8: =(D8-C8) -> -1.235 | F8: =((D8-C8)*100)/C8 -> -2.667674695 | J8: Total | K8: 12.03 | L8: 4.82 | M8: =(L8-K8) -> -7.21 | N8: =((L8-K8)*100)/L8 -> -149.5850622 | S8: PROMEDIO | T8: -2.667674695 | U8: -149.5850622
B9: VESPERTINO | C9: 44.499 | D9: 53.15 | E9: =(D9-C9) -> 8.651 | F9: =((D9-C9)*100)/C9 -> 19.44088631 | J9: VESPERTINO | K9: 9.051 | L9: 1.25 | M9: =(L9-K9) -> -7.801 | N9: =((L9-K9)*100)/L9 -> -624.08 | S9: VESPERTINO | T9: 19.44088631 | U9: -624.08

Sheet TURNO 17-19 MAT
D1: NIVEL DE AVANCE EN LOS NIVELES DE DESEMPEÑO EXTREMOS
B4: TURNO_SEECH | C4: MAT NIV I 2017 | D4: MAT 2019 NIV I | E4: DIF 17-19 MAT N I | F4: PORCENTAJE DE AVANCE | K4: TURNO_SEECH | L4: MAT NIV IV 2017 | M4: MAT 2019 N IV | N4: DIF 17-19 MAT NIV IV | O4: PORCENTAJE DE AVANCE
B5: NOCTURNO | C5: 92.467 | D5: 72.93 | E5: =(D5-C5) -> -19.537 | F5: =((D5-C5)*100)/C5 -> -21.12861886 | K5: DISCONTINUO | L5: 4.567 | M5: 6.04 | N5: =(M5-L5) -> 1.473 | O5: =((M5-L5)*100)/M5 -> 24.38741722
B6: DISCONTINUO | C6: 64.783 | D6: 59.77 | E6: =(D6-C6) -> -5.013 | F6: =((D6-C6)*100)/C6 -> -7.738141179 | K6: NOCTURNO | L6: 0 | M6: 0 | N6: =(M6-L6) -> 0 | O6: 0
B7: Total | C7: 63.055 | D7: 60.78 | E7: =(D7-C7) -> -2.275 | F7: =((D7-C7)*100)/C7 -> -3.607961304 | K7: Total | L7: 11.36 | M7: 8.18 | N7: =(M7-L7) -> -3.18 | O7: =((M7-L7)*100)/M7 -> -38.87530562
B8: MATUTINO | C8: 61.272 | D8: 59.36 | E8: =(D8-C8) -> -1.912 | F8: =((D8-C8)*100)/C8 -> -3.120511816 | K8: MATUTINO | L8: 11.86 | M8: 8.28 | N8: =(M8-L8) -> -3.58 | O8: =((M8-L8)*100)/M8 -> -43.23671498
B9: VESPERTINO | C9: 73.403 | D9: 81.9 | E9: =(D9-C9) -> 8.497 | F9: =((D9-C9)*100)/C9 -> 11.57582115 | K9: VESPERTINO | L9: 5.428 | M9: 1.2 | N9: =(M9-L9) -> -4.228 | O9: =((M9-L9)*100)/M9 -> -352.3333333

Sheet NIVELES MODALIDAD ESCUELA
BH3: CCT_SEC_PEGAR2 | BI3: Suma de LYCNI2015 | BJ3: Suma de LYC 17 NI | BK3: Suma de LYC 19 NIV I | BN3: CCT_SEC_PEGAR2 | BO3: Suma de LYCNII2015 | BP3: Suma de LYC 17 NII | BQ3: Suma de LYC 19 NIV II | BT3: CCT_SEC_PEGAR2 | BU3: Suma de LYCNIII2015 | BV3: Suma de LYC 17 NIV III | BW3: Suma de LYC 19 NIV III | BZ3: CCT_SEC_PEGAR2 | CA3: Suma de LYCNIVIV2015 | CB3: Suma de LYC 17 NIV IV | CC3: Suma de LYC 19 NIV IV | CF3: CCT_SEC_PEGAR2 | CG3: Suma de MATNIVI2015 | CH3: Suma de MAT 17 NIV I | CI3: Suma de MAT 19 NIV I | CL3: CCT_SEC_PEGAR2 | CM3: Suma de MATNIVII2015 | CN3: Suma de MAT 17 NIV II | CO3: Suma de MAT 19 NIV II | CR3: CCT_SEC_PEGAR2 | CS3: Suma de MATNIVIII2015 | CT3: Suma de MAT 17 NIV III | CU3: Suma de MAT 19 NIV III | CX3: CCT_SEC_PEGAR2 | CY3: Suma de MATNIVIV2015 | CZ3: Suma de MAT 17 NIV IV | DA3: Suma de MAT 19 NIV IV
AV4: Promedio de MATNIVIV2015 | AW4: Promedio de MAT 17 NIV IV | AX4: Promedio de MAT 19 NIV IV | BH4: 08DST0002ZMATUTINO | BI4: 8.6 | BJ4: 8.8 | BK4: 11.8 | BN4: 08DST0002ZMATUTINO | BO4: 30 | BP4: 32.4 | BQ4: 51.3 | BT4: 08DST0002ZMATUTINO | BU4: 37.1 | BV4: 26.5 | BW4: 21.1 | BZ4: 08DST0002ZMATUTINO | CA4: 24.3 | CB4: 32.4 | CC4: 15.8 | CF4: 08DST0002ZMATUTINO | CG4: 14.9 | CH4: 22.7 | CI4: 26.7 | CL4: 08DST0002ZMATUTINO | CM4: 25.4 | CN4: 24.2 | CO4: 34.7 | CR4: 08DST0002ZMATUTINO | CS4: 16.4 | CT4: 19.7 | CU4: 20 | CX4: 08DST0002ZMATUTINO | CY4: 43.3 | CZ4: 33.3 | DA4: 18.7
AG5: Promedio de MATNIVI2015 | AH5: Promedio de MAT 17 NIV I | AI5: Promedio de MAT 19 NIV I | AL5: Promedio de MATNIVII2015 | AM5: Promedio de MAT 17 NIV II | AN5: Promedio de MAT 19 NIV II | AQ5: Promedio de MATNIVIII2015 | AR5: Promedio de MAT 17 NIV III | AS5: Promedio de MAT 19 NIV III | AV5: 4.908943089 | AW5: 7.7184 | AX5: 5.48015873
AG6: 67.00813008 | AH6: 66.7152 | AI6: 62.37222222 | AL6: 22.02682927 | AM6: 17.2504 | AN6: 24.38492063 | AQ6: 8.705896226 | AR6: 8.858207218 | AS6: 7.986143931
AG10: PLANEA 2015
I12: Promedio de LYCNIII2015 | J12: Promedio de LYC 17 NIV III | K12: Promedio de LYC 19 NIV III | O12: Promedio de LYCNIVIV2015 | P12: Promedio de LYC 17 NIV IV | Q12: Promedio de LYC 19 NIV IV
I13: 17.71428571 | J13: 14.28571429 | K13: 17.78571429 | O13: 5.070731707 | P13: 12.5656 | Q13: 5.466666667 | AG13: PLANEA 2017

Sheet SELECCIÓN DE ESCUELAS
C1: Análisis del contenido y de la estructura
O2: reac | P2: clave | Q2: clave_ | R2: asignatura | S2: IdImagen | T2: idlectura | U2: numexa | V2: u_diag | W2: argumentación
O3: 14 | P3: A | Q3: 1 | R3: LENGUAJE Y COMUNICACIÓN | S3: SL14 | T3: Texto_P_14a17 | U3: 14 | V3: Análisis del contenido y de la estructura | W3: Reconocer el género periodístico de una nota frente a otra.
C4: Reconocer el género periodístico de una nota frente a otra. | D4: Establecer diferencia de forma de un mismo hecho en dos periódicos. | E4: Establecer semejanzas y diferencias de contenido de un mismo hecho en dos periódicos. | F4: Distinguir entre hechos y opiniones en un texto periodístico. | G4: Seleccionar, a partir de un texto narrativo, acotaciones para la representación del espacio en una obra teatral. | H4: Identificar la descripción que caracterice al entrevistado. | I4: Seleccionar la secuencia correcta de un listado de preguntas de acuerdo con el propósito de la encuesta. | J4: Identificar las formas de tratar un mismo tema en dos relatos míticos de culturas diferentes. | O4: 15 | P4: B | Q4: 2 | R4: LENGUAJE Y COMUNICACIÓN | S4: SL15 | T4: Texto_P_14a17 | U4: 15 | V4: Análisis del contenido y de la estructura | W4: Establecer diferencia de forma de un mismo hecho en dos periódicos.
C5: nombre_ct | D5: CCT_TURNO | E5: Promedio de LYC_SEC_1_14 | F5: Promedio de LYC_SEC_1_15 | G5: Promedio de LYC_SEC_1_1111 | H5: Promedio de LYC_SEC_1_121 | I5: Promedio de LYC_SEC_1_29 | J5: Promedio de LYC_SEC_1_33 | K5: Promedio de LYC_SEC_1_38 | L5: Promedio de LYC_SEC_1_51 | O5: 16 | P5: A | Q5: 1 | R5: LENGUAJE Y COMUNICACIÓN | S5: SL16 | T5: Texto_P_14a17 | U5: 16 | V5: Análisis del contenido y de la estructura | W5: Establecer semejanzas y diferencias de contenido de un mismo hecho en dos periódicos.
C6: HEROES DE LA DEMOCRACIA | D6: 08DES0013M MATUTINO | E6: 0.4736842105 | F6: 0.5945945946 | G6: 0.4210526316 | H6: 0.3157894737 | I6: 0.2631578947 | J6: 0.3684210526 | K6: 0.3157894737 | L6: 0.4054054054 | O6: 17 | P6: A | Q6: 1 | R6: LENGUAJE Y COMUNICACIÓN | S6: SL17 | T6: Texto_P_14a17 | U6: 17 | V6: Análisis del contenido y de la estructura | W6: Distinguir entre hechos y opiniones en un texto periodístico.
O7: 29 | P7: C | Q7: 3 | R7: LENGUAJE Y COMUNICACIÓN | S7: SL29 | T7: Texto_P_27a31 | U7: 29 | V7: Análisis del contenido y de la estructura | W7: Seleccionar, a partir de un texto narrativo, acotaciones para la representación del espacio en una obra teatral.
O8: 33 | P8: C | Q8: 3 | R8: LENGUAJE Y COMUNICACIÓN | S8: SL33 | T8: Texto_P_32a35 | U8: 33 | V8: Análisis del contenido y de la estructura | W8: Identificar la descripción que caracterice al entrevistado.
O9: 38 | P9: A | Q9: 1 | R9: LENGUAJE Y COMUNICACIÓN | S9: SL38 | T9: Texto_P_36a39 | U9: 38 | V9: Análisis del contenido y de la estructura | W9: Seleccionar la secuencia correcta de un listado de preguntas de acuerdo con el propósito de la encuesta.
O10: 51 | P10: B | Q10: 2 | R10: LENGUAJE Y COMUNICACIÓN | S10: SL51 | T10: Texto_P_48a51 | U10: 51 | V10: Análisis del contenido y de la estructura | W10: Identificar las formas de tratar un mismo tema en dos relatos míticos de culturas diferentes.
R22: nombre_ct | S22: CCT_TURNO | T22: nofolio | U22: Suma de LYC_SEC_19_RESP_14 | V22: Suma de LYC_SEC_19_RESP_15 | W22: Suma de LYC_SEC_19_RESP_16 | X22: Suma de LYC_SEC_19_RESP_17 | Y22: Suma de LYC_SEC_19_RESP_29 | Z22: Suma de LYC_SEC_19_RESP_33 | AA22: Suma de LYC_SEC_19_RESP_38 | AB22: Suma de LYC_SEC_19_RESP_51 | AE22: 1 | AF22: 2 | AG22: 3 | AH22: 4 | AI22: TOTAL | AJ22: REACTIVOS | AK22: R1 | AL22: R2 | AM22: R3 | AN22: R4 | AO22: TOTAL
R23: HEROES DE LA DEMOCRACIA | S23: 08DES0013M MATUTINO | T23: 080028978S19 | U23: 1 | V23: 2 | W23: 2 | X23: 2 | Y23: 4 | Z23: 2 | AA23: 1 | AB23: 8 | AD23: P14 | AE23: =COUNTIF(U23:U28071,AE22) -> 18 | AF23: =COUNTIF(U23:U28071,AF22) -> 3 | AG23: =COUNTIF(U23:U28071,AG22) -> 4 | AH23: =COUNTIF(U23:U28071,AH22) -> 13 | AI23: =SUM(AE23:AH23) -> 38 | AJ23: P14 | AK23: =(AE23*100)/AI23 -> 47.36842105 | AL23: =(AF23*100)/AI23 -> 7.894736842 | AM23: =(AG23*100)/AI23 -> 10.52631579 | AN23: =(AH23*100)/AI23 -> 34.21052632 | AO23: =SUM(AK23:AN23) -> 100
R24: HEROES DE LA DEMOCRACIA | S24: 08DES0013M MATUTINO | T24: 080028979S19 | U24: 1 | V24: 2 | W24: 2 | X24: 3 | Y24: 4 | Z24: 3 | AA24: 4 | AB24: 2 | AD24: P15 | AE24: =COUNTIF(V23:V28100,AE22) -> 7 | AF24: =COUNTIF(V23:V28100,AF22) -> 22 | AG24: =COUNTIF(V23:V28072,AG22) -> 5 | AH24: =COUNTIF(V23:V28072,AH22) -> 3 | AI24: 37 | AJ24: P15 | AK24: =(AE24*100)/AI24 -> 18.91891892 | AL24: =(AF24*100)/AI24 -> 59.45945946 | AM24: =(AG24*100)/AI24 -> 13.51351351 | AN24: 8.108108108 | AO24: =SUM(AK24:AN24) -> 100
R25: HEROES DE LA DEMOCRACIA | S25: 08DES0013M MATUTINO | T25: 080028980S19 | U25: 1 | V25: 4 | W25: 1 | X25: 2 | Y25: 1 | Z25: 3 | AA25: 1 | AB25: 2 | AD25: P16 | AE25: =COUNTIF(W23:W28073,AE22) -> 16 | AF25: =COUNTIF(W23:W28073,AF22) -> 15 | AG25: =COUNTIF(W23:W28073,AG22) -> 5 | AH25: =COUNTIF(W23:W28073,AH22) -> 2 | AI25: 38 | AJ25: P16 | AK25: =(AE25*100)/AI25 -> 42.10526316 | AL25: =(AF25*100)/AI25 -> 39.47368421 | AM25: =(AG25*100)/AI25 -> 13.15789474 | AN25: 5.263157895 | AO25: =SUM(AK25:AN25) -> 100
R26: HEROES DE LA DEMOCRACIA | S26: 08DES0013M MATUTINO | T26: 080028981S19 | U26: 2 | V26: 1 | W26: 2 | X26: 2 | Y26: 1 | Z26: 1 | AA26: 4 | AB26: 1 | AD26: P17 | AE26: =COUNTIF(X23:X28074,AE22) -> 12 | AF26: =COUNTIF(X23:X28074,AF22) -> 12 | AG26: =COUNTIF(X23:X28074,AG22) -> 9 | AH26: =COUNTIF(X23:X28074,AH22) -> 5 | AI26: 38 | AJ26: P17 | AK26: =(AE26*100)/AI26 -> 31.57894737 | AL26: =(AF26*100)/AI26 -> 31.57894737 | AM26: =(AG26*100)/AI26 -> 23.68421053 | AN26: 13.15789474 | AO26: 100
R27: HEROES DE LA DEMOCRACIA | S27: 08DES0013M MATUTINO | T27: 080028982S19 | U27: 1 | V27: 2 | W27: 2 | X27: 2 | Y27: 1 | Z27: 1 | AA27: 2 | AB27: 3 | AD27: P29 | AE27: =COUNTIF(Y23:Y28075,AE22) -> 15 | AF27: =COUNTIF(Y23:Y28075,AF22) -> 5 | AG27: =COUNTIF(Y23:Y28075,AG22) -> 10 | AH27: =COUNTIF(Y23:Y28075,AH22) -> 8 | AI27: 38 | AJ27: P29 | AK27: =(AE27*100)/AI27 -> 39.47368421 | AL27: 13.15789474 | AM27: 26.31578947 | AN27: 21.05263158 | AO27: 100
R28: HEROES DE LA DEMOCRACIA | S28: 08DES0013M MATUTINO | T28: 080028983S19 | U28: 4 | V28: 1 | W28: 2 | X28: 3 | Y28: 1 | Z28: 2 | AA28: 3 | AB28: 4 | AD28: P33 | AE28: =COUNTIF(Z23:Z28076,AE22) -> 6 | AF28: =COUNTIF(Z23:Z28076,AF22) -> 9 | AG28: =COUNTIF(Z23:Z28076,AG22) -> 14 | AH28: =COUNTIF(Z23:Z28076,AH22) -> 9 | AI28: 38 | AJ28: P33 | AK28: 15.78947368 | AL28: 23.68421053 | AM28: 36.84210526 | AN28: 23.68421053 | AO28: 100
R29: HEROES DE LA DEMOCRACIA | S29: 08DES0013M MATUTINO | T29: 080028984S19 | U29: 1 | V29: 2 | W29: 2 | X29: 1 | Y29: 4 | Z29: 1 | AA29: 1 | AB29: 4 | AD29: P38 | AE29: =COUNTIF(AA23:AA28077,AE22) -> 12 | AF29: =COUNTIF(AA23:AA28077,AF22) -> 10 | AG29: =COUNTIF(AA23:AA28077,AG22) -> 7 | AH29: =COUNTIF(AA23:AA28077,AH22) -> 9 | AI29: 38 | AJ29: P38 | AK29: 31.57894737 | AL29: 26.31578947 | AM29: 18.42105263 | AN29: 23.68421053 | AO29: 100
R30: HEROES DE LA DEMOCRACIA | S30: 08DES0013M MATUTINO | T30: 080028985S19 | U30: 3 | V30: 2 | W30: 1 | X30: 3 | Y30: 3 | Z30: 4 | AA30: 2 | AB30: 3 | AD30: P51 | AE30: =COUNTIF(AB23:AB28078,AE22) -> 9 | AF30: =COUNTIF(AB23:AB28078,AF22) -> 15 | AG30: =COUNTIF(AB23:AB28078,AG22) -> 8 | AH30: =COUNTIF(AB23:AB28078,AH22) -> 5 | AI30: 37 | AJ30: P51 | AK30: 24.32432432 | AL30: 40.54054054 | AM30: 21.62162162 | AN30: 13.51351351 | AO30: 100
R31: HEROES DE LA DEMOCRACIA | S31: 08DES0013M MATUTINO | T31: 080028986S19 | U31: 1 | V31: 4 | W31: 2 | X31: 4 | Y31: 1 | Z31: 3 | AA31: 3 | AB31: 3
R32: HEROES DE LA DEMOCRACIA | S32: 08DES0013M MATUTINO | T32: 080028987S19 | U32: 4 | V32: 1 | W32: 1 | X32: 3 | Y32: 1 | Z32: 4 | AA32: 4 | AB32: 4
R33: HEROES DE LA DEMOCRACIA | S33: 08DES0013M MATUTINO | T33: 080028988S19 | U33: 1 | V33: 4 | W33: 1 | X33: 2 | Y33: 1 | Z33: 3 | AA33: 3 | AB33: 3
R34: HEROES DE LA DEMOCRACIA | S34: 08DES0013M MATUTINO | T34: 080028989S19 | U34: 4 | V34: 2 | W34: 1 | X34: 1 | Y34: 1 | Z34: 4 | AA34: 4 | AB34: 2
R35: HEROES DE LA DEMOCRACIA | S35: 08DES0013M MATUTINO | T35: 080028990S19 | U35: 4 | V35: 1 | W35: 1 | X35: 1 | Y35: 3 | Z35: 4 | AA35: 1 | AB35: 2
R36: HEROES DE LA DEMOCRACIA | S36: 08DES0013M MATUTINO | T36: 080028991S19 | U36: 1 | V36: 2 | W36: 1 | X36: 3 | Y36: 3 | Z36: 3 | AA36: 3 | AB36: 2
R37: HEROES DE LA DEMOCRACIA | S37: 08DES0013M MATUTINO | T37: 080028992S19 | U37: 4 | V37: 2 | W37: 1 | X37: 2 | Y37: 3 | Z37: 3 | AA37: 2 | AB37: 3
R38: HEROES DE LA DEMOCRACIA | S38: 08DES0013M MATUTINO | T38: 080028993S19 | U38: 4 | V38: 1 | W38: 1 | X38: 1 | Y38: 2 | Z38: 2 | AA38: 3 | AB38: 1
R39: HEROES DE LA DEMOCRACIA | S39: 08DES0013M MATUTINO | T39: 080028995S19 | U39: 4 | V39: 1 | W39: 2 | X39: 4 | Y39: 3 | Z39: 2 | AA39: 3 | AB39: 4
R40: HEROES DE LA DEMOCRACIA | S40: 08DES0013M MATUTINO | T40: 080028996S19 | U40: 4 | V40: 1 | W40: 3 | X40: 2 | Y40: 4 | Z40: 4 | AA40: 1 | AB40: 1
R41: HEROES DE LA DEMOCRACIA | S41: 08DES0013M MATUTINO | T41: 080028997S19 | U41: 1 | V41: 2 | W41: 2 | X41: 2 | Y41: 2 | Z41: 3 | AA41: 3 | AB41: 1
R42: HEROES DE LA DEMOCRACIA | S42: 08DES0013M MATUTINO | T42: 080028998S19 | U42: 1 | V42: 3 | W42: 4 | X42: 2 | Y42: 2 | Z42: 3 | AA42: 2 | AB42: 4
R43: HEROES DE LA DEMOCRACIA | S43: 08DES0013M MATUTINO | T43: 080028999S19 | U43: 4 | V43: 3 | W43: 1 | X43: 2 | Y43: 3 | Z43: 2 | AA43: 1 | AB43: 3
R44: HEROES DE LA DEMOCRACIA | S44: 08DES0013M MATUTINO | T44: 080029000S19 | U44: 2 | V44: 3 | W44: 2 | X44: 4 | Y44: 2 | Z44: 4 | AA44: 4 | AB44: 2
R45: HEROES DE LA DEMOCRACIA | S45: 08DES0013M MATUTINO | T45: 080029001S19 | U45: 8 | V45: 8 | W45: 8 | X45: 8 | Y45: 8 | Z45: 8 | AA45: 8 | AB45: 8
R46: HEROES DE LA DEMOCRACIA | S46: 08DES0013M MATUTINO | T46: 080029002S19 | U46: 4 | V46: 2 | W46: 3 | X46: 1 | Y46: 2 | Z46: 4 | AA46: 1 | AB46: 1
R47: HEROES DE LA DEMOCRACIA | S47: 08DES0013M MATUTINO | T47: 080029003S19 | U47: 2 | V47: 8 | W47: 3 | X47: 2 | Y47: 3 | Z47: 2 | AA47: 1 | AB47: 3
R48: HEROES DE LA DEMOCRACIA | S48: 08DES0013M MATUTINO | T48: 080029004S19 | U48: 4 | V48: 2 | W48: 2 | X48: 1 | Y48: 1 | Z48: 1 | AA48: 2 | AB48: 1
R49: HEROES DE LA DEMOCRACIA | S49: 08DES0013M MATUTINO | T49: 080029005S19 | U49: 1 | V49: 2 | W49: 3 | X49: 1 | Y49: 1 | Z49: 2 | AA49: 1 | AB49: 2
R50: HEROES DE LA DEMOCRACIA | S50: 08DES0013M MATUTINO | T50: 080029006S19 | U50: 3 | V50: 2 | W50: 1 | X50: 3 | Y50: 3 | Z50: 4 | AA50: 4 | AB50: 2
R51: HEROES DE LA DEMOCRACIA | S51: 08DES0013M MATUTINO | T51: 080029007S19 | U51: 1 | V51: 2 | W51: 2 | X51: 1 | Y51: 4 | Z51: 3 | AA51: 2 | AB51: 2
R52: HEROES DE LA DEMOCRACIA | S52: 08DES0013M MATUTINO | T52: 080029008S19 | U52: 1 | V52: 2 | W52: 2 | X52: 1 | Y52: 1 | Z52: 1 | AA52: 4 | AB52: 2
R53: HEROES DE LA DEMOCRACIA | S53: 08DES0013M MATUTINO | T53: 080029009S19 | U53: 3 | V53: 2 | W53: 2 | X53: 1 | Y53: 3 | Z53: 2 | AA53: 2 | AB53: 2
R54: HEROES DE LA DEMOCRACIA | S54: 08DES0013M MATUTINO | T54: 080029010S19 | U54: 1 | V54: 2 | W54: 1 | X54: 1 | Y54: 1 | Z54: 3 | AA54: 2 | AB54: 1
R55: HEROES DE LA DEMOCRACIA | S55: 08DES0013M MATUTINO | T55: 080029011S19 | U55: 1 | V55: 2 | W55: 4 | X55: 3 | Y55: 1 | Z55: 1 | AA55: 1 | AB55: 1
R56: HEROES DE LA DEMOCRACIA | S56: 08DES0013M MATUTINO | T56: 080029012S19 | U56: 1 | V56: 2 | W56: 3 | X56: 3 | Y56: 4 | Z56: 4 | AA56: 4 | AB56: 1
R57: HEROES DE LA DEMOCRACIA | S57: 08DES0013M MATUTINO | T57: 080029013S19 | U57: 4 | V57: 3 | W57: 1 | X57: 1 | Y57: 4 | Z57: 3 | AA57: 4 | AB57: 3
R58: HEROES DE LA DEMOCRACIA | S58: 08DES0013M MATUTINO | T58: 080029014S19 | U58: 4 | V58: 3 | W58: 2 | X58: 4 | Y58: 1 | Z58: 3 | AA58: 1 | AB58: 2
R59: HEROES DE LA DEMOCRACIA | S59: 08DES0013M MATUTINO | T59: 080029015S19 | U59: 1 | V59: 2 | W59: 1 | X59: 2 | Y59: 4 | Z59: 2 | AA59: 2 | AB59: 2
R60: HEROES DE LA DEMOCRACIA | S60: 08DES0013M MATUTINO | T60: 080029016S19 | U60: 1 | V60: 2 | W60: 1 | X60: 3 | Y60: 3 | Z60: 3 | AA60: 1 | AB60: 2
R61: HEROES DE LA DEMOCRACIA | S61: 08DES0013M MATUTINO | T61: 080029017S19 | U61: 3 | V61: 2 | W61: 1 | X61: 4 | Y61: 1 | Z61: 3 | AA61: 2 | AB61: 2

Sheet UD_ANALISIS CONTENIDO
C1: Análisis del contenido y de la estructura
O2: reac | P2: clave | Q2: clave_ | R2: asignatura | S2: IdImagen | T2: idlectura | U2: numexa | V2: u_diag | W2: argumentación
O3: 14 | P3: A | Q3: 1 | R3: LENGUAJE Y COMUNICACIÓN | S3: SL14 | T3: Texto_P_14a17 | U3: 14 | V3: Análisis del contenido y de la estructura | W3: Reconocer el género periodístico de una nota frente a otra.
C4: Reconocer el género periodístico de una nota frente a otra. | D4: Establecer diferencia de forma de un mismo hecho en dos periódicos. | E4: Establecer semejanzas y diferencias de contenido de un mismo hecho en dos periódicos. | F4: Distinguir entre hechos y opiniones en un texto periodístico. | G4: Seleccionar, a partir de un texto narrativo, acotaciones para la representación del espacio en una obra teatral. | H4: Identificar la descripción que caracterice al entrevistado. | I4: Seleccionar la secuencia correcta de un listado de preguntas de acuerdo con el propósito de la encuesta. | J4: Identificar las formas de tratar un mismo tema en dos relatos míticos de culturas diferentes. | O4: 15 | P4: B | Q4: 2 | R4: LENGUAJE Y COMUNICACIÓN | S4: SL15 | T4: Texto_P_14a17 | U4: 15 | V4: Análisis del contenido y de la estructura | W4: Establecer diferencia de forma de un mismo hecho en dos periódicos.
C5: nombre_ct | D5: CCT_TURNO | E5: Promedio de LYC_SEC_1_14 | F5: Promedio de LYC_SEC_1_15 | G5: Promedio de LYC_SEC_1_1111 | H5: Promedio de LYC_SEC_1_121 | I5: Promedio de LYC_SEC_1_29 | J5: Promedio de LYC_SEC_1_33 | K5: Promedio de LYC_SEC_1_38 | L5: Promedio de LYC_SEC_1_51 | O5: 16 | P5: A | Q5: 1 | R5: LENGUAJE Y COMUNICACIÓN | S5: SL16 | T5: Texto_P_14a17 | U5: 16 | V5: Análisis del contenido y de la estructura | W5: Establecer semejanzas y diferencias de contenido de un mismo hecho en dos periódicos.
C6: HEROES DE LA DEMOCRACIA | D6: 08DES0013M MATUTINO | E6: 0.4736842105 | F6: 0.5945945946 | G6: 0.4210526316 | H6: 0.3157894737 | I6: 0.2631578947 | J6: 0.3684210526 | K6: 0.3157894737 | L6: 0.4054054054 | O6: 17 | P6: A | Q6: 1 | R6: LENGUAJE Y COMUNICACIÓN | S6: SL17 | T6: Texto_P_14a17 | U6: 17 | V6: Análisis del contenido y de la estructura | W6: Distinguir entre hechos y opiniones en un texto periodístico.
O7: 29 | P7: C | Q7: 3 | R7: LENGUAJE Y COMUNICACIÓN | S7: SL29 | T7: Texto_P_27a31 | U7: 29 | V7: Análisis del contenido y de la estructura | W7: Seleccionar, a partir de un texto narrativo, acotaciones para la representación del espacio en una obra teatral.
A8: reactivo | B8: ARGUMENTACIÓN | O8: 33 | P8: C | Q8: 3 | R8: LENGUAJE Y COMUNICACIÓN | S8: SL33 | T8: Texto_P_32a35 | U8: 33 | V8: Análisis del contenido y de la estructura | W8: Identificar la descripción que caracterice al entrevistado.
A9: P14 | B9: Reconocer el género periodístico de una nota frente a otra. | O9: 38 | P9: A | Q9: 1 | R9: LENGUAJE Y COMUNICACIÓN | S9: SL38 | T9: Texto_P_36a39 | U9: 38 | V9: Análisis del contenido y de la estructura | W9: Seleccionar la secuencia correcta de un listado de preguntas de acuerdo con el propósito de la encuesta.
A10: P15 | B10: Establecer diferencia de forma de un mismo hecho en dos periódicos. | O10: 51 | P10: B | Q10: 2 | R10: LENGUAJE Y COMUNICACIÓN | S10: SL51 | T10: Texto_P_48a51 | U10: 51 | V10: Análisis del contenido y de la estructura | W10: Identificar las formas de tratar un mismo tema en dos relatos míticos de culturas diferentes.
A11: P16 | B11: Establecer semejanzas y diferencias de contenido de un mismo hecho en dos periódicos.
A12: P17 | B12: Distinguir entre hechos y opiniones en un texto periodístico.
A13: P29 | B13: Seleccionar, a partir de un texto narrativo, acotaciones para la representación del espacio en una obra teatral.
A14: P33 | B14: Identificar la descripción que caracterice al entrevistado.
A15: P38 | B15: Seleccionar la secuencia correcta de un listado de preguntas de acuerdo con el propósito de la encuesta.
A16: P51 | B16: Identificar las formas de tratar un mismo tema en dos relatos míticos de culturas diferentes.
R22: nombre_ct | S22: CCT_TURNO | T22: nofolio | U22: Suma de LYC_SEC_19_RESP_14 | V22: Suma de LYC_SEC_19_RESP_15 | W22: Suma de LYC_SEC_19_RESP_16 | X22: Suma de LYC_SEC_19_RESP_17 | Y22: Suma de LYC_SEC_19_RESP_29 | Z22: Suma de LYC_SEC_19_RESP_33 | AA22: Suma de LYC_SEC_19_RESP_38 | AB22: Suma de LYC_SEC_19_RESP_51 | AE22: 1 | AF22: 2 | AG22: 3 | AH22: 4 | AI22: TOTAL | AJ22: REACTIVOS | AK22: R1 | AL22: R2 | AM22: R3 | AN22: R4 | AO22: TOTAL
R23: HEROES DE LA DEMOCRACIA | S23: 08DES0013M MATUTINO | T23: 080028978S19 | U23: 1 | V23: 2 | W23: 2 | X23: 2 | Y23: 4 | Z23: 2 | AA23: 1 | AB23: 8 | AD23: P14 | AE23: =COUNTIF(U23:U28071,AE22) -> 18 | AF23: =COUNTIF(U23:U28071,AF22) -> 3 | AG23: =COUNTIF(U23:U28071,AG22) -> 4 | AH23: =COUNTIF(U23:U28071,AH22) -> 13 | AI23: =SUM(AE23:AH23) -> 38 | AJ23: P14 | AK23: =(AE23*100)/AI23 -> 47.36842105 | AL23: =(AF23*100)/AI23 -> 7.894736842 | AM23: =(AG23*100)/AI23 -> 10.52631579 | AN23: =(AH23*100)/AI23 -> 34.21052632 | AO23: =SUM(AK23:AN23) -> 100
R24: HEROES DE LA DEMOCRACIA | S24: 08DES0013M MATUTINO | T24: 080028979S19 | U24: 1 | V24: 2 | W24: 2 | X24: 3 | Y24: 4 | Z24: 3 | AA24: 4 | AB24: 2 | AD24: P15 | AE24: =COUNTIF(V23:V28100,AE22) -> 7 | AF24: =COUNTIF(V23:V28100,AF22) -> 22 | AG24: =COUNTIF(V23:V28072,AG22) -> 5 | AH24: =COUNTIF(V23:V28072,AH22) -> 3 | AI24: 37 | AJ24: P15 | AK24: =(AE24*100)/AI24 -> 18.91891892 | AL24: =(AF24*100)/AI24 -> 59.45945946 | AM24: =(AG24*100)/AI24 -> 13.51351351 | AN24: 8.108108108 | AO24: =SUM(AK24:AN24) -> 100
R25: HEROES DE LA DEMOCRACIA | S25: 08DES0013M MATUTINO | T25: 080028980S19 | U25: 1 | V25: 4 | W25: 1 | X25: 2 | Y25: 1 | Z25: 3 | AA25: 1 | AB25: 2 | AD25: P16 | AE25: =COUNTIF(W23:W28073,AE22) -> 16 | AF25: =COUNTIF(W23:W28073,AF22) -> 15 | AG25: =COUNTIF(W23:W28073,AG22) -> 5 | AH25: =COUNTIF(W23:W28073,AH22) -> 2 | AI25: 38 | AJ25: P16 | AK25: =(AE25*100)/AI25 -> 42.10526316 | AL25: =(AF25*100)/AI25 -> 39.47368421 | AM25: =(AG25*100)/AI25 -> 13.15789474 | AN25: 5.263157895 | AO25: =SUM(AK25:AN25) -> 100
R26: HEROES DE LA DEMOCRACIA | S26: 08DES0013M MATUTINO | T26: 080028981S19 | U26: 2 | V26: 1 | W26: 2 | X26: 2 | Y26: 1 | Z26: 1 | AA26: 4 | AB26: 1 | AD26: P17 | AE26: =COUNTIF(X23:X28074,AE22) -> 12 | AF26: =COUNTIF(X23:X28074,AF22) -> 12 | AG26: =COUNTIF(X23:X28074,AG22) -> 9 | AH26: =COUNTIF(X23:X28074,AH22) -> 5 | AI26: 38 | AJ26: P17 | AK26: =(AE26*100)/AI26 -> 31.57894737 | AL26: =(AF26*100)/AI26 -> 31.57894737 | AM26: =(AG26*100)/AI26 -> 23.68421053 | AN26: 13.15789474 | AO26: 100
R27: HEROES DE LA DEMOCRACIA | S27: 08DES0013M MATUTINO | T27: 080028982S19 | U27: 1 | V27: 2 | W27: 2 | X27: 2 | Y27: 1 | Z27: 1 | AA27: 2 | AB27: 3 | AD27: P29 | AE27: =COUNTIF(Y23:Y28075,AE22) -> 15 | AF27: =COUNTIF(Y23:Y28075,AF22) -> 5 | AG27: =COUNTIF(Y23:Y28075,AG22) -> 10 | AH27: =COUNTIF(Y23:Y28075,AH22) -> 8 | AI27: 38 | AJ27: P29 | AK27: =(AE27*100)/AI27 -> 39.47368421 | AL27: 13.15789474 | AM27: 26.31578947 | AN27: 21.05263158 | AO27: 100
R28: HEROES DE LA DEMOCRACIA | S28: 08DES0013M MATUTINO | T28: 080028983S19 | U28: 4 | V28: 1 | W28: 2 | X28: 3 | Y28: 1 | Z28: 2 | AA28: 3 | AB28: 4 | AD28: P33 | AE28: =COUNTIF(Z23:Z28076,AE22) -> 6 | AF28: =COUNTIF(Z23:Z28076,AF22) -> 9 | AG28: =COUNTIF(Z23:Z28076,AG22) -> 14 | AH28: =COUNTIF(Z23:Z28076,AH22) -> 9 | AI28: 38 | AJ28: P33 | AK28: 15.78947368 | AL28: 23.68421053 | AM28: 36.84210526 | AN28: 23.68421053 | AO28: 100
R29: HEROES DE LA DEMOCRACIA | S29: 08DES0013M MATUTINO | T29: 080028984S19 | U29: 1 | V29: 2 | W29: 2 | X29: 1 | Y29: 4 | Z29: 1 | AA29: 1 | AB29: 4 | AD29: P38 | AE29: =COUNTIF(AA23:AA28077,AE22) -> 12 | AF29: =COUNTIF(AA23:AA28077,AF22) -> 10 | AG29: =COUNTIF(AA23:AA28077,AG22) -> 7 | AH29: =COUNTIF(AA23:AA28077,AH22) -> 9 | AI29: 38 | AJ29: P38 | AK29: 31.57894737 | AL29: 26.31578947 | AM29: 18.42105263 | AN29: 23.68421053 | AO29: 100
R30: HEROES DE LA DEMOCRACIA | S30: 08DES0013M MATUTINO | T30: 080028985S19 | U30: 3 | V30: 2 | W30: 1 | X30: 3 | Y30: 3 | Z30: 4 | AA30: 2 | AB30: 3 | AD30: P51 | AE30: =COUNTIF(AB23:AB28078,AE22) -> 9 | AF30: =COUNTIF(AB23:AB28078,AF22) -> 15 | AG30: =COUNTIF(AB23:AB28078,AG22) -> 8 | AH30: =COUNTIF(AB23:AB28078,AH22) -> 5 | AI30: 37 | AJ30: P51 | AK30: 24.32432432 | AL30: 40.54054054 | AM30: 21.62162162 | AN30: 13.51351351 | AO30: 100
R31: HEROES DE LA DEMOCRACIA | S31: 08DES0013M MATUTINO | T31: 080028986S19 | U31: 1 | V31: 4 | W31: 2 | X31: 4 | Y31: 1 | Z31: 3 | AA31: 3 | AB31: 3
R32: HEROES DE LA DEMOCRACIA | S32: 08DES0013M MATUTINO | T32: 080028987S19 | U32: 4 | V32: 1 | W32: 1 | X32: 3 | Y32: 1 | Z32: 4 | AA32: 4 | AB32: 4
R33: HEROES DE LA DEMOCRACIA | S33: 08DES0013M MATUTINO | T33: 080028988S19 | U33: 1 | V33: 4 | W33: 1 | X33: 2 | Y33: 1 | Z33: 3 | AA33: 3 | AB33: 3
R34: HEROES DE LA DEMOCRACIA | S34: 08DES0013M MATUTINO | T34: 080028989S19 | U34: 4 | V34: 2 | W34: 1 | X34: 1 | Y34: 1 | Z34: 4 | AA34: 4 | AB34: 2
R35: HEROES DE LA DEMOCRACIA | S35: 08DES0013M MATUTINO | T35: 080028990S19 | U35: 4 | V35: 1 | W35: 1 | X35: 1 | Y35: 3 | Z35: 4 | AA35: 1 | AB35: 2
R36: HEROES DE LA DEMOCRACIA | S36: 08DES0013M MATUTINO | T36: 080028991S19 | U36: 1 | V36: 2 | W36: 1 | X36: 3 | Y36: 3 | Z36: 3 | AA36: 3 | AB36: 2
R37: HEROES DE LA DEMOCRACIA | S37: 08DES0013M MATUTINO | T37: 080028992S19 | U37: 4 | V37: 2 | W37: 1 | X37: 2 | Y37: 3 | Z37: 3 | AA37: 2 | AB37: 3
R38: HEROES DE LA DEMOCRACIA | S38: 08DES0013M MATUTINO | T38: 080028993S19 | U38: 4 | V38: 1 | W38: 1 | X38: 1 | Y38: 2 | Z38: 2 | AA38: 3 | AB38: 1
R39: HEROES DE LA DEMOCRACIA | S39: 08DES0013M MATUTINO | T39: 080028995S19 | U39: 4 | V39: 1 | W39: 2 | X39: 4 | Y39: 3 | Z39: 2 | AA39: 3 | AB39: 4
R40: HEROES DE LA DEMOCRACIA | S40: 08DES0013M MATUTINO | T40: 080028996S19 | U40: 4 | V40: 1 | W40: 3 | X40: 2 | Y40: 4 | Z40: 4 | AA40: 1 | AB40: 1
R41: HEROES DE LA DEMOCRACIA | S41: 08DES0013M MATUTINO | T41: 080028997S19 | U41: 1 | V41: 2 | W41: 2 | X41: 2 | Y41: 2 | Z41: 3 | AA41: 3 | AB41: 1
R42: HEROES DE LA DEMOCRACIA | S42: 08DES0013M MATUTINO | T42: 080028998S19 | U42: 1 | V42: 3 | W42: 4 | X42: 2 | Y42: 2 | Z42: 3 | AA42: 2 | AB42: 4
R43: HEROES DE LA DEMOCRACIA | S43: 08DES0013M MATUTINO | T43: 080028999S19 | U43: 4 | V43: 3 | W43: 1 | X43: 2 | Y43: 3 | Z43: 2 | AA43: 1 | AB43: 3
R44: HEROES DE LA DEMOCRACIA | S44: 08DES0013M MATUTINO | T44: 080029000S19 | U44: 2 | V44: 3 | W44: 2 | X44: 4 | Y44: 2 | Z44: 4 | AA44: 4 | AB44: 2
R45: HEROES DE LA DEMOCRACIA | S45: 08DES0013M MATUTINO | T45: 080029001S19 | U45: 8 | V45: 8 | W45: 8 | X45: 8 | Y45: 8 | Z45: 8 | AA45: 8 | AB45: 8
R46: HEROES DE LA DEMOCRACIA | S46: 08DES0013M MATUTINO | T46: 080029002S19 | U46: 4 | V46: 2 | W46: 3 | X46: 1 | Y46: 2 | Z46: 4 | AA46: 1 | AB46: 1
R47: HEROES DE LA DEMOCRACIA | S47: 08DES0013M MATUTINO | T47: 080029003S19 | U47: 2 | V47: 8 | W47: 3 | X47: 2 | Y47: 3 | Z47: 2 | AA47: 1 | AB47: 3
R48: HEROES DE LA DEMOCRACIA | S48: 08DES0013M MATUTINO | T48: 080029004S19 | U48: 4 | V48: 2 | W48: 2 | X48: 1 | Y48: 1 | Z48: 1 | AA48: 2 | AB48: 1
R49: HEROES DE LA DEMOCRACIA | S49: 08DES0013M MATUTINO | T49: 080029005S19 | U49: 1 | V49: 2 | W49: 3 | X49: 1 | Y49: 1 | Z49: 2 | AA49: 1 | AB49: 2
R50: HEROES DE LA DEMOCRACIA | S50: 08DES0013M MATUTINO | T50: 080029006S19 | U50: 3 | V50: 2 | W50: 1 | X50: 3 | Y50: 3 | Z50: 4 | AA50: 4 | AB50: 2
R51: HEROES DE LA DEMOCRACIA | S51: 08DES0013M MATUTINO | T51: 080029007S19 | U51: 1 | V51: 2 | W51: 2 | X51: 1 | Y51: 4 | Z51: 3 | AA51: 2 | AB51: 2
R52: HEROES DE LA DEMOCRACIA | S52: 08DES0013M MATUTINO | T52: 080029008S19 | U52: 1 | V52: 2 | W52: 2 | X52: 1 | Y52: 1 | Z52: 1 | AA52: 4 | AB52: 2
R53: HEROES DE LA DEMOCRACIA | S53: 08DES0013M MATUTINO | T53: 080029009S19 | U53: 3 | V53: 2 | W53: 2 | X53: 1 | Y53: 3 | Z53: 2 | AA53: 2 | AB53: 2
R54: HEROES DE LA DEMOCRACIA | S54: 08DES0013M MATUTINO | T54: 080029010S19 | U54: 1 | V54: 2 | W54: 1 | X54: 1 | Y54: 1 | Z54: 3 | AA54: 2 | AB54: 1
R55: HEROES DE LA DEMOCRACIA | S55: 08DES0013M MATUTINO | T55: 080029011S19 | U55: 1 | V55: 2 | W55: 4 | X55: 3 | Y55: 1 | Z55: 1 | AA55: 1 | AB55: 1
R56: HEROES DE LA DEMOCRACIA | S56: 08DES0013M MATUTINO | T56: 080029012S19 | U56: 1 | V56: 2 | W56: 3 | X56: 3 | Y56: 4 | Z56: 4 | AA56: 4 | AB56: 1
R57: HEROES DE LA DEMOCRACIA | S57: 08DES0013M MATUTINO | T57: 080029013S19 | U57: 4 | V57: 3 | W57: 1 | X57: 1 | Y57: 4 | Z57: 3 | AA57: 4 | AB57: 3
R58: HEROES DE LA DEMOCRACIA | S58: 08DES0013M MATUTINO | T58: 080029014S19 | U58: 4 | V58: 3 | W58: 2 | X58: 4 | Y58: 1 | Z58: 3 | AA58: 1 | AB58: 2
R59: HEROES DE LA DEMOCRACIA | S59: 08DES0013M MATUTINO | T59: 080029015S19 | U59: 1 | V59: 2 | W59: 1 | X59: 2 | Y59: 4 | Z59: 2 | AA59: 2 | AB59: 2
R60: HEROES DE LA DEMOCRACIA | S60: 08DES0013M MATUTINO | T60: 080029016S19 | U60: 1 | V60: 2 | W60: 1 | X60: 3 | Y60: 3 | Z60: 3 | AA60: 1 | AB60: 2
R61: HEROES DE LA DEMOCRACIA | S61: 08DES0013M MATUTINO | T61: 080029017S19 | U61: 3 | V61: 2 | W61: 1 | X61: 4 | Y61: 1 | Z61: 3 | AA61: 2 | AB61: 2

Sheet UD_DESARROLLO COMPRENSIÓN GLOBA
A2: Desarrollo de una comprensión global | V2: 6 | W2: B | X2: 2 | Y2: SL6 | Z2: SL6 | AA2: Texto_P_6a9 | AB2: 6 | AC2: Desarrollo de una comprensión global | AD2: Reconstruir la trama de una obra teatral.
V3: 21 | W3: A | X3: 1 | Y3: SL21 | Z3: SL21 | AA3: Texto_P_21a26 | AB3: 21 | AC3: Desarrollo de una comprensión global | AD3: Integrar en un enunciado el tema del ensayo.
V4: 22 | W4: C | X4: 3 | Y4: SL22 | Z4: SL22 | AA4: Texto_P_21a26 | AB4: 22 | AC4: Desarrollo de una comprensión global | AD4: Identificar el propósito del autor de un ensayo.
V5: 34 | W5: B | X5: 2 | Y5: SL34 | Z5: SL34 | AA5: Texto_P_32a35 | AB5: 34 | AC5: Desarrollo de una comprensión global | AD5: Identificar la situación comunicativa en la que se desarrolló la entrevista.
V6: 44 | W6: C | X6: 3 | Y6: SL44 | Z6: SL44 | AA6: Texto_P_44a47 | AB6: 44 | AC6: Desarrollo de una comprensión global | AD6: Identificar el propósito comunicativo del autor en un artículo de opinión.
V7: 45 | W7: D | X7: 4 | Y7: SL45 | Z7: SL45 | AA7: Texto_P_44a47 | AB7: 45 | AC7: Desarrollo de una comprensión global | AD7: Identificar el punto de vista expresado por el autor en el artículo de opinión.
V8: 48 | W8: B | X8: 2 | Y8: SL48 | Z8: SL48 | AA8: Texto_P_48a51 | AB8: 48 | AC8: Desarrollo de una comprensión global | AD8: Reconocer características de personajes míticos.
V9: 49 | W9: A | X9: 1 | Y9: SL49 | Z9: SL49 | AA9: Texto_P_48a51 | AB9: 49 | AC9: Desarrollo de una comprensión global | AD9: Reconocer los hechos recurrentes en dos mitos con el mismo tema.
B16: Reconstruir la trama de una obra teatral. | C16: Integrar en un enunciado el tema del ensayo. | D16: Identificar el propósito del autor de un ensayo. | E16: Identificar la situación comunicativa en la que se desarrolló la entrevista. | F16: Identificar el propósito comunicativo del autor en un artículo de opinión. | G16: Identificar el punto de vista expresado por el autor en el artículo de opinión. | H16: Reconocer características de personajes míticos. | I16: Reconocer los hechos recurrentes en dos mitos con el mismo tema.
B18: nombre_ct | C18: CCT_TURNO | D18: Promedio de LYC_SEC_1_6 | E18: Promedio de LYC_SEC_1_211 | F18: Promedio de LYC_SEC_1_22 | G18: Promedio de LYC_SEC_1_34 | H18: Promedio de LYC_SEC_1_44 | I18: Promedio de LYC_SEC_1_45 | J18: Promedio de LYC_SEC_1_48 | K18: Promedio de LYC_SEC_1_49 | M18: REACTIVOS | N18: 1 | O18: 2 | P18: 3 | Q18: 4 | R18: TOTAL | S18: REACTIVOS | T18: R1 | U18: R2 | V18: R3 | W18: R4 | X18: TOTAL | AA18: nombre_ct | AB18: CCT_TURNO | AC18: nofolio | AD18: Suma de LYC_SEC_19_RESP_6 | AE18: Suma de LYC_SEC_19_RESP_21 | AF18: Suma de LYC_SEC_19_RESP_22 | AG18: Suma de LYC_SEC_19_RESP_34 | AH18: Suma de LYC_SEC_19_RESP_44 | AI18: Suma de LYC_SEC_19_RESP_45 | AJ18: Suma de LYC_SEC_19_RESP_48 | AK18: Suma de LYC_SEC_19_RESP_49
B19: HEROES DE LA DEMOCRACIA | C19: 08DES0013M MATUTINO | D19: 0.3684210526 | E19: 0.7368421053 | F19: 0.6315789474 | G19: 0.5 | H19: 0.1578947368 | I19: 0.2894736842 | J19: 0.4473684211 | K19: 0.4736842105 | M19: 6 | N19: =COUNTIF(AD19:AD28100,N18) -> 9 | O19: =COUNTIF(AD19:AD28100,O18) -> 14 | P19: =COUNTIF(AD19:AD28100,P18) -> 10 | Q19: =COUNTIF(AD19:AD28100,Q18) -> 5 | R19: =SUM(N19:Q19) -> 38 | S19: P6 | T19: =(N19*100)/R19 -> 23.68421053 | U19: =(O19*100)/R19 -> 36.84210526 | V19: =(P19*100)/R19 -> 26.31578947 | W19: =(Q19*100)/R19 -> 13.15789474 | X19: =SUM(T19:W19) -> 100 | AA19: HEROES DE LA DEMOCRACIA | AB19: 08DES0013M MATUTINO | AC19: 080028978S19 | AD19: 1 | AE19: 1 | AF19: 2 | AG19: 2 | AH19: 3 | AI19: 1 | AJ19: 3 | AK19: 2
M20: 21 | N20: =COUNTIF(AE19:AE28101,N18) -> 28 | O20: =COUNTIF(AE19:AE28101,O18) -> 5 | P20: =COUNTIF(AE19:AE28101,P18) -> 1 | Q20: =COUNTIF(AE19:AE28101,Q18) -> 4 | R20: =SUM(N20:Q20) -> 38 | S20: P21 | T20: =(N20*100)/R20 -> 73.68421053 | U20: =(O20*100)/R20 -> 13.15789474 | V20: =(P20*100)/R20 -> 2.631578947 | W20: =(Q20*100)/R20 -> 10.52631579 | X20: =SUM(T20:W20) -> 100 | AA20: HEROES DE LA DEMOCRACIA | AB20: 08DES0013M MATUTINO | AC20: 080028979S19 | AD20: 2 | AE20: 1 | AF20: 3 | AG20: 2 | AH20: 3 | AI20: 3 | AJ20: 2 | AK20: 1
M21: 22 | N21: =COUNTIF(AF19:AF28102,N18) -> 2 | O21: =COUNTIF(AF19:AF28102,O18) -> 6 | P21: =COUNTIF(AF19:AF28102,P18) -> 24 | Q21: =COUNTIF(AF19:AF28102,Q18) -> 6 | R21: 38 | S21: P22 | T21: 5.263157895 | U21: 15.78947368 | V21: 63.15789474 | W21: 15.78947368 | X21: 100 | AA21: HEROES DE LA DEMOCRACIA | AB21: 08DES0013M MATUTINO | AC21: 080028980S19 | AD21: 2 | AE21: 1 | AF21: 3 | AG21: 2 | AH21: 3 | AI21: 4 | AJ21: 2 | AK21: 1
M22: 34 | N22: =COUNTIF(AG19:AG228103,N18) -> 5 | O22: =COUNTIF(AG19:AG228103,O18) -> 19 | P22: =COUNTIF(AG19:AG228103,P18) -> 10 | Q22: =COUNTIF(AG19:AG228103,Q18) -> 4 | R22: 38 | S22: P34 | T22: 13.15789474 | U22: 50 | V22: 26.31578947 | W22: 10.52631579 | X22: 100 | AA22: HEROES DE LA DEMOCRACIA | AB22: 08DES0013M MATUTINO | AC22: 080028981S19 | AD22: 3 | AE22: 1 | AF22: 4 | AG22: 3 | AH22: 1 | AI22: 2 | AJ22: 1 | AK22: 4
M23: 44 | N23: =COUNTIF(AH19:AH28104,N18) -> 16 | O23: =COUNTIF(AH19:AH28104,O18) -> 10 | P23: =COUNTIF(AH19:AH28104,P18) -> 6 | Q23: =COUNTIF(AH19:AH28104,Q18) -> 6 | R23: 38 | S23: P44 | T23: 42.10526316 | U23: 26.31578947 | V23: 15.78947368 | W23: 15.78947368 | X23: 100 | AA23: HEROES DE LA DEMOCRACIA | AB23: 08DES0013M MATUTINO | AC23: 080028982S19 | AD23: 1 | AE23: 1 | AF23: 4 | AG23: 4 | AH23: 1 | AI23: 1 | AJ23: 1 | AK23: 1
M24: 45 | N24: =COUNTIF(AI19:AI28105,N18) -> 6 | O24: =COUNTIF(AI19:AI28105,O18) -> 9 | P24: =COUNTIF(AI19:AI28105,P18) -> 12 | Q24: =COUNTIF(AI19:AI28105,Q18) -> 11 | R24: 38 | S24: P45 | T24: 15.78947368 | U24: 23.68421053 | V24: 31.57894737 | W24: 28.94736842 | X24: 100 | AA24: HEROES DE LA DEMOCRACIA | AB24: 08DES0013M MATUTINO | AC24: 080028983S19 | AD24: 2 | AE24: 1 | AF24: 3 | AG24: 2 | AH24: 1 | AI24: 1 | AJ24: 1 | AK24: 1
M25: 48 | N25: =COUNTIF(AJ19:AJ28106,N18) -> 12 | O25: =COUNTIF(AJ19:AJ28106,O18) -> 17 | P25: =COUNTIF(AJ19:AJ28106,P18) -> 5 | Q25: =COUNTIF(AJ19:AJ28106,Q18) -> 4 | R25: 38 | S25: P48 | T25: 31.57894737 | U25: 44.73684211 | V25: 13.15789474 | W25: 10.52631579 | X25: 100 | AA25: HEROES DE LA DEMOCRACIA | AB25: 08DES0013M MATUTINO | AC25: 080028984S19 | AD25: 3 | AE25: 4 | AF25: 4 | AG25: 2 | AH25: 2 | AI25: 1 | AJ25: 3 | AK25: 1
M26: 49 | N26: =COUNTIF(AK19:AK28107,N18) -> 18 | O26: =COUNTIF(AK19:AK28107,O18) -> 5 | P26: =COUNTIF(AK19:AK28107,P18) -> 6 | Q26: =COUNTIF(AK19:AK28107,Q18) -> 9 | R26: 38 | S26: P49 | T26: 47.36842105 | U26: 13.15789474 | V26: 15.78947368 | W26: 23.68421053 | X26: 100 | AA26: HEROES DE LA DEMOCRACIA | AB26: 08DES0013M MATUTINO | AC26: 080028985S19 | AD26: 3 | AE26: 4 | AF26: 3 | AG26: 4 | AH26: 2 | AI26: 4 | AJ26: 3 | AK26: 1
AA27: HEROES DE LA DEMOCRACIA | AB27: 08DES0013M MATUTINO | AC27: 080028986S19 | AD27: 4 | AE27: 1 | AF27: 3 | AG27: 2 | AH27: 1 | AI27: 3 | AJ27: 2 | AK27: 1
AA28: HEROES DE LA DEMOCRACIA | AB28: 08DES0013M MATUTINO | AC28: 080028987S19 | AD28: 2 | AE28: 1 | AF28: 3 | AG28: 2 | AH28: 3 | AI28: 1 | AJ28: 3 | AK28: 2
AA29: HEROES DE LA DEMOCRACIA | AB29: 08DES0013M MATUTINO | AC29: 080028988S19 | AD29: 4 | AE29: 3 | AF29: 2 | AG29: 2 | AH29: 2 | AI29: 4 | AJ29: 2 | AK29: 2
AA30: HEROES DE LA DEMOCRACIA | AB30: 08DES0013M MATUTINO | AC30: 080028989S19 | AD30: 3 | AE30: 1 | AF30: 3 | AG30: 1 | AH30: 1 | AI30: 3 | AJ30: 1 | AK30: 1
AA31: HEROES DE LA DEMOCRACIA | AB31: 08DES0013M MATUTINO | AC31: 080028990S19 | AD31: 3 | AE31: 2 | AF31: 4 | AG31: 1 | AH31: 1 | AI31: 2 | AJ31: 2 | AK31: 1
AA32: HEROES DE LA DEMOCRACIA | AB32: 08DES0013M MATUTINO | AC32: 080028991S19 | AD32: 4 | AE32: 1 | AF32: 3 | AG32: 2 | AH32: 1 | AI32: 2 | AJ32: 2 | AK32: 4
AA33: HEROES DE LA DEMOCRACIA | AB33: 08DES0013M MATUTINO | AC33: 080028992S19 | AD33: 3 | AE33: 4 | AF33: 2 | AG33: 2 | AH33: 4 | AI33: 2 | AJ33: 4 | AK33: 1
AA34: HEROES DE LA DEMOCRACIA | AB34: 08DES0013M MATUTINO | AC34: 080028993S19 | AD34: 2 | AE34: 4 | AF34: 4 | AG34: 2 | AH34: 1 | AI34: 3 | AJ34: 2 | AK34: 2
AA35: HEROES DE LA DEMOCRACIA | AB35: 08DES0013M MATUTINO | AC35: 080028995S19 | AD35: 2 | AE35: 2 | AF35: 3 | AG35: 3 | AH35: 3 | AI35: 2 | AJ35: 1 | AK35: 3
AA36: HEROES DE LA DEMOCRACIA | AB36: 08DES0013M MATUTINO | AC36: 080028996S19 | AD36: 4 | AE36: 1 | AF36: 2 | AG36: 3 | AH36: 2 | AI36: 3 | AJ36: 1 | AK36: 4
AA37: HEROES DE LA DEMOCRACIA | AB37: 08DES0013M MATUTINO | AC37: 080028997S19 | AD37: 1 | AE37: 1 | AF37: 3 | AG37: 2 | AH37: 4 | AI37: 4 | AJ37: 1 | AK37: 4
AA38: HEROES DE LA DEMOCRACIA | AB38: 08DES0013M MATUTINO | AC38: 080028998S19 | AD38: 1 | AE38: 1 | AF38: 3 | AG38: 2 | AH38: 4 | AI38: 3 | AJ38: 2 | AK38: 1
AA39: HEROES DE LA DEMOCRACIA | AB39: 08DES0013M MATUTINO | AC39: 080028999S19 | AD39: 3 | AE39: 1 | AF39: 3 | AG39: 4 | AH39: 4 | AI39: 4 | AJ39: 3 | AK39: 1
AA40: HEROES DE LA DEMOCRACIA | AB40: 08DES0013M MATUTINO | AC40: 080029000S19 | AD40: 2 | AE40: 1 | AF40: 3 | AG40: 3 | AH40: 4 | AI40: 2 | AJ40: 2 | AK40: 2
AA41: HEROES DE LA DEMOCRACIA | AB41: 08DES0013M MATUTINO | AC41: 080029001S19 | AD41: 8 | AE41: 8 | AF41: 8 | AG41: 8 | AH41: 8 | AI41: 8 | AJ41: 8 | AK41: 8
AA42: HEROES DE LA DEMOCRACIA | AB42: 08DES0013M MATUTINO | AC42: 080029002S19 | AD42: 2 | AE42: 2 | AF42: 3 | AG42: 2 | AH42: 2 | AI42: 3 | AJ42: 1 | AK42: 4
AA43: HEROES DE LA DEMOCRACIA | AB43: 08DES0013M MATUTINO | AC43: 080029003S19 | AD43: 3 | AE43: 2 | AF43: 1 | AG43: 3 | AH43: 2 | AI43: 3 | AJ43: 1 | AK43: 3
AA44: HEROES DE LA DEMOCRACIA | AB44: 08DES0013M MATUTINO | AC44: 080029004S19 | AD44: 2 | AE44: 1 | AF44: 3 | AG44: 3 | AH44: 1 | AI44: 4 | AJ44: 2 | AK44: 4
AA45: HEROES DE LA DEMOCRACIA | AB45: 08DES0013M MATUTINO | AC45: 080029005S19 | AD45: 1 | AE45: 1 | AF45: 1 | AG45: 3 | AH45: 2 | AI45: 3 | AJ45: 2 | AK45: 3
AA46: HEROES DE LA DEMOCRACIA | AB46: 08DES0013M MATUTINO | AC46: 080029006S19 | AD46: 3 | AE46: 1 | AF46: 3 | AG46: 1 | AH46: 1 | AI46: 2 | AJ46: 4 | AK46: 1
AA47: HEROES DE LA DEMOCRACIA | AB47: 08DES0013M MATUTINO | AC47: 080029007S19 | AD47: 1 | AE47: 1 | AF47: 3 | AG47: 3 | AH47: 1 | AI47: 4 | AJ47: 2 | AK47: 1
AA48: HEROES DE LA DEMOCRACIA | AB48: 08DES0013M MATUTINO | AC48: 080029008S19 | AD48: 2 | AE48: 1 | AF48: 3 | AG48: 2 | AH48: 2 | AI48: 3 | AJ48: 2 | AK48: 4
AA49: HEROES DE LA DEMOCRACIA | AB49: 08DES0013M MATUTINO | AC49: 080029009S19 | AD49: 3 | AE49: 1 | AF49: 3 | AG49: 4 | AH49: 2 | AI49: 1 | AJ49: 4 | AK49: 4
AA50: HEROES DE LA DEMOCRACIA | AB50: 08DES0013M MATUTINO | AC50: 080029010S19 | AD50: 2 | AE50: 1 | AF50: 3 | AG50: 3 | AH50: 4 | AI50: 4 | AJ50: 2 | AK50: 1
AA51: HEROES DE LA DEMOCRACIA | AB51: 08DES0013M MATUTINO | AC51: 080029011S19 | AD51: 2 | AE51: 2 | AF51: 4 | AG51: 3 | AH51: 1 | AI51: 3 | AJ51: 1 | AK51: 3
AA52: HEROES DE LA DEMOCRACIA | AB52: 08DES0013M MATUTINO | AC52: 080029012S19 | AD52: 1 | AE52: 1 | AF52: 2 | AG52: 1 | AH52: 3 | AI52: 2 | AJ52: 2 | AK52: 1
AA53: HEROES DE LA DEMOCRACIA | AB53: 08DES0013M MATUTINO | AC53: 080029013S19 | AD53: 4 | AE53: 1 | AF53: 2 | AG53: 2 | AH53: 1 | AI53: 4 | AJ53: 4 | AK53: 4
AA54: HEROES DE LA DEMOCRACIA | AB54: 08DES0013M MATUTINO | AC54: 080029014S19 | AD54: 1 | AE54: 1 | AF54: 3 | AG54: 2 | AH54: 1 | AI54: 2 | AJ54: 2 | AK54: 1
AA55: HEROES DE LA DEMOCRACIA | AB55: 08DES0013M MATUTINO | AC55: 080029015S19 | AD55: 2 | AE55: 1 | AF55: 3 | AG55: 2 | AH55: 1 | AI55: 4 | AJ55: 1 | AK55: 3
AA56: HEROES DE LA DEMOCRACIA | AB56: 08DES0013M MATUTINO | AC56: 080029016S19 | AD56: 2 | AE56: 1 | AF56: 3 | AG56: 2 | AH56: 2 | AI56: 3 | AJ56: 2 | AK56: 1
AA57: HEROES DE LA DEMOCRACIA | AB57: 08DES0013M MATUTINO | AC57: 080029017S19 | AD57: 1 | AE57: 1 | AF57: 3 | AG57: 1 | AH57: 1 | AI57: 4 | AJ57: 1 | AK57: 3
L58: 6 | M58: Desarrollo de una comprensión global | N58: Reconstruir la trama de una obra teatral.
L59: 21 | M59: Desarrollo de una comprensión global | N59: Integrar en un enunciado el tema del ensayo.
L60: 22 | M60: Desarrollo de una comprensión global | N60: Identificar el propósito del autor de un ensayo.
L61: 34 | M61: Desarrollo de una comprensión global | N61: Identificar la situación comunicativa en la que se desarrolló la entrevista.
L62: 44 | M62: Desarrollo de una comprensión global | N62: Identificar el propósito comunicativo del autor en un artículo de opinión.
L63: 45 | M63: Desarrollo de una comprensión global | N63: Identificar el punto de vista expresado por el autor en el artículo de opinión.
L64: 48 | M64: Desarrollo de una comprensión global | N64: Reconocer características de personajes míticos.
L65: 49 | M65: Desarrollo de una comprensión global | N65: Reconocer los hechos recurrentes en dos mitos con el mismo tema.

Sheet UD_DESARROLLO INTERPRETACIÓN
B1: Desarrollo de una interpretación
J2: 1 | K2: B | L2: 2 | M2: SECUNDARIA | N2: LENGUAJE Y COMUNICACIÓN | O2: SL1 | P2: SL1 | Q2: Texto_P_1a4 | R2: 1 | S2: Desarrollo de una interpretación | T2: Interpretar el significado de una norma.
J3: 3 | K3: D | L3: 4 | M3: SECUNDARIA | N3: LENGUAJE Y COMUNICACIÓN | O3: SL3 | P3: SL3 | Q3: Texto_P_1a4 | R3: 3 | S3: Desarrollo de una interpretación | T3: Identificar el derecho que se establece en una norma.
J4: 5 | K4: A | L4: 1 | M4: SECUNDARIA | N4: LENGUAJE Y COMUNICACIÓN | O4: SL5 | P4: SL5 | Q4: INDEPENDIENTE | R4: 5 | S4: Desarrollo de una interpretación | T4: Identificar el propósito de un guion de entrevista.
J5: 7 | K5: B | L5: 2 | M5: SECUNDARIA | N5: LENGUAJE Y COMUNICACIÓN | O5: SL7 | P5: SL7 | Q5: Texto_P_6a9 | R5: 7 | S5: Desarrollo de una interpretación | T5: Identificar el ambiente de un fragmento de una obra de teatro.
J6: 8 | K6: D | L6: 4 | M6: SECUNDARIA | N6: LENGUAJE Y COMUNICACIÓN | O6: SL8 | P6: SL8 | Q6: Texto_P_6a9 | R6: 8 | S6: Desarrollo de una interpretación | T6: Identificar las acciones de los personajes de acuerdo a la época en la que sucede la historia.
J7: 18 | K7: A | L7: 1 | M7: SECUNDARIA | N7: LENGUAJE Y COMUNICACIÓN | O7: SL18 | P7: SL18 | Q7: Texto_P_18a20 | R7: 18 | S7: Desarrollo de una interpretación | T7: Elegir la pregunta que sirvió de base para construir la gráfica.
J8: 19 | K8: B | L8: 2 | M8: SECUNDARIA | N8: LENGUAJE Y COMUNICACIÓN | O8: SL19 | P8: SL19 | Q8: Texto_P_18a20 | R8: 19 | S8: Desarrollo de una interpretación | T8: Elegir los datos adecuados para la organización de una tabla a partir de la lectura de una gráfica.
J9: 20 | K9: B | L9: 2 | M9: SECUNDARIA | N9: LENGUAJE Y COMUNICACIÓN | O9: SL20 | P9: SL20 | Q9: Texto_P_18a20 | R9: 20 | S9: Desarrollo de una interpretación | T9: Identificar la información que añade un dato específico a una gráfica.
J10: 23 | K10: D | L10: 4 | M10: SECUNDARIA | N10: LENGUAJE Y COMUNICACIÓN | O10: SL23 | P10: SL23 | Q10: Texto_P_21a26 | R10: 23 | S10: Desarrollo de una interpretación | T10: Identificar punto de vista del autor de un ensayo.
J11: 25 | K11: A | L11: 1 | M11: SECUNDARIA | N11: LENGUAJE Y COMUNICACIÓN | O11: SL25 | P11: SL25 | Q11: Texto_P_21a26 | R11: 25 | S11: Desarrollo de una interpretación | T11: Sintetizar la conclusión del autor del ensayo.
J12: 26 | K12: D | L12: 4 | M12: SECUNDARIA | N12: LENGUAJE Y COMUNICACIÓN | O12: SL26 | P12: SL26 | Q12: Texto_P_21a26 | R12: 26 | S12: Desarrollo de una interpretación | T12: Identificar la secuencia argumentativa en un ensayo.
J13: 27 | K13: C | L13: 3 | M13: SECUNDARIA | N13: LENGUAJE Y COMUNICACIÓN | O13: SL27 | P13: SL27 | Q13: Texto_P_27a31 | R13: 27 | S13: Desarrollo de una interpretación | T13: Seleccionar el diálogo adecuado para un personaje a partir de una biografía.
J14: 30 | K14: A | L14: 1 | M14: SECUNDARIA | N14: LENGUAJE Y COMUNICACIÓN | O14: SL30 | P14: SL30 | Q14: Texto_P_27a31 | R14: 30 | S14: Desarrollo de una interpretación | T14: Seleccionar, a partir de un texto narrativo, acotaciones para la representación de un actor en una obra teatral.
J15: 37 | K15: D | L15: 4 | M15: SECUNDARIA | N15: LENGUAJE Y COMUNICACIÓN | O15: SL37 | P15: SL37 | Q15: Texto_P_36a39 | R15: 37 | S15: Desarrollo de una interpretación | T15: Identificar preguntas pertinentes y no pertinentes de acuerdo al objetivo de una encuesta.
J16: 39 | K16: D | L16: 4 | M16: SECUNDARIA | N16: LENGUAJE Y COMUNICACIÓN | O16: SL39 | P16: SL39 | Q16: Texto_P_36a39 | R16: 39 | S16: Desarrollo de una interpretación | T16: Seleccionar la pregunta que permite obtener información específica.
J17: 47 | K17: D | L17: 4 | M17: SECUNDARIA | N17: LENGUAJE Y COMUNICACIÓN | O17: SL47 | P17: SL47 | Q17: Texto_P_44a47 | R17: 47 | S17: Desarrollo de una interpretación | T17: Reconocer la conclusión que deriva el autor después de su planteamiento
B19: nombre_ct | C19: CCT_TURNO | D19: Promedio de LYC_SEC_1_1 | E19: Promedio de LYC_SEC_1_3 | F19: Promedio de LYC_SEC_1_5 | G19: Promedio de LYC_SEC_1_7 | H19: Promedio de LYC_SEC_1_8 | I19: Promedio de LYC_SEC_1_18 | J19: Promedio de LYC_SEC_1_19 | K19: Promedio de LYC_SEC_1_20 | L19: Promedio de LYC_SEC_1_23 | M19: Promedio de LYC_SEC_1_25 | N19: Promedio de LYC_SEC_1_26 | O19: Promedio de LYC_SEC_1_27 | P19: Promedio de LYC_SEC_1_30 | Q19: Promedio de LYC_SEC_1_37 | R19: Promedio de LYC_SEC_1_39 | S19: Promedio de LYC_SEC_1_47 | V19: nombre_ct | W19: CCT_TURNO | X19: nofolio | Y19: Suma de LYC_SEC_19_RESP_1 | Z19: Suma de LYC_SEC_19_RESP_3 | AA19: Suma de LYC_SEC_19_RESP_5 | AB19: Suma de LYC_SEC_19_RESP_7 | AC19: Suma de LYC_SEC_19_RESP_8 | AD19: Suma de LYC_SEC_19_RESP_18 | AE19: Suma de LYC_SEC_19_RESP_19 | AF19: Suma de LYC_SEC_19_RESP_20 | AG19: Suma de LYC_SEC_19_RESP_23 | AH19: Suma de LYC_SEC_19_RESP_25 | AI19: Suma de LYC_SEC_19_RESP_26 | AJ19: Suma de LYC_SEC_19_RESP_27 | AK19: Suma de LYC_SEC_19_RESP_30 | AL19: Suma de LYC_SEC_19_RESP_37 | AM19: Suma de LYC_SEC_19_RESP_39 | AN19: Suma de LYC_SEC_19_RESP_47 | AP19: REACTIVOS | AQ19: 1 | AR19: 2 | AS19: 3 | AT19: 4 | AU19: TOTAL | AV19: REACTIVOS | AW19: R1 | AX19: R2 | AY19: R3 | AZ19: R4 | BA19: TOTAL
B20: HEROES DE LA DEMOCRACIA | C20: 08DES0013M MATUTINO | D20: 0.5526315789 | E20: 0.02631578947 | F20: 0.7368421053 | G20: 0.4473684211 | H20: 0.2631578947 | I20: 0.6052631579 | J20: 0.5263157895 | K20: 0.6052631579 | L20: 0.6052631579 | M20: 0.3421052632 | N20: 0.2631578947 | O20: 0.2894736842 | P20: 0.4210526316 | Q20: 0.5789473684 | R20: 0.5263157895 | S20: 0.2105263158 | V20: HEROES DE LA DEMOCRACIA | W20: 08DES0013M MATUTINO | X20: 080028978S19 | Y20: 3 | Z20: 3 | AA20: 1 | AB20: 2 | AC20: 3 | AD20: 1 | AE20: 2 | AF20: 2 | AG20: 3 | AH20: 1 | AI20: 2 | AJ20: 1 | AK20: 2 | AL20: 4 | AM20: 3 | AN20: 1 | AP20: SL1 | AQ20: =COUNTIF(Y20:Y28100,AQ19) -> 5 | AR20: =COUNTIF(Y20:Y28100,AR19) -> 21 | AS20: =COUNTIF(Y20:Y28100,AS19) -> 11 | AT20: =COUNTIF(Y20:Y28100,AT19) -> 1 | AU20: =SUM(AQ20:AT20) -> 38 | AV20: SL1 | AW20: =(AQ20*100)/AU20 -> 13.15789474 | AX20: =(AR20*100)/AU20 -> 55.26315789 | AY20: =(AS20*100)/AU20 -> 28.94736842 | AZ20: =(AT20*100)/AU20 -> 2.631578947 | BA20: =SUM(AW20:AZ20) -> 100
V21: HEROES DE LA DEMOCRACIA | W21: 08DES0013M MATUTINO | X21: 080028979S19 | Y21: 2 | Z21: 3 | AA21: 1 | AB21: 2 | AC21: 4 | AD21: 2 | AE21: 2 | AF21: 2 | AG21: 4 | AH21: 2 | AI21: 4 | AJ21: 3 | AK21: 1 | AL21: 4 | AM21: 4 | AN21: 4 | AP21: SL3 | AQ21: =COUNTIF(Z20:Z28101,AQ19) -> 28 | AR21: =COUNTIF(Z20:Z28101,AR19) -> 2 | AS21: =COUNTIF(Z20:Z28101,AS19) -> 7 | AT21: =COUNTIF(Z20:Z28101,AT19) -> 1 | AU21: =SUM(AQ21:AT21) -> 38 | AV21: SL3 | AW21: =(AQ21*100)/AU21 -> 73.68421053 | AX21: =(AR21*100)/AU21 -> 5.263157895 | AY21: =(AS21*100)/AU21 -> 18.42105263 | AZ21: =(AT21*100)/AU21 -> 2.631578947 | BA21: =SUM(AW21:AZ21) -> 100
V22: HEROES DE LA DEMOCRACIA | W22: 08DES0013M MATUTINO | X22: 080028980S19 | Y22: 2 | Z22: 1 | AA22: 1 | AB22: 2 | AC22: 4 | AD22: 1 | AE22: 2 | AF22: 2 | AG22: 4 | AH22: 1 | AI22: 2 | AJ22: 1 | AK22: 1 | AL22: 4 | AM22: 4 | AN22: 2 | AP22: SL5 | AQ22: =COUNTIF(AA20:AA28102,AQ19) -> 28 | AR22: =COUNTIF(AA20:AA28102,AR19) -> 3 | AS22: =COUNTIF(AA20:AA28102,AS19) -> 3 | AT22: =COUNTIF(AA20:AA28102,AT19) -> 4 | AU22: 38 | AV22: SL5 | AW22: 73.68421053 | AX22: 7.894736842 | AY22: 7.894736842 | AZ22: 10.52631579 | BA22: 100
V23: HEROES DE LA DEMOCRACIA | W23: 08DES0013M MATUTINO | X23: 080028981S19 | Y23: 1 | Z23: 1 | AA23: 1 | AB23: 3 | AC23: 1 | AD23: 2 | AE23: 3 | AF23: 2 | AG23: 1 | AH23: 4 | AI23: 4 | AJ23: 1 | AK23: 1 | AL23: 1 | AM23: 1 | AN23: 3 | AP23: SL7 | AQ23: =COUNTIF(AB20:AB28103,AQ19) -> 5 | AR23: =COUNTIF(AB20:AB28103,AR19) -> 17 | AS23: =COUNTIF(AB20:AB28103,AS19) -> 13 | AT23: =COUNTIF(AB20:AB28103,AT19) -> 3 | AU23: 38 | AV23: SL7 | AW23: 13.15789474 | AX23: 44.73684211 | AY23: 34.21052632 | AZ23: 7.894736842 | BA23: 100
V24: HEROES DE LA DEMOCRACIA | W24: 08DES0013M MATUTINO | X24: 080028982S19 | Y24: 2 | Z24: 1 | AA24: 1 | AB24: 2 | AC24: 1 | AD24: 1 | AE24: 1 | AF24: 2 | AG24: 2 | AH24: 2 | AI24: 3 | AJ24: 1 | AK24: 2 | AL24: 4 | AM24: 1 | AN24: 2 | AP24: SL8 | AQ24: =COUNTIF(AC20:AC28104,AQ19) -> 14 | AR24: =COUNTIF(AC20:AC28104,AR19) -> 8 | AS24: =COUNTIF(AC20:AC28104,AS19) -> 6 | AT24: =COUNTIF(AC20:AC28104,AT19) -> 10 | AU24: 38 | AV24: SL8 | AW24: 36.84210526 | AX24: 21.05263158 | AY24: 15.78947368 | AZ24: 26.31578947 | BA24: 100
V25: HEROES DE LA DEMOCRACIA | W25: 08DES0013M MATUTINO | X25: 080028983S19 | Y25: 1 | Z25: 3 | AA25: 1 | AB25: 3 | AC25: 1 | AD25: 3 | AE25: 1 | AF25: 1 | AG25: 4 | AH25: 1 | AI25: 1 | AJ25: 4 | AK25: 1 | AL25: 3 | AM25: 3 | AN25: 2 | AP25: SL18 | AQ25: =COUNTIF(AD20:AD28105,AQ19) -> 23 | AR25: =COUNTIF(AD20:AD28105,AR19) -> 9 | AS25: =COUNTIF(AD20:AD28105,AS19) -> 6 | AT25: =COUNTIF(AD20:AD28105,AT19) -> 0 | AU25: 38 | AV25: SL18 | AW25: 60.52631579 | AX25: 23.68421053 | AY25: 15.78947368 | AZ25: 0 | BA25: 100
V26: HEROES DE LA DEMOCRACIA | W26: 08DES0013M MATUTINO | X26: 080028984S19 | Y26: 3 | Z26: 1 | AA26: 1 | AB26: 1 | AC26: 3 | AD26: 2 | AE26: 1 | AF26: 2 | AG26: 3 | AH26: 2 | AI26: 1 | AJ26: 2 | AK26: 1 | AL26: 3 | AM26: 4 | AN26: 2 | AP26: SL19 | AQ26: =COUNTIF(AE20:AE28106,AQ19) -> 5 | AR26: =COUNTIF(AE20:AE28106,AR19) -> 20 | AS26: =COUNTIF(AE20:AE28106,AS19) -> 10 | AT26: =COUNTIF(AE20:AE28106,AT19) -> 3 | AU26: 38 | AV26: SL19 | AW26: 13.15789474 | AX26: 52.63157895 | AY26: 26.31578947 | AZ26: 7.894736842 | BA26: 100
V27: HEROES DE LA DEMOCRACIA | W27: 08DES0013M MATUTINO | X27: 080028985S19 | Y27: 4 | Z27: 1 | AA27: 2 | AB27: 2 | AC27: 4 | AD27: 1 | AE27: 2 | AF27: 3 | AG27: 2 | AH27: 2 | AI27: 1 | AJ27: 1 | AK27: 3 | AL27: 1 | AM27: 2 | AN27: 4 | AP27: SL20 | AQ27: =COUNTIF(AF20:AF28107,AQ19) -> 6 | AR27: =COUNTIF(AF20:AF28107,AR19) -> 23 | AS27: =COUNTIF(AF20:AF28107,AS19) -> 8 | AT27: =COUNTIF(AF20:AF28107,AT19) -> 1 | AU27: 38 | AV27: SL20 | AW27: 15.78947368 | AX27: 60.52631579 | AY27: 21.05263158 | AZ27: 2.631578947 | BA27: 100
V28: HEROES DE LA DEMOCRACIA | W28: 08DES0013M MATUTINO | X28: 080028986S19 | Y28: 2 | Z28: 4 | AA28: 1 | AB28: 3 | AC28: 4 | AD28: 1 | AE28: 4 | AF28: 2 | AG28: 4 | AH28: 1 | AI28: 4 | AJ28: 2 | AK28: 1 | AL28: 4 | AM28: 4 | AN28: 1 | AP28: SL23 | AQ28: =COUNTIF(AG20:AG28108,AQ19) -> 3 | AR28: =COUNTIF(AG20:AG28108,AR19) -> 6 | AS28: =COUNTIF(AG20:AG28108,AS19) -> 6 | AT28: =COUNTIF(AG20:AG28108,AT19) -> 23 | AU28: 38 | AV28: SL23 | AW28: 7.894736842 | AX28: 15.78947368 | AY28: 15.78947368 | AZ28: 60.52631579 | BA28: 100
V29: HEROES DE LA DEMOCRACIA | W29: 08DES0013M MATUTINO | X29: 080028987S19 | Y29: 2 | Z29: 3 | AA29: 4 | AB29: 3 | AC29: 4 | AD29: 1 | AE29: 3 | AF29: 1 | AG29: 4 | AH29: 1 | AI29: 1 | AJ29: 2 | AK29: 3 | AL29: 4 | AM29: 4 | AN29: 1 | AP29: SL25 | AQ29: =COUNTIF(AH20:AH28109,AQ19) -> 13 | AR29: =COUNTIF(AH20:AH28109,AR19) -> 16 | AS29: =COUNTIF(AH20:AH28109,AS19) -> 4 | AT29: =COUNTIF(AH20:AH28109,AT19) -> 5 | AU29: 38 | AV29: SL25 | AW29: 34.21052632 | AX29: 42.10526316 | AY29: 10.52631579 | AZ29: 13.15789474 | BA29: 100
V30: HEROES DE LA DEMOCRACIA | W30: 08DES0013M MATUTINO | X30: 080028988S19 | Y30: 2 | Z30: 1 | AA30: 1 | AB30: 3 | AC30: 4 | AD30: 1 | AE30: 1 | AF30: 2 | AG30: 4 | AH30: 1 | AI30: 2 | AJ30: 3 | AK30: 1 | AL30: 4 | AM30: 4 | AN30: 3 | AP30: SL26 | AQ30: =COUNTIF(AI20:AI28110,AQ19) -> 15 | AR30: =COUNTIF(AI20:AI28110,AR19) -> 9 | AS30: =COUNTIF(AI20:AI28110,AS19) -> 4 | AT30: =COUNTIF(AI20:AI28110,AT19) -> 10 | AU30: 38 | AV30: SL26 | AW30: 39.47368421 | AX30: 23.68421053 | AY30: 10.52631579 | AZ30: 26.31578947 | BA30: 100
V31: HEROES DE LA DEMOCRACIA | W31: 08DES0013M MATUTINO | X31: 080028989S19 | Y31: 2 | Z31: 1 | AA31: 2 | AB31: 1 | AC31: 3 | AD31: 2 | AE31: 3 | AF31: 3 | AG31: 4 | AH31: 3 | AI31: 2 | AJ31: 3 | AK31: 2 | AL31: 3 | AM31: 3 | AN31: 3 | AP31: SL27 | AQ31: =COUNTIF(AJ20:AJ28111,AQ19) -> 12 | AR31: =COUNTIF(AJ20:AJ28111,AR19) -> 11 | AS31: =COUNTIF(AJ20:AJ28111,AS19) -> 11 | AT31: =COUNTIF(AJ20:AJ28111,AT19) -> 4 | AU31: 38 | AV31: SL27 | AW31: 31.57894737 | AX31: 28.94736842 | AY31: 28.94736842 | AZ31: 10.52631579 | BA31: 100
V32: HEROES DE LA DEMOCRACIA | W32: 08DES0013M MATUTINO | X32: 080028990S19 | Y32: 2 | Z32: 1 | AA32: 1 | AB32: 2 | AC32: 4 | AD32: 1 | AE32: 2 | AF32: 2 | AG32: 3 | AH32: 2 | AI32: 1 | AJ32: 2 | AK32: 1 | AL32: 4 | AM32: 1 | AN32: 1 | AP32: SL30 | AQ32: =COUNTIF(AK20:AK28112,AQ19) -> 16 | AR32: =COUNTIF(AK20:AK28112,AR19) -> 11 | AS32: =COUNTIF(AK20:AK28112,AS19) -> 8 | AT32: =COUNTIF(AK20:AK28112,AT19) -> 3 | AU32: 38 | AV32: SL30 | AW32: 42.10526316 | AX32: 28.94736842 | AY32: 21.05263158 | AZ32: 7.894736842 | BA32: 100
V33: HEROES DE LA DEMOCRACIA | W33: 08DES0013M MATUTINO | X33: 080028991S19 | Y33: 2 | Z33: 1 | AA33: 1 | AB33: 3 | AC33: 2 | AD33: 1 | AE33: 2 | AF33: 2 | AG33: 4 | AH33: 1 | AI33: 1 | AJ33: 1 | AK33: 1 | AL33: 4 | AM33: 4 | AN33: 1 | AP33: SL37 | AQ33: =COUNTIF(AL20:AL28113,AQ19) -> 6 | AR33: =COUNTIF(AL20:AL28113,AR19) -> 3 | AS33: =COUNTIF(AL20:AL28113,AS19) -> 7 | AT33: =COUNTIF(AL20:AL28113,AT19) -> 22 | AU33: 38 | AV33: SL37 | AW33: 15.78947368 | AX33: 7.894736842 | AY33: 18.42105263 | AZ33: 57.89473684 | BA33: 100
V34: HEROES DE LA DEMOCRACIA | W34: 08DES0013M MATUTINO | X34: 080028992S19 | Y34: 3 | Z34: 1 | AA34: 4 | AB34: 3 | AC34: 2 | AD34: 3 | AE34: 3 | AF34: 2 | AG34: 1 | AH34: 4 | AI34: 2 | AJ34: 4 | AK34: 4 | AL34: 3 | AM34: 3 | AN34: 1 | AP34: SL39 | AQ34: =COUNTIF(AM20:AM28114,AQ19) -> 7 | AR34: =COUNTIF(AM20:AM28114,AR19) -> 5 | AS34: =COUNTIF(AM20:AM28114,AS19) -> 6 | AT34: =COUNTIF(AM20:AM28114,AT19) -> 20 | AU34: 38 | AV34: SL39 | AW34: 18.42105263 | AX34: 13.15789474 | AY34: 15.78947368 | AZ34: 52.63157895 | BA34: 100
V35: HEROES DE LA DEMOCRACIA | W35: 08DES0013M MATUTINO | X35: 080028993S19 | Y35: 2 | Z35: 1 | AA35: 1 | AB35: 4 | AC35: 4 | AD35: 2 | AE35: 2 | AF35: 3 | AG35: 4 | AH35: 4 | AI35: 3 | AJ35: 2 | AK35: 2 | AL35: 2 | AM35: 2 | AN35: 4 | AP35: SL47 | AQ35: =COUNTIF(AN20:AN28115,AQ19) -> 11 | AR35: =COUNTIF(AN20:AN28115,AR19) -> 8 | AS35: =COUNTIF(AN20:AN28115,AS19) -> 11 | AT35: =COUNTIF(AN20:AN28115,AT19) -> 8 | AU35: 38 | AV35: SL47 | AW35: 28.94736842 | AX35: 21.05263158 | AY35: 28.94736842 | AZ35: 21.05263158 | BA35: 100
V36: HEROES DE LA DEMOCRACIA | W36: 08DES0013M MATUTINO | X36: 080028995S19 | Y36: 2 | Z36: 1 | AA36: 3 | AB36: 2 | AC36: 1 | AD36: 2 | AE36: 2 | AF36: 2 | AG36: 2 | AH36: 2 | AI36: 1 | AJ36: 3 | AK36: 4 | AL36: 2 | AM36: 1 | AN36: 1
V37: HEROES DE LA DEMOCRACIA | W37: 08DES0013M MATUTINO | X37: 080028996S19 | Y37: 3 | Z37: 1 | AA37: 1 | AB37: 2 | AC37: 2 | AD37: 3 | AE37: 2 | AF37: 1 | AG37: 4 | AH37: 1 | AI37: 1 | AJ37: 3 | AK37: 3 | AL37: 4 | AM37: 4 | AN37: 3
V38: HEROES DE LA DEMOCRACIA | W38: 08DES0013M MATUTINO | X38: 080028997S19 | Y38: 1 | Z38: 1 | AA38: 1 | AB38: 4 | AC38: 2 | AD38: 1 | AE38: 2 | AF38: 2 | AG38: 4 | AH38: 2 | AI38: 1 | AJ38: 2 | AK38: 3 | AL38: 1 | AM38: 4 | AN38: 1
V39: HEROES DE LA DEMOCRACIA | W39: 08DES0013M MATUTINO | X39: 080028998S19 | Y39: 3 | Z39: 3 | AA39: 1 | AB39: 2 | AC39: 1 | AD39: 2 | AE39: 2 | AF39: 2 | AG39: 4 | AH39: 2 | AI39: 1 | AJ39: 4 | AK39: 3 | AL39: 4 | AM39: 1 | AN39: 1
V40: HEROES DE LA DEMOCRACIA | W40: 08DES0013M MATUTINO | X40: 080028999S19 | Y40: 3 | Z40: 3 | AA40: 1 | AB40: 3 | AC40: 2 | AD40: 3 | AE40: 4 | AF40: 4 | AG40: 4 | AH40: 2 | AI40: 1 | AJ40: 2 | AK40: 3 | AL40: 3 | AM40: 2 | AN40: 1
V41: HEROES DE LA DEMOCRACIA | W41: 08DES0013M MATUTINO | X41: 080029000S19 | Y41: 3 | Z41: 1 | AA41: 1 | AB41: 2 | AC41: 1 | AD41: 3 | AE41: 2 | AF41: 1 | AG41: 1 | AH41: 1 | AI41: 1 | AJ41: 3 | AK41: 1 | AL41: 4 | AM41: 4 | AN41: 1
V42: HEROES DE LA DEMOCRACIA | W42: 08DES0013M MATUTINO | X42: 080029001S19 | Y42: 8 | Z42: 8 | AA42: 8 | AB42: 8 | AC42: 8 | AD42: 8 | AE42: 8 | AF42: 8 | AG42: 8 | AH42: 8 | AI42: 8 | AJ42: 8 | AK42: 8 | AL42: 8 | AM42: 8 | AN42: 8
V43: HEROES DE LA DEMOCRACIA | W43: 08DES0013M MATUTINO | X43: 080029002S19 | Y43: 2 | Z43: 1 | AA43: 3 | AB43: 1 | AC43: 1 | AD43: 1 | AE43: 2 | AF43: 3 | AG43: 4 | AH43: 3 | AI43: 4 | AJ43: 1 | AK43: 2 | AL43: 2 | AM43: 3 | AN43: 4
V44: HEROES DE LA DEMOCRACIA | W44: 08DES0013M MATUTINO | X44: 080029003S19 | Y44: 1 | Z44: 2 | AA44: 2 | AB44: 2 | AC44: 3 | AD44: 3 | AE44: 3 | AF44: 2 | AG44: 2 | AH44: 2 | AI44: 4 | AJ44: 3 | AK44: 3 | AL44: 3 | AM44: 2 | AN44: 3
V45: HEROES DE LA DEMOCRACIA | W45: 08DES0013M MATUTINO | X45: 080029004S19 | Y45: 2 | Z45: 1 | AA45: 1 | AB45: 2 | AC45: 1 | AD45: 1 | AE45: 2 | AF45: 2 | AG45: 4 | AH45: 1 | AI45: 4 | AJ45: 3 | AK45: 1 | AL45: 4 | AM45: 4 | AN45: 4
V46: HEROES DE LA DEMOCRACIA | W46: 08DES0013M MATUTINO | X46: 080029005S19 | Y46: 3 | Z46: 1 | AA46: 1 | AB46: 4 | AC46: 3 | AD46: 2 | AE46: 2 | AF46: 3 | AG46: 3 | AH46: 1 | AI46: 3 | AJ46: 2 | AK46: 2 | AL46: 4 | AM46: 2 | AN46: 3
V47: HEROES DE LA DEMOCRACIA | W47: 08DES0013M MATUTINO | X47: 080029006S19 | Y47: 2 | Z47: 3 | AA47: 1 | AB47: 2 | AC47: 4 | AD47: 1 | AE47: 2 | AF47: 2 | AG47: 4 | AH47: 4 | AI47: 2 | AJ47: 3 | AK47: 2 | AL47: 1 | AM47: 4 | AN47: 2
V48: HEROES DE LA DEMOCRACIA | W48: 08DES0013M MATUTINO | X48: 080029007S19 | Y48: 2 | Z48: 1 | AA48: 1 | AB48: 3 | AC48: 1 | AD48: 1 | AE48: 3 | AF48: 1 | AG48: 4 | AH48: 1 | AI48: 4 | AJ48: 2 | AK48: 1 | AL48: 1 | AM48: 4 | AN48: 3
V49: HEROES DE LA DEMOCRACIA | W49: 08DES0013M MATUTINO | X49: 080029008S19 | Y49: 3 | Z49: 2 | AA49: 1 | AB49: 2 | AC49: 2 | AD49: 1 | AE49: 4 | AF49: 2 | AG49: 4 | AH49: 2 | AI49: 4 | AJ49: 1 | AK49: 1 | AL49: 4 | AM49: 4 | AN49: 3
V50: HEROES DE LA DEMOCRACIA | W50: 08DES0013M MATUTINO | X50: 080029009S19 | Y50: 1 | Z50: 1 | AA50: 4 | AB50: 3 | AC50: 1 | AD50: 1 | AE50: 3 | AF50: 3 | AG50: 2 | AH50: 3 | AI50: 2 | AJ50: 3 | AK50: 4 | AL50: 4 | AM50: 3 | AN50: 2
V51: HEROES DE LA DEMOCRACIA | W51: 08DES0013M MATUTINO | X51: 080029010S19 | Y51: 2 | Z51: 1 | AA51: 1 | AB51: 2 | AC51: 1 | AD51: 1 | AE51: 2 | AF51: 2 | AG51: 4 | AH51: 2 | AI51: 4 | AJ51: 1 | AK51: 1 | AL51: 4 | AM51: 4 | AN51: 4
V52: HEROES DE LA DEMOCRACIA | W52: 08DES0013M MATUTINO | X52: 080029011S19 | Y52: 3 | Z52: 1 | AA52: 1 | AB52: 1 | AC52: 1 | AD52: 2 | AE52: 3 | AF52: 2 | AG52: 3 | AH52: 3 | AI52: 1 | AJ52: 2 | AK52: 2 | AL52: 1 | AM52: 4 | AN52: 4
V53: HEROES DE LA DEMOCRACIA | W53: 08DES0013M MATUTINO | X53: 080029012S19 | Y53: 2 | Z53: 1 | AA53: 4 | AB53: 1 | AC53: 4 | AD53: 1 | AE53: 2 | AF53: 3 | AG53: 2 | AH53: 2 | AI53: 1 | AJ53: 1 | AK53: 2 | AL53: 4 | AM53: 4 | AN53: 3
V54: HEROES DE LA DEMOCRACIA | W54: 08DES0013M MATUTINO | X54: 080029013S19 | Y54: 2 | Z54: 1 | AA54: 1 | AB54: 3 | AC54: 1 | AD54: 1 | AE54: 2 | AF54: 2 | AG54: 3 | AH54: 4 | AI54: 2 | AJ54: 3 | AK54: 2 | AL54: 4 | AM54: 1 | AN54: 3
V55: HEROES DE LA DEMOCRACIA | W55: 08DES0013M MATUTINO | X55: 080029014S19 | Y55: 3 | Z55: 1 | AA55: 1 | AB55: 3 | AC55: 2 | AD55: 1 | AE55: 2 | AF55: 2 | AG55: 4 | AH55: 2 | AI55: 4 | AJ55: 1 | AK55: 1 | AL55: 4 | AM55: 4 | AN55: 2
V56: HEROES DE LA DEMOCRACIA | W56: 08DES0013M MATUTINO | X56: 080029015S19 | Y56: 2 | Z56: 1 | AA56: 1 | AB56: 2 | AC56: 1 | AD56: 1 | AE56: 3 | AF56: 3 | AG56: 4 | AH56: 2 | AI56: 2 | AJ56: 4 | AK56: 1 | AL56: 3 | AM56: 1 | AN56: 4
V57: HEROES DE LA DEMOCRACIA | W57: 08DES0013M MATUTINO | X57: 080029016S19 | Y57: 2 | Z57: 1 | AA57: 1 | AB57: 3 | AC57: 2 | AD57: 1 | AE57: 3 | AF57: 1 | AG57: 4 | AH57: 1 | AI57: 1 | AJ57: 1 | AK57: 3 | AL57: 4 | AM57: 4 | AN57: 2
V58: HEROES DE LA DEMOCRACIA | W58: 08DES0013M MATUTINO | X58: 080029017S19 | Y58: 2 | Z58: 1 | AA58: 3 | AB58: 2 | AC58: 3 | AD58: 1 | AE58: 1 | AF58: 2 | AG58: 4 | AH58: 2 | AI58: 3 | AJ58: 2 | AK58: 2 | AL58: 4 | AM58: 4 | AN58: 3

Sheet UD_EVALUACIÓN CRÍTICA
G2: LENGUAJE Y COMUNICACIÓN | H2: 2 | I2: A | J2: 1 | K2: SECUNDARIA | L2: LENGUAJE Y COMUNICACIÓN | M2: SL2 | N2: SL2 | O2: Texto_P_1a4 | P2: 2 | Q2: Evaluación crítica del texto | R2: Elegir la norma que reglamente una situación conflictiva.
G3: LENGUAJE Y COMUNICACIÓN | H3: 9 | I3: D | J3: 4 | K3: SECUNDARIA | L3: LENGUAJE Y COMUNICACIÓN | M3: SL9 | N3: SL9 | O3: Texto_P_6a9 | P3: 9 | Q3: Evaluación crítica del texto | R3: Identificar las circunstancias sociales de la época.
G4: LENGUAJE Y COMUNICACIÓN | H4: 10 | I4: A | J4: 1 | K4: SECUNDARIA | L4: LENGUAJE Y COMUNICACIÓN | M4: SL10 | N4: SL10 | O4: Texto_P_10a13 | P4: 10 | Q4: Evaluación crítica del texto | R4: Valorar las estrategias discursivas utilizadas en el debate.
G5: LENGUAJE Y COMUNICACIÓN | H5: 11 | I5: B | J5: 2 | K5: SECUNDARIA | L5: LENGUAJE Y COMUNICACIÓN | M5: SL11 | N5: SL11 | O5: Texto_P_10a13 | P5: 11 | Q5: Evaluación crítica del texto | R5: Evaluar las secuencias argumentativas de todo el debate.
G6: LENGUAJE Y COMUNICACIÓN | H6: 13 | I6: C | J6: 3 | K6: SECUNDARIA | L6: LENGUAJE Y COMUNICACIÓN | M6: SL13 | N6: SL13 | O6: Texto_P_10a13 | P6: 13 | Q6: Evaluación crítica del texto | R6: Identificar opiniones y argumentos empleados por un participante en un debate.
G7: LENGUAJE Y COMUNICACIÓN | H7: 32 | I7: A | J7: 1 | K7: SECUNDARIA | L7: LENGUAJE Y COMUNICACIÓN | M7: SL32 | N7: SL32 | O7: Texto_P_32a35 | P7: 32 | Q7: Evaluación crítica del texto | R7: Elegir la pregunta que permita reorientar la información de acuerdo con el propósito de la entrevista (cuando el entrevistado se desvíe del tema).
G8: LENGUAJE Y COMUNICACIÓN | H8: 36 | I8: A | J8: 1 | K8: SECUNDARIA | L8: LENGUAJE Y COMUNICACIÓN | M8: SL36 | N8: SL36 | O8: Texto_P_36a39 | P8: 36 | Q8: Evaluación crítica del texto | R8: Seleccionar de un listado de preguntas la pertinente a un propósito específico.
G9: LENGUAJE Y COMUNICACIÓN | H9: 46 | I9: B | J9: 2 | K9: SECUNDARIA | L9: LENGUAJE Y COMUNICACIÓN | M9: SL46 | N9: SL46 | O9: Texto_P_44a47 | P9: 46 | Q9: Evaluación crítica del texto | R9: Identificar el argumento de mayor peso que utiliza el autor para apoyar su punto de vista.
G10: LENGUAJE Y COMUNICACIÓN | H10: 50 | I10: C | J10: 3 | K10: SECUNDARIA | L10: LENGUAJE Y COMUNICACIÓN | M10: SL50 | N10: SL50 | O10: Texto_P_48a51 | P10: 50 | Q10: Evaluación crítica del texto | R10: Identificar los valores que representan dos mitos con el mismo tema.
B14: nombre_ct | C14: CCT_TURNO | D14: Promedio de LYC_SEC_1_2 | E14: Promedio de LYC_SEC_1_9 | F14: Promedio de LYC_SEC_1_10 | G14: Promedio de LYC_SEC_1_111 | H14: Promedio de LYC_SEC_1_13 | I14: Promedio de LYC_SEC_1_32 | J14: Promedio de LYC_SEC_1_36 | K14: Promedio de LYC_SEC_1_46 | L14: Promedio de LYC_SEC_1_50 | P14: nombre_ct | Q14: CCT_TURNO | R14: nofolio | S14: Suma de LYC_SEC_19_RESP_2 | T14: Suma de LYC_SEC_19_RESP_9 | U14: Suma de LYC_SEC_19_RESP_10 | V14: Suma de LYC_SEC_19_RESP_11 | W14: Suma de LYC_SEC_19_RESP_13 | X14: Suma de LYC_SEC_19_RESP_32 | Y14: Suma de LYC_SEC_19_RESP_36 | Z14: Suma de LYC_SEC_19_RESP_46 | AA14: Suma de LYC_SEC_19_RESP_50 | AF14: REACTIVOS | AG14: 1 | AH14: 2 | AI14: 3 | AJ14: 4 | AK14: TOTAL | AL14: REACTIVOS | AM14: R1 | AN14: R2 | AO14: R3 | AP14: R4 | AQ14: TOTAL
B15: HEROES DE LA DEMOCRACIA | C15: 08DES0013M MATUTINO | D15: 0.5 | E15: 0.5945945946 | F15: 0.5 | G15: 0.5 | H15: 0.3421052632 | I15: 0.5526315789 | J15: 0.2894736842 | K15: 0.2432432432 | L15: 0.2894736842 | P15: HEROES DE LA DEMOCRACIA | Q15: 08DES0013M MATUTINO | R15: 080028978S19 | S15: 3 | T15: 3 | U15: 2 | V15: 1 | W15: 4 | X15: 3 | Y15: 2 | Z15: 2 | AA15: 3 | AF15: SL2 | AG15: =COUNTIF(S15:S28100,AG14) -> 19 | AH15: =COUNTIF(S15:S28100,AH14) -> 4 | AI15: =COUNTIF(S15:S28100,AI14) -> 12 | AJ15: =COUNTIF(S15:S28100,AJ14) -> 3 | AK15: =SUM(AG15:AJ15) -> 38 | AL15: SL2 | AM15: =(AG15*100)/AK15 -> 50 | AN15: =(AH15*100)/AK15 -> 10.52631579 | AO15: =(AI15*100)/AK15 -> 31.57894737 | AP15: =(AJ15*100)/AK15 -> 7.894736842 | AQ15: =SUM(AM15:AP15) -> 100
P16: HEROES DE LA DEMOCRACIA | Q16: 08DES0013M MATUTINO | R16: 080028979S19 | S16: 1 | T16: 4 | U16: 1 | V16: 2 | W16: 1 | X16: 1 | Y16: 2 | Z16: 1 | AA16: 4 | AF16: SL9 | AG16: =COUNTIF(T15:T28101,AG14) -> 2 | AH16: =COUNTIF(T15:T28101,AH14) -> 6 | AI16: =COUNTIF(T15:T28101,AI14) -> 7 | AJ16: =COUNTIF(T15:T28101,AJ14) -> 22 | AK16: =SUM(AG16:AJ16) -> 37 | AL16: SL9 | AM16: =(AG16*100)/AK16 -> 5.405405405 | AN16: =(AH16*100)/AK16 -> 16.21621622 | AO16: =(AI16*100)/AK16 -> 18.91891892 | AP16: =(AJ16*100)/AK16 -> 59.45945946 | AQ16: =SUM(AM16:AP16) -> 100
P17: HEROES DE LA DEMOCRACIA | Q17: 08DES0013M MATUTINO | R17: 080028980S19 | S17: 1 | T17: 4 | U17: 1 | V17: 2 | W17: 3 | X17: 2 | Y17: 3 | Z17: 4 | AA17: 3 | AF17: SL10 | AG17: =COUNTIF(U15:U28102,AG14) -> 19 | AH17: =COUNTIF(U15:U28102,AH14) -> 12 | AI17: =COUNTIF(U15:U28102,AI14) -> 1 | AJ17: =COUNTIF(U15:U28102,AJ14) -> 6 | AK17: 38 | AL17: SL10 | AM17: 50 | AN17: 31.57894737 | AO17: 2.631578947 | AP17: 15.78947368 | AQ17: 100
P18: HEROES DE LA DEMOCRACIA | Q18: 08DES0013M MATUTINO | R18: 080028981S19 | S18: 3 | T18: 2 | U18: 1 | V18: 3 | W18: 3 | X18: 1 | Y18: 1 | Z18: 3 | AA18: 1 | AF18: SL11 | AG18: =COUNTIF(V15:V28103,AG14) -> 12 | AH18: =COUNTIF(V15:V28103,AH14) -> 19 | AI18: =COUNTIF(V15:V28103,AI14) -> 5 | AJ18: =COUNTIF(V15:V28103,AJ14) -> 2 | AK18: 38 | AL18: SL11 | AM18: 31.57894737 | AN18: 50 | AO18: 13.15789474 | AP18: 5.263157895 | AQ18: 100
P19: HEROES DE LA DEMOCRACIA | Q19: 08DES0013M MATUTINO | R19: 080028982S19 | S19: 1 | T19: 4 | U19: 2 | V19: 1 | W19: 1 | X19: 1 | Y19: 1 | Z19: 1 | AA19: 1 | AF19: SL13 | AG19: =COUNTIF(W15:W28104,AG14) -> 15 | AH19: =COUNTIF(W15:W28104,AH14) -> 2 | AI19: =COUNTIF(W15:W28104,AI14) -> 13 | AJ19: =COUNTIF(W15:W28104,AJ14) -> 8 | AK19: 38 | AL19: SL13 | AM19: 39.47368421 | AN19: 5.263157895 | AO19: 34.21052632 | AP19: 21.05263158 | AQ19: 100
P20: HEROES DE LA DEMOCRACIA | Q20: 08DES0013M MATUTINO | R20: 080028983S19 | S20: 2 | T20: 3 | U20: 2 | V20: 2 | W20: 3 | X20: 1 | Y20: 1 | Z20: 4 | AA20: 3 | AF20: SL32 | AG20: =COUNTIF(X15:X28105,AG14) -> 21 | AH20: =COUNTIF(X15:X28105,AH14) -> 5 | AI20: =COUNTIF(X15:X28105,AI14) -> 8 | AJ20: =COUNTIF(X15:X28105,AJ14) -> 4 | AK20: 38 | AL20: SL32 | AM20: 55.26315789 | AN20: 13.15789474 | AO20: 21.05263158 | AP20: 10.52631579 | AQ20: 100
P21: HEROES DE LA DEMOCRACIA | Q21: 08DES0013M MATUTINO | R21: 080028984S19 | S21: 3 | T21: 3 | U21: 1 | V21: 2 | W21: 1 | X21: 4 | Y21: 2 | Z21: 1 | AA21: 2 | AF21: SL36 | AG21: =COUNTIF(Y15:Y28106,AG14) -> 11 | AH21: =COUNTIF(Y15:Y28106,AH14) -> 10 | AI21: =COUNTIF(Y15:Y28106,AI14) -> 11 | AJ21: =COUNTIF(Y15:Y28106,AJ14) -> 6 | AK21: 38 | AL21: SL36 | AM21: 28.94736842 | AN21: 26.31578947 | AO21: 28.94736842 | AP21: 15.78947368 | AQ21: 100
P22: HEROES DE LA DEMOCRACIA | Q22: 08DES0013M MATUTINO | R22: 080028985S19 | S22: 2 | T22: 3 | U22: 2 | V22: 2 | W22: 3 | X22: 3 | Y22: 2 | Z22: 2 | AA22: 3 | AF22: SL46 | AG22: =COUNTIF(Z15:Z28107,AG14) -> 13 | AH22: =COUNTIF(Z15:Z28107,AH14) -> 9 | AI22: =COUNTIF(Z15:Z28107,AI14) -> 9 | AJ22: =COUNTIF(Z15:Z28107,AJ14) -> 6 | AK22: 37 | AL22: SL46 | AM22: 35.13513514 | AN22: 24.32432432 | AO22: 24.32432432 | AP22: 16.21621622 | AQ22: 100
P23: HEROES DE LA DEMOCRACIA | Q23: 08DES0013M MATUTINO | R23: 080028986S19 | S23: 1 | T23: 4 | U23: 4 | V23: 4 | W23: 4 | X23: 1 | Y23: 1 | Z23: 3 | AA23: 2 | AF23: SL50 | AG23: =COUNTIF(AA15:AA28108,AG14) -> 6 | AH23: =COUNTIF(AA15:AA28108,AH14) -> 12 | AI23: =COUNTIF(AA15:AA28108,AI14) -> 11 | AJ23: =COUNTIF(AA15:AA28108,AJ14) -> 9 | AK23: 38 | AL23: SL50 | AM23: 15.78947368 | AN23: 31.57894737 | AO23: 28.94736842 | AP23: 23.68421053 | AQ23: 100
P24: HEROES DE LA DEMOCRACIA | Q24: 08DES0013M MATUTINO | R24: 080028987S19 | S24: 1 | T24: 4 | U24: 2 | V24: 1 | W24: 1 | X24: 1 | Y24: 2 | Z24: 4 | AA24: 1
P25: HEROES DE LA DEMOCRACIA | Q25: 08DES0013M MATUTINO | R25: 080028988S19 | S25: 3 | T25: 4 | U25: 4 | V25: 4 | W25: 2 | X25: 1 | Y25: 1 | Z25: 1 | AA25: 1
P26: HEROES DE LA DEMOCRACIA | Q26: 08DES0013M MATUTINO | R26: 080028989S19 | S26: 4 | T26: 4 | U26: 2 | V26: 2 | W26: 1 | X26: 1 | Y26: 3 | Z26: 1 | AA26: 4
P27: HEROES DE LA DEMOCRACIA | Q27: 08DES0013M MATUTINO | R27: 080028990S19 | S27: 1 | T27: 4 | U27: 2 | V27: 1 | W27: 1 | X27: 1 | Y27: 4 | Z27: 1 | AA27: 3
P28: HEROES DE LA DEMOCRACIA | Q28: 08DES0013M MATUTINO | R28: 080028991S19 | S28: 3 | T28: 4 | U28: 1 | V28: 1 | W28: 3 | X28: 1 | Y28: 1 | Z28: 1 | AA28: 2
P29: HEROES DE LA DEMOCRACIA | Q29: 08DES0013M MATUTINO | R29: 080028992S19 | S29: 1 | T29: 4 | U29: 2 | V29: 3 | W29: 4 | X29: 2 | Y29: 3 | Z29: 3 | AA29: 1
P30: HEROES DE LA DEMOCRACIA | Q30: 08DES0013M MATUTINO | R30: 080028993S19 | S30: 1 | T30: 1 | U30: 1 | V30: 2 | W30: 3 | X30: 4 | Y30: 4 | Z30: 2 | AA30: 3
P31: HEROES DE LA DEMOCRACIA | Q31: 08DES0013M MATUTINO | R31: 080028995S19 | S31: 1 | T31: 4 | U31: 1 | V31: 2 | W31: 3 | X31: 2 | Y31: 2 | Z31: 2 | AA31: 4
P32: HEROES DE LA DEMOCRACIA | Q32: 08DES0013M MATUTINO | R32: 080028996S19 | S32: 1 | T32: 8 | U32: 4 | V32: 2 | W32: 3 | X32: 1 | Y32: 3 | Z32: 2 | AA32: 4
P33: HEROES DE LA DEMOCRACIA | Q33: 08DES0013M MATUTINO | R33: 080028997S19 | S33: 1 | T33: 4 | U33: 2 | V33: 1 | W33: 3 | X33: 4 | Y33: 2 | Z33: 3 | AA33: 4
P34: HEROES DE LA DEMOCRACIA | Q34: 08DES0013M MATUTINO | R34: 080028998S19 | S34: 4 | T34: 2 | U34: 1 | V34: 2 | W34: 4 | X34: 4 | Y34: 2 | Z34: 3 | AA34: 3
P35: HEROES DE LA DEMOCRACIA | Q35: 08DES0013M MATUTINO | R35: 080028999S19 | S35: 4 | T35: 4 | U35: 1 | V35: 2 | W35: 4 | X35: 3 | Y35: 3 | Z35: 2 | AA35: 2
P36: HEROES DE LA DEMOCRACIA | Q36: 08DES0013M MATUTINO | R36: 080029000S19 | S36: 3 | T36: 1 | U36: 1 | V36: 3 | W36: 3 | X36: 1 | Y36: 3 | Z36: 3 | AA36: 2
P37: HEROES DE LA DEMOCRACIA | Q37: 08DES0013M MATUTINO | R37: 080029001S19 | S37: 8 | T37: 8 | U37: 8 | V37: 8 | W37: 8 | X37: 8 | Y37: 8 | Z37: 8 | AA37: 8
P38: HEROES DE LA DEMOCRACIA | Q38: 08DES0013M MATUTINO | R38: 080029002S19 | S38: 3 | T38: 2 | U38: 4 | V38: 2 | W38: 1 | X38: 3 | Y38: 3 | Z38: 2 | AA38: 3
P39: HEROES DE LA DEMOCRACIA | Q39: 08DES0013M MATUTINO | R39: 080029003S19 | S39: 2 | T39: 3 | U39: 2 | V39: 2 | W39: 3 | X39: 3 | Y39: 2 | Z39: 2 | AA39: 2
P40: HEROES DE LA DEMOCRACIA | Q40: 08DES0013M MATUTINO | R40: 080029004S19 | S40: 1 | T40: 4 | U40: 1 | V40: 2 | W40: 1 | X40: 1 | Y40: 3 | Z40: 1 | AA40: 2
P41: HEROES DE LA DEMOCRACIA | Q41: 08DES0013M MATUTINO | R41: 080029005S19 | S41: 3 | T41: 4 | U41: 1 | V41: 3 | W41: 3 | X41: 2 | Y41: 1 | Z41: 2 | AA41: 4
P42: HEROES DE LA DEMOCRACIA | Q42: 08DES0013M MATUTINO | R42: 080029006S19 | S42: 1 | T42: 4 | U42: 2 | V42: 1 | W42: 1 | X42: 3 | Y42: 4 | Z42: 3 | AA42: 2
P43: HEROES DE LA DEMOCRACIA | Q43: 08DES0013M MATUTINO | R43: 080029007S19 | S43: 3 | T43: 4 | U43: 1 | V43: 2 | W43: 1 | X43: 1 | Y43: 1 | Z43: 4 | AA43: 4
P44: HEROES DE LA DEMOCRACIA | Q44: 08DES0013M MATUTINO | R44: 080029008S19 | S44: 3 | T44: 2 | U44: 1 | V44: 1 | W44: 1 | X44: 1 | Y44: 1 | Z44: 4 | AA44: 2
P45: HEROES DE LA DEMOCRACIA | Q45: 08DES0013M MATUTINO | R45: 080029009S19 | S45: 3 | T45: 2 | U45: 3 | V45: 2 | W45: 4 | X45: 3 | Y45: 3 | Z45: 3 | AA45: 3
P46: HEROES DE LA DEMOCRACIA | Q46: 08DES0013M MATUTINO | R46: 080029010S19 | S46: 1 | T46: 4 | U46: 1 | V46: 2 | W46: 3 | X46: 1 | Y46: 1 | Z46: 1 | AA46: 3
P47: HEROES DE LA DEMOCRACIA | Q47: 08DES0013M MATUTINO | R47: 080029011S19 | S47: 2 | T47: 4 | U47: 2 | V47: 1 | W47: 4 | X47: 1 | Y47: 2 | Z47: 4 | AA47: 2
P48: HEROES DE LA DEMOCRACIA | Q48: 08DES0013M MATUTINO | R48: 080029012S19 | S48: 1 | T48: 2 | U48: 1 | V48: 2 | W48: 1 | X48: 1 | Y48: 3 | Z48: 1 | AA48: 4
P49: HEROES DE LA DEMOCRACIA | Q49: 08DES0013M MATUTINO | R49: 080029013S19 | S49: 3 | T49: 4 | U49: 4 | V49: 3 | W49: 1 | X49: 1 | Y49: 4 | Z49: 1 | AA49: 4
P50: HEROES DE LA DEMOCRACIA | Q50: 08DES0013M MATUTINO | R50: 080029014S19 | S50: 1 | T50: 4 | U50: 1 | V50: 2 | W50: 2 | X50: 1 | Y50: 4 | Z50: 3 | AA50: 1
P51: HEROES DE LA DEMOCRACIA | Q51: 08DES0013M MATUTINO | R51: 080029015S19 | S51: 1 | T51: 3 | U51: 1 | V51: 1 | W51: 1 | X51: 2 | Y51: 4 | Z51: 1 | AA51: 2
P52: HEROES DE LA DEMOCRACIA | Q52: 08DES0013M MATUTINO | R52: 080029016S19 | S52: 1 | T52: 3 | U52: 1 | V52: 1 | W52: 1 | X52: 3 | Y52: 3 | Z52: 8 | AA52: 2
P53: HEROES DE LA DEMOCRACIA | Q53: 08DES0013M MATUTINO | R53: 080029017S19 | S53: 1 | T53: 4 | U53: 4 | V53: 1 | W53: 4 | X53: 1 | Y53: 1 | Z53: 1 | AA53: 3

Sheet UD_REFLEXIÓN SEMÁNTICA
C1: Reflexión semántica y morfosintáctica
J2: 12 | K2: B | L2: 2 | M2: SECUNDARIA | N2: LENGUAJE Y COMUNICACIÓN | O2: SL12 | P2: SL12 | Q2: Texto_P_10a13 | R2: 12 | S2: Reflexión semántica y morfosintáctica | T2: Seleccionar las conexiones lógicas que organizan un argumento.
J3: 31 | K3: A | L3: 1 | M3: SECUNDARIA | N3: LENGUAJE Y COMUNICACIÓN | O3: SL31 | P3: SL31 | Q3: Texto_P_27a31 | R3: 31 | S3: Reflexión semántica y morfosintáctica | T3: Elegir los signos de puntuación que reflejan estados de ánimo de los personajes.
J4: 40 | K4: D | L4: 4 | M4: SECUNDARIA | N4: LENGUAJE Y COMUNICACIÓN | O4: SL40 | P4: SL40 | Q4: Texto_P_40a42 | R4: 40 | S4: Reflexión semántica y morfosintáctica | T4: Identificar el lenguaje figurado en un poema vanguardista.
J5: 41 | K5: C | L5: 3 | M5: SECUNDARIA | N5: LENGUAJE Y COMUNICACIÓN | O5: SL41 | P5: SL41 | Q5: Texto_P_40a42 | R5: 41 | S5: Reflexión semántica y morfosintáctica | T5: Interpretar el lenguaje figurado en un poema vanguardista.
J6: 4 | K6: C | L6: 3 | M6: SECUNDARIA | N6: LENGUAJE Y COMUNICACIÓN | O6: SL4 | P6: SL4 | Q6: Texto_P_1a4 | R6: 4 | S6: Reflexión semántica y morfosintáctica | T6: Identificar la estructura gramatical (verbal) usada para redactar una norma.
B14: nombre_ct | C14: CCT_TURNO | D14: Promedio de LYC_SEC_1_4 | E14: Promedio de LYC_SEC_1_12 | F14: Promedio de LYC_SEC_1_311 | G14: Promedio de LYC_SEC_1_40 | H14: Promedio de LYC_SEC_1_41 | L14: nombre_ct | M14: CCT_TURNO | N14: nofolio | O14: Suma de LYC_SEC_19_RESP_4 | P14: Suma de LYC_SEC_19_RESP_12 | Q14: Suma de LYC_SEC_19_RESP_31 | R14: Suma de LYC_SEC_19_RESP_40 | S14: Suma de LYC_SEC_19_RESP_41 | X14: REACTIVOS | Y14: 1 | Z14: 2 | AA14: 3 | AB14: 4 | AC14: TOTAL | AD14: REACTIVOS | AE14: R1 | AF14: R2 | AG14: R3 | AH14: R4 | AI14: TOTAL
B15: HEROES DE LA DEMOCRACIA | C15: 08DES0013M MATUTINO | D15: 0.5 | E15: 0.4736842105 | F15: 0.5 | G15: 0.1315789474 | H15: 0.2631578947 | L15: HEROES DE LA DEMOCRACIA | M15: 08DES0013M MATUTINO | N15: 080028978S19 | O15: 2 | P15: 2 | Q15: 1 | R15: 2 | S15: 3 | X15: SL4 | Y15: =COUNTIF(O15:O28100,Y14) -> 3 | Z15: =COUNTIF(O15:O28100,Z14) -> 11 | AA15: =COUNTIF(O15:O28100,AA14) -> 19 | AB15: =COUNTIF(O15:O28100,AB14) -> 5 | AC15: =SUM(Y15:AB15) -> 38 | AD15: SL4 | AE15: =(Y15*100)/AC15 -> 7.894736842 | AF15: =(Z15*100)/AC15 -> 28.94736842 | AG15: =(AA15*100)/AC15 -> 50 | AH15: =(AB15*100)/AC15 -> 13.15789474 | AI15: =SUM(AE15:AH15) -> 100
L16: HEROES DE LA DEMOCRACIA | M16: 08DES0013M MATUTINO | N16: 080028979S19 | O16: 3 | P16: 2 | Q16: 1 | R16: 1 | S16: 2 | X16: SL12 | Y16: =COUNTIF(P15:P28101,Y14) -> 8 | Z16: =COUNTIF(P15:P28101,Z14) -> 18 | AA16: =COUNTIF(P15:P28101,AA14) -> 3 | AB16: =COUNTIF(P15:P28101,AB14) -> 9 | AC16: =SUM(Y16:AB16) -> 38 | AD16: SL12 | AE16: =(Y16*100)/AC16 -> 21.05263158 | AF16: =(Z16*100)/AC16 -> 47.36842105 | AG16: =(AA16*100)/AC16 -> 7.894736842 | AH16: =(AB16*100)/AC16 -> 23.68421053 | AI16: =SUM(AE16:AH16) -> 100
L17: HEROES DE LA DEMOCRACIA | M17: 08DES0013M MATUTINO | N17: 080028980S19 | O17: 3 | P17: 2 | Q17: 1 | R17: 1 | S17: 1 | X17: SL31 | Y17: =COUNTIF(Q15:Q28102,Y14) -> 19 | Z17: =COUNTIF(Q15:Q28102,Z14) -> 4 | AA17: =COUNTIF(Q15:Q28102,AA14) -> 6 | AB17: =COUNTIF(Q15:Q28102,AB14) -> 9 | AC17: 38 | AD17: SL31 | AE17: 50 | AF17: 10.52631579 | AG17: 15.78947368 | AH17: 23.68421053 | AI17: 100
L18: HEROES DE LA DEMOCRACIA | M18: 08DES0013M MATUTINO | N18: 080028981S19 | O18: 3 | P18: 1 | Q18: 1 | R18: 3 | S18: 1 | X18: SL40 | Y18: =COUNTIF(R15:R28103,Y14) -> 12 | Z18: =COUNTIF(R15:R28103,Z14) -> 11 | AA18: =COUNTIF(R15:R28103,AA14) -> 10 | AB18: =COUNTIF(R15:R28103,AB14) -> 5 | AC18: 38 | AD18: SL40 | AE18: 31.57894737 | AF18: 28.94736842 | AG18: 26.31578947 | AH18: 13.15789474 | AI18: 100
L19: HEROES DE LA DEMOCRACIA | M19: 08DES0013M MATUTINO | N19: 080028982S19 | O19: 1 | P19: 1 | Q19: 4 | R19: 3 | S19: 2 | X19: SL41 | Y19: =COUNTIF(S15:S28104,Y14) -> 14 | Z19: =COUNTIF(S15:S28104,Z14) -> 12 | AA19: =COUNTIF(S15:S28104,AA14) -> 10 | AB19: =COUNTIF(S15:S28104,AB14) -> 2 | AC19: 38 | AD19: SL41 | AE19: 36.84210526 | AF19: 31.57894737 | AG19: 26.31578947 | AH19: 5.263157895 | AI19: 100
L20: HEROES DE LA DEMOCRACIA | M20: 08DES0013M MATUTINO | N20: 080028983S19 | O20: 3 | P20: 4 | Q20: 4 | R20: 3 | S20: 1
L21: HEROES DE LA DEMOCRACIA | M21: 08DES0013M MATUTINO | N21: 080028984S19 | O21: 4 | P21: 4 | Q21: 4 | R21: 1 | S21: 2
L22: HEROES DE LA DEMOCRACIA | M22: 08DES0013M MATUTINO | N22: 080028985S19 | O22: 1 | P22: 4 | Q22: 3 | R22: 1 | S22: 4
L23: HEROES DE LA DEMOCRACIA | M23: 08DES0013M MATUTINO | N23: 080028986S19 | O23: 3 | P23: 1 | Q23: 3 | R23: 3 | S23: 2
L24: HEROES DE LA DEMOCRACIA | M24: 08DES0013M MATUTINO | N24: 080028987S19 | O24: 2 | P24: 2 | Q24: 4 | R24: 2 | S24: 3
L25: HEROES DE LA DEMOCRACIA | M25: 08DES0013M MATUTINO | N25: 080028988S19 | O25: 3 | P25: 2 | Q25: 2 | R25: 2 | S25: 2
L26: HEROES DE LA DEMOCRACIA | M26: 08DES0013M MATUTINO | N26: 080028989S19 | O26: 3 | P26: 4 | Q26: 3 | R26: 1 | S26: 1
L27: HEROES DE LA DEMOCRACIA | M27: 08DES0013M MATUTINO | N27: 080028990S19 | O27: 4 | P27: 2 | Q27: 1 | R27: 1 | S27: 1
L28: HEROES DE LA DEMOCRACIA | M28: 08DES0013M MATUTINO | N28: 080028991S19 | O28: 3 | P28: 1 | Q28: 1 | R28: 1 | S28: 1
L29: HEROES DE LA DEMOCRACIA | M29: 08DES0013M MATUTINO | N29: 080028992S19 | O29: 3 | P29: 4 | Q29: 3 | R29: 4 | S29: 1
L30: HEROES DE LA DEMOCRACIA | M30: 08DES0013M MATUTINO | N30: 080028993S19 | O30: 2 | P30: 4 | Q30: 3 | R30: 4 | S30: 3
L31: HEROES DE LA DEMOCRACIA | M31: 08DES0013M MATUTINO | N31: 080028995S19 | O31: 2 | P31: 1 | Q31: 1 | R31: 2 | S31: 1
L32: HEROES DE LA DEMOCRACIA | M32: 08DES0013M MATUTINO | N32: 080028996S19 | O32: 4 | P32: 1 | Q32: 2 | R32: 2 | S32: 1
L33: HEROES DE LA DEMOCRACIA | M33: 08DES0013M MATUTINO | N33: 080028997S19 | O33: 3 | P33: 2 | Q33: 1 | R33: 1 | S33: 1
L34: HEROES DE LA DEMOCRACIA | M34: 08DES0013M MATUTINO | N34: 080028998S19 | O34: 2 | P34: 1 | Q34: 4 | R34: 3 | S34: 1
L35: HEROES DE LA DEMOCRACIA | M35: 08DES0013M MATUTINO | N35: 080028999S19 | O35: 2 | P35: 2 | Q35: 1 | R35: 4 | S35: 2
L36: HEROES DE LA DEMOCRACIA | M36: 08DES0013M MATUTINO | N36: 080029000S19 | O36: 3 | P36: 2 | Q36: 1 | R36: 3 | S36: 1
L37: HEROES DE LA DEMOCRACIA | M37: 08DES0013M MATUTINO | N37: 080029001S19 | O37: 8 | P37: 8 | Q37: 8 | R37: 8 | S37: 8
L38: HEROES DE LA DEMOCRACIA | M38: 08DES0013M MATUTINO | N38: 080029002S19 | O38: 4 | P38: 3 | Q38: 1 | R38: 2 | S38: 4
L39: HEROES DE LA DEMOCRACIA | M39: 08DES0013M MATUTINO | N39: 080029003S19 | O39: 2 | P39: 2 | Q39: 1 | R39: 2 | S39: 2
L40: HEROES DE LA DEMOCRACIA | M40: 08DES0013M MATUTINO | N40: 080029004S19 | O40: 3 | P40: 2 | Q40: 1 | R40: 1 | S40: 3
L41: HEROES DE LA DEMOCRACIA | M41: 08DES0013M MATUTINO | N41: 080029005S19 | O41: 3 | P41: 2 | Q41: 1 | R41: 1 | S41: 2
L42: HEROES DE LA DEMOCRACIA | M42: 08DES0013M MATUTINO | N42: 080029006S19 | O42: 2 | P42: 2 | Q42: 2 | R42: 2 | S42: 3
L43: HEROES DE LA DEMOCRACIA | M43: 08DES0013M MATUTINO | N43: 080029007S19 | O43: 4 | P43: 4 | Q43: 1 | R43: 4 | S43: 3
L44: HEROES DE LA DEMOCRACIA | M44: 08DES0013M MATUTINO | N44: 080029008S19 | O44: 2 | P44: 3 | Q44: 1 | R44: 1 | S44: 2
L45: HEROES DE LA DEMOCRACIA | M45: 08DES0013M MATUTINO | N45: 080029009S19 | O45: 3 | P45: 1 | Q45: 2 | R45: 3 | S45: 2
L46: HEROES DE LA DEMOCRACIA | M46: 08DES0013M MATUTINO | N46: 080029010S19 | O46: 3 | P46: 2 | Q46: 4 | R46: 3 | S46: 1
L47: HEROES DE LA DEMOCRACIA | M47: 08DES0013M MATUTINO | N47: 080029011S19 | O47: 3 | P47: 2 | Q47: 4 | R47: 3 | S47: 3
L48: HEROES DE LA DEMOCRACIA | M48: 08DES0013M MATUTINO | N48: 080029012S19 | O48: 2 | P48: 3 | Q48: 1 | R48: 2 | S48: 3
L49: HEROES DE LA DEMOCRACIA | M49: 08DES0013M MATUTINO | N49: 080029013S19 | O49: 3 | P49: 2 | Q49: 3 | R49: 2 | S49: 3
L50: HEROES DE LA DEMOCRACIA | M50: 08DES0013M MATUTINO | N50: 080029014S19 | O50: 3 | P50: 2 | Q50: 4 | R50: 4 | S50: 3
L51: HEROES DE LA DEMOCRACIA | M51: 08DES0013M MATUTINO | N51: 080029015S19 | O51: 1 | P51: 4 | Q51: 4 | R51: 3 | S51: 1
L52: HEROES DE LA DEMOCRACIA | M52: 08DES0013M MATUTINO | N52: 080029016S19 | O52: 2 | P52: 2 | Q52: 1 | R52: 2 | S52: 2
L53: HEROES DE LA DEMOCRACIA | M53: 08DES0013M MATUTINO | N53: 080029017S19 | O53: 3 | P53: 4 | Q53: 1 | R53: 1 | S53: 2

Sheet UD_FIGURAS Y CUERPO
B2: Figuras y cuerpos
F3: 1 | G3: D | H3: 4 | I3: SECUNDARIA | J3: MATEMÁTICAS | K3: SM1 | L3: SM1 | N3: 1 | O3: Figuras y Cuerpos | P3: Identificar la figura geométrica que sirve como modelo para recubrir el plano.
F4: 3 | G4: D | H4: 4 | I4: SECUNDARIA | J4: MATEMÁTICAS | K4: SM3 | L4: SM3 | N4: 3 | O4: Figuras y Cuerpos | P4: Resolver problemas empleando las propiedades de la mediatriz de un segmento y la bisectriz de un ángulo.
F5: 4 | G5: A | H5: 1 | I5: SECUNDARIA | J5: MATEMÁTICAS | K5: SM4 | L5: SM4 | N5: 4 | O5: Figuras y Cuerpos | P5: Resolver problemas que involucren la semejanza de triángulos.
F6: 5 | G6: B | H6: 2 | I6: SECUNDARIA | J6: MATEMÁTICAS | K6: SM5 | L6: SM5 | N6: 5 | O6: Figuras y Cuerpos | P6: Identificar las posibilidades de construcción (existencia y unicidad) de triángulos.
F7: 8 | G7: A | H7: 1 | I7: SECUNDARIA | J7: MATEMÁTICAS | K7: SM8 | L7: SM8 | N7: 8 | O7: Figuras y Cuerpos | P7: Identificar las posibilidades de construcción (existencia y unicidad) de triángulos.
F8: 27 | G8: C | H8: 3 | I8: SECUNDARIA | J8: MATEMÁTICAS | K8: SM27 | L8: SM27 | N8: 27 | O8: Figuras y Cuerpos | P8: Calcular la suma de los ángulos interiores de cualquier polígono.
F9: 30 | G9: B | H9: 2 | I9: SECUNDARIA | J9: MATEMÁTICAS | K9: SM30 | L9: SM30 | N9: 30 | O9: Figuras y Cuerpos | P9: Resolver problemas que impliquen el uso de relaciones de los ángulos que se forman entre dos rectas paralelas cortadas por una transversal.
F10: 31 | G10: B | H10: 2 | I10: SECUNDARIA | J10: MATEMÁTICAS | K10: SM31 | L10: SM31 | N10: 31 | O10: Figuras y Cuerpos | P10: Identificar el desarrollo plano de conos y cilindros rectos.
F11: 32 | G11: A | H11: 1 | I11: SECUNDARIA | J11: MATEMÁTICAS | K11: SM32 | L11: SM32 | N11: 32 | O11: Figuras y Cuerpos | P11: Identificar figuras simétricas respecto a un eje oblicuo.
B13: nombre_ct | C13: CCT_TURNO | D13: Promedio de MAT_SEC_1_1 | E13: Promedio de MAT_SEC_1_3 | F13: Promedio de MAT_SEC_1_4 | G13: Promedio de MAT_SEC_1_5 | H13: Promedio de MAT_SEC_1_8 | I13: Promedio de MAT_SEC_1_27 | J13: Promedio de MAT_SEC_1_30 | K13: Promedio de MAT_SEC_1_311 | L13: Promedio de MAT_SEC_1_32 | O13: nombre_ct | P13: CCT_TURNO | Q13: nofolio | R13: Suma de MAT_SEC_19_RESP_1 | S13: Suma de MAT_SEC_19_RESP_3 | T13: Suma de MAT_SEC_19_RESP_4 | U13: Suma de MAT_SEC_19_RESP_5 | V13: Suma de MAT_SEC_19_RESP_8 | W13: Suma de MAT_SEC_19_RESP_27 | X13: Suma de MAT_SEC_19_RESP_30 | Y13: Suma de MAT_SEC_19_RESP_31 | Z13: Suma de MAT_SEC_19_RESP_32 | AC13: REACTIVOS | AD13: 1 | AE13: 2 | AF13: 3 | AG13: 4 | AH13: TOTAL | AI13: REACTIVOS | AJ13: R1 | AK13: R2 | AL13: R3 | AM13: R4 | AN13: TOTAL
B14: HEROES DE LA DEMOCRACIA | C14: 08DES0013M MATUTINO | D14: 0.05555555556 | E14: 0.3055555556 | F14: 0.4166666667 | G14: 0.4444444444 | H14: 0.3888888889 | I14: 0.2777777778 | J14: 0.3611111111 | K14: 0.3888888889 | L14: 0.4722222222 | O14: HEROES DE LA DEMOCRACIA | P14: 08DES0013M MATUTINO | Q14: 080028978S19 | R14: 2 | S14: 4 | T14: 2 | U14: 1 | V14: 2 | W14: 4 | X14: 2 | Y14: 2 | Z14: 1 | AC14: SM1 | AD14: =COUNTIF(R14:R28101,AD13) -> 2 | AE14: =COUNTIF(R14:R28101,AE13) -> 28 | AF14: =COUNTIF(R14:R28101,AF13) -> 4 | AG14: =COUNTIF(R14:R28101,AG13) -> 2 | AH14: =SUM(AD14:AG14) -> 36 | AI14: SM1 | AJ14: =(AD14*100)/AH14 -> 5.555555556 | AK14: =(AE14*100)/AH14 -> 77.77777778 | AL14: =(AF14*100)/AH14 -> 11.11111111 | AM14: =(AG14*100)/AH14 -> 5.555555556 | AN14: =SUM(AJ14:AM14) -> 100
O15: HEROES DE LA DEMOCRACIA | P15: 08DES0013M MATUTINO | Q15: 080028979S19 | R15: 2 | S15: 2 | T15: 1 | U15: 2 | V15: 1 | W15: 2 | X15: 3 | Y15: 2 | Z15: 1 | AC15: SM3 | AD15: =COUNTIF(S14:S28102,AD13) -> 7 | AE15: =COUNTIF(S14:S28102,AE13) -> 8 | AF15: =COUNTIF(S14:S28102,AF13) -> 10 | AG15: =COUNTIF(S14:S28102,AG13) -> 11 | AH15: =SUM(AD15:AG15) -> 36 | AI15: SM3 | AJ15: =(AD15*100)/AH15 -> 19.44444444 | AK15: =(AE15*100)/AH15 -> 22.22222222 | AL15: =(AF15*100)/AH15 -> 27.77777778 | AM15: =(AG15*100)/AH15 -> 30.55555556 | AN15: =SUM(AJ15:AM15) -> 100
O16: HEROES DE LA DEMOCRACIA | P16: 08DES0013M MATUTINO | Q16: 080028980S19 | R16: 2 | S16: 3 | T16: 4 | U16: 2 | V16: 2 | W16: 3 | X16: 2 | Y16: 2 | Z16: 1 | AC16: SM4 | AD16: =COUNTIF(T14:T28103,AD13) -> 15 | AE16: =COUNTIF(T14:T28103,AE13) -> 8 | AF16: =COUNTIF(T14:T28103,AF13) -> 6 | AG16: =COUNTIF(T14:T28103,AG13) -> 7 | AH16: 36 | AI16: SM4 | AJ16: 41.66666667 | AK16: 22.22222222 | AL16: 16.66666667 | AM16: 19.44444444 | AN16: 100
O17: HEROES DE LA DEMOCRACIA | P17: 08DES0013M MATUTINO | Q17: 080028981S19 | R17: 3 | S17: 1 | T17: 2 | U17: 4 | V17: 4 | W17: 2 | X17: 3 | Y17: 1 | Z17: 4 | AC17: SM5 | AD17: =COUNTIF(U14:U28104,AD13) -> 13 | AE17: =COUNTIF(U14:U28104,AE13) -> 16 | AF17: =COUNTIF(U14:U28104,AF13) -> 2 | AG17: =COUNTIF(U14:U28104,AG13) -> 5 | AH17: 36 | AI17: SM5 | AJ17: 36.11111111 | AK17: 44.44444444 | AL17: 5.555555556 | AM17: 13.88888889 | AN17: 100
O18: HEROES DE LA DEMOCRACIA | P18: 08DES0013M MATUTINO | Q18: 080028982S19 | R18: 3 | S18: 2 | T18: 3 | U18: 4 | V18: 1 | W18: 1 | X18: 2 | Y18: 1 | Z18: 4 | AC18: SM8 | AD18: =COUNTIF(V14:V28105,AD13) -> 14 | AE18: =COUNTIF(V14:V28105,AE13) -> 10 | AF18: =COUNTIF(V14:V28105,AF13) -> 6 | AG18: =COUNTIF(V14:V28105,AG13) -> 6 | AH18: 36 | AI18: SM8 | AJ18: 38.88888889 | AK18: 27.77777778 | AL18: 16.66666667 | AM18: 16.66666667 | AN18: 100
O19: HEROES DE LA DEMOCRACIA | P19: 08DES0013M MATUTINO | Q19: 080028983S19 | R19: 2 | S19: 3 | T19: 1 | U19: 1 | V19: 4 | W19: 3 | X19: 1 | Y19: 4 | Z19: 3 | AC19: SM27 | AD19: =COUNTIF(W14:W28106,AD13) -> 6 | AE19: =COUNTIF(W14:W28106,AE13) -> 11 | AF19: =COUNTIF(W14:W28106,AF13) -> 10 | AG19: =COUNTIF(W14:W28106,AG13) -> 9 | AH19: 36 | AI19: SM27 | AJ19: 16.66666667 | AK19: 30.55555556 | AL19: 27.77777778 | AM19: 25 | AN19: 100
O20: HEROES DE LA DEMOCRACIA | P20: 08DES0013M MATUTINO | Q20: 080028984S19 | R20: 3 | S20: 1 | T20: 2 | U20: 2 | V20: 1 | W20: 3 | X20: 2 | Y20: 2 | Z20: 4 | AC20: SM30 | AD20: =COUNTIF(X14:X28107,AD13) -> 13 | AE20: =COUNTIF(X14:X28107,AE13) -> 13 | AF20: =COUNTIF(X14:X28107,AF13) -> 8 | AG20: =COUNTIF(X14:X28107,AG13) -> 2 | AH20: 36 | AI20: SM30 | AJ20: 36.11111111 | AK20: 36.11111111 | AL20: 22.22222222 | AM20: 5.555555556 | AN20: 100
O21: HEROES DE LA DEMOCRACIA | P21: 08DES0013M MATUTINO | Q21: 080028985S19 | R21: 4 | S21: 1 | T21: 2 | U21: 3 | V21: 3 | W21: 4 | X21: 1 | Y21: 2 | Z21: 3 | AC21: SM31 | AD21: =COUNTIF(Y14:Y28108,AD13) -> 18 | AE21: =COUNTIF(Y14:Y28108,AE13) -> 14 | AF21: =COUNTIF(Y14:Y28108,AF13) -> 2 | AG21: =COUNTIF(Y14:Y28108,AG13) -> 2 | AH21: 36 | AI21: SM31 | AJ21: 50 | AK21: 38.88888889 | AL21: 5.555555556 | AM21: 5.555555556 | AN21: 100
O22: HEROES DE LA DEMOCRACIA | P22: 08DES0013M MATUTINO | Q22: 080028986S19 | R22: 2 | S22: 3 | T22: 4 | U22: 2 | V22: 2 | W22: 2 | X22: 1 | Y22: 1 | Z22: 2 | AC22: SM32 | AD22: =COUNTIF(Z14:Z28109,AD13) -> 17 | AE22: =COUNTIF(Z14:Z28109,AE13) -> 7 | AF22: =COUNTIF(Z14:Z28109,AF13) -> 8 | AG22: =COUNTIF(Z14:Z28109,AG13) -> 4 | AH22: 36 | AI22: SM32 | AJ22: 47.22222222 | AK22: 19.44444444 | AL22: 22.22222222 | AM22: 11.11111111 | AN22: 100
O23: HEROES DE LA DEMOCRACIA | P23: 08DES0013M MATUTINO | Q23: 080028987S19 | R23: 8 | S23: 8 | T23: 8 | U23: 8 | V23: 8 | W23: 8 | X23: 8 | Y23: 8 | Z23: 8
O24: HEROES DE LA DEMOCRACIA | P24: 08DES0013M MATUTINO | Q24: 080028988S19 | R24: 1 | S24: 3 | T24: 3 | U24: 1 | V24: 2 | W24: 4 | X24: 1 | Y24: 2 | Z24: 3
O25: HEROES DE LA DEMOCRACIA | P25: 08DES0013M MATUTINO | Q25: 080028989S19 | R25: 2 | S25: 4 | T25: 1 | U25: 3 | V25: 4 | W25: 3 | X25: 4 | Y25: 4 | Z25: 2
O26: HEROES DE LA DEMOCRACIA | P26: 08DES0013M MATUTINO | Q26: 080028990S19 | R26: 2 | S26: 2 | T26: 4 | U26: 2 | V26: 1 | W26: 2 | X26: 1 | Y26: 1 | Z26: 1
O27: HEROES DE LA DEMOCRACIA | P27: 08DES0013M MATUTINO | Q27: 080028991S19 | R27: 2 | S27: 4 | T27: 3 | U27: 2 | V27: 1 | W27: 3 | X27: 2 | Y27: 2 | Z27: 1
O28: HEROES DE LA DEMOCRACIA | P28: 08DES0013M MATUTINO | Q28: 080028992S19 | R28: 2 | S28: 4 | T28: 4 | U28: 4 | V28: 2 | W28: 1 | X28: 1 | Y28: 1 | Z28: 2
O29: HEROES DE LA DEMOCRACIA | P29: 08DES0013M MATUTINO | Q29: 080028993S19 | R29: 4 | S29: 3 | T29: 2 | U29: 2 | V29: 1 | W29: 4 | X29: 2 | Y29: 1 | Z29: 1
O30: HEROES DE LA DEMOCRACIA | P30: 08DES0013M MATUTINO | Q30: 080028995S19 | R30: 2 | S30: 2 | T30: 2 | U30: 2 | V30: 2 | W30: 3 | X30: 2 | Y30: 1 | Z30: 1
O31: HEROES DE LA DEMOCRACIA | P31: 08DES0013M MATUTINO | Q31: 080028996S19 | R31: 2 | S31: 1 | T31: 4 | U31: 1 | V31: 1 | W31: 2 | X31: 3 | Y31: 1 | Z31: 1
O32: HEROES DE LA DEMOCRACIA | P32: 08DES0013M MATUTINO | Q32: 080028997S19 | R32: 2 | S32: 2 | T32: 2 | U32: 2 | V32: 4 | W32: 2 | X32: 1 | Y32: 1 | Z32: 1
O33: HEROES DE LA DEMOCRACIA | P33: 08DES0013M MATUTINO | Q33: 080028998S19 | R33: 1 | S33: 3 | T33: 4 | U33: 2 | V33: 1 | W33: 3 | X33: 3 | Y33: 3 | Z33: 3
O34: HEROES DE LA DEMOCRACIA | P34: 08DES0013M MATUTINO | Q34: 080028999S19 | R34: 2 | S34: 2 | T34: 1 | U34: 1 | V34: 1 | W34: 4 | X34: 2 | Y34: 2 | Z34: 1
O35: HEROES DE LA DEMOCRACIA | P35: 08DES0013M MATUTINO | Q35: 080029000S19 | R35: 3 | S35: 3 | T35: 3 | U35: 1 | V35: 4 | W35: 1 | X35: 1 | Y35: 2 | Z35: 1
O36: HEROES DE LA DEMOCRACIA | P36: 08DES0013M MATUTINO | Q36: 080029001S19 | R36: 2 | S36: 4 | T36: 1 | U36: 2 | V36: 2 | W36: 2 | X36: 1 | Y36: 1 | Z36: 3
O37: HEROES DE LA DEMOCRACIA | P37: 08DES0013M MATUTINO | Q37: 080029002S19 | R37: 2 | S37: 1 | T37: 4 | U37: 2 | V37: 2 | W37: 4 | X37: 2 | Y37: 1 | Z37: 2
O38: HEROES DE LA DEMOCRACIA | P38: 08DES0013M MATUTINO | Q38: 080029003S19 | R38: 2 | S38: 3 | T38: 1 | U38: 2 | V38: 3 | W38: 3 | X38: 2 | Y38: 1 | Z38: 2
O39: HEROES DE LA DEMOCRACIA | P39: 08DES0013M MATUTINO | Q39: 080029004S19 | R39: 2 | S39: 4 | T39: 1 | U39: 2 | V39: 2 | W39: 2 | X39: 2 | Y39: 2 | Z39: 1
O40: HEROES DE LA DEMOCRACIA | P40: 08DES0013M MATUTINO | Q40: 080029005S19 | R40: 2 | S40: 3 | T40: 1 | U40: 1 | V40: 1 | W40: 4 | X40: 3 | Y40: 2 | Z40: 1
O41: HEROES DE LA DEMOCRACIA | P41: 08DES0013M MATUTINO | Q41: 080029006S19 | R41: 2 | S41: 3 | T41: 1 | U41: 4 | V41: 3 | W41: 1 | X41: 2 | Y41: 1 | Z41: 3
O42: HEROES DE LA DEMOCRACIA | P42: 08DES0013M MATUTINO | Q42: 080029007S19 | R42: 2 | S42: 2 | T42: 2 | U42: 4 | V42: 2 | W42: 2 | X42: 2 | Y42: 3 | Z42: 4
O43: HEROES DE LA DEMOCRACIA | P43: 08DES0013M MATUTINO | Q43: 080029008S19 | R43: 2 | S43: 4 | T43: 1 | U43: 1 | V43: 3 | W43: 4 | X43: 3 | Y43: 1 | Z43: 1
O44: HEROES DE LA DEMOCRACIA | P44: 08DES0013M MATUTINO | Q44: 080029009S19 | R44: 2 | S44: 4 | T44: 1 | U44: 1 | V44: 3 | W44: 2 | X44: 1 | Y44: 1 | Z44: 1
O45: HEROES DE LA DEMOCRACIA | P45: 08DES0013M MATUTINO | Q45: 080029010S19 | R45: 8 | S45: 8 | T45: 8 | U45: 8 | V45: 8 | W45: 8 | X45: 8 | Y45: 8 | Z45: 8
O46: HEROES DE LA DEMOCRACIA | P46: 08DES0013M MATUTINO | Q46: 080029011S19 | R46: 2 | S46: 4 | T46: 1 | U46: 2 | V46: 1 | W46: 4 | X46: 1 | Y46: 1 | Z46: 1
O47: HEROES DE LA DEMOCRACIA | P47: 08DES0013M MATUTINO | Q47: 080029012S19 | R47: 2 | S47: 4 | T47: 1 | U47: 1 | V47: 1 | W47: 3 | X47: 1 | Y47: 2 | Z47: 2
O48: HEROES DE LA DEMOCRACIA | P48: 08DES0013M MATUTINO | Q48: 080029013S19 | R48: 8 | S48: 8 | T48: 8 | U48: 8 | V48: 8 | W48: 8 | X48: 8 | Y48: 8 | Z48: 8
O49: HEROES DE LA DEMOCRACIA | P49: 08DES0013M MATUTINO | Q49: 080029014S19 | R49: 2 | S49: 4 | T49: 1 | U49: 1 | V49: 1 | W49: 3 | X49: 1 | Y49: 2 | Z49: 3
O50: HEROES DE LA DEMOCRACIA | P50: 08DES0013M MATUTINO | Q50: 080029015S19 | R50: 2 | S50: 1 | T50: 3 | U50: 1 | V50: 3 | W50: 1 | X50: 4 | Y50: 2 | Z50: 1
O51: HEROES DE LA DEMOCRACIA | P51: 08DES0013M MATUTINO | Q51: 080029016S19 | R51: 2 | S51: 2 | T51: 3 | U51: 1 | V51: 1 | W51: 2 | X51: 3 | Y51: 1 | Z51: 2
O52: HEROES DE LA DEMOCRACIA | P52: 08DES0013M MATUTINO | Q52: 080029017S19 | R52: 2 | S52: 1 | T52: 1 | U52: 2 | V52: 4 | W52: 1 | X52: 3 | Y52: 1 | Z52: 3

Sheet UD_MEDIDA
B2: Medida
G3: MATEMÁTICAS | H3: 2 | I3: B | J3: 2 | K3: SECUNDARIA | L3: MATEMÁTICAS | M3: SM2 | N3: SM2 | P3: 2 | Q3: Medida | R3: Resolver problemas que impliquen calcular el perímetro o área del círculo o alguno de sus elementos (radio o diámetro.)
G4: MATEMÁTICAS | H4: 7 | I4: B | J4: 2 | K4: SECUNDARIA | L4: MATEMÁTICAS | M4: SM7 | N4: SM7 | P4: 7 | Q4: Medida | R4: Identificar las secciones que se obtienen al cortar un cilindro o un cono recto con un plano.
G5: MATEMÁTICAS | H5: 14 | I5: A | J5: 1 | K5: SECUNDARIA | L5: MATEMÁTICAS | M5: SM14 | N5: SM14 | P5: 14 | Q5: Medida | R5: Identificar la cantidad de aumento o disminución de volumen al cambiar alguna de las dimensiones de los cuerpos geométricos
G6: MATEMÁTICAS | H6: 29 | I6: A | J6: 1 | K6: SECUNDARIA | L6: MATEMÁTICAS | M6: SM29 | N6: SM29 | P6: 29 | Q6: Medida | R6: Explicitación y uso del Teorema de Pitágoras.
C13: nombre_ct | D13: CCT_TURNO | E13: Promedio de MAT_SEC_1_2 | F13: Promedio de MAT_SEC_1_7 | G13: Promedio de MAT_SEC_1_14 | H13: Promedio de MAT_SEC_1_29 | K13: nombre_ct | L13: CCT_TURNO | M13: nofolio | N13: Suma de MAT_SEC_19_RESP_2 | O13: Suma de MAT_SEC_19_RESP_7 | P13: Suma de MAT_SEC_19_RESP_14 | Q13: Suma de MAT_SEC_19_RESP_29 | T13: REACTIVOS | U13: 1 | V13: 2 | W13: 3 | X13: 4 | Y13: TOTAL | Z13: REACTIVOS | AA13: R1 | AB13: R2 | AC13: R3 | AD13: R4 | AE13: TOTAL
C14: HEROES DE LA DEMOCRACIA | D14: 08DES0013M MATUTINO | E14: 0.1111111111 | F14: 0.5714285714 | G14: 0.7714285714 | H14: 0.4166666667 | K14: HEROES DE LA DEMOCRACIA | L14: 08DES0013M MATUTINO | M14: 080028978S19 | N14: 4 | O14: 4 | P14: 1 | Q14: 4 | T14: SM2 | U14: =COUNTIF(N14:N28101,U13) -> 3 | V14: =COUNTIF(N14:N28101,V13) -> 4 | W14: =COUNTIF(N14:N28101,W13) -> 12 | X14: =COUNTIF(N14:N28101,X13) -> 17 | Y14: =SUM(U14:X14) -> 36 | Z14: SM2 | AA14: =(U14*100)/Y14 -> 8.333333333 | AB14: =(V14*100)/Y14 -> 11.11111111 | AC14: =(W14*100)/Y14 -> 33.33333333 | AD14: =(X14*100)/Y14 -> 47.22222222 | AE14: =SUM(AA14:AD14) -> 100
K15: HEROES DE LA DEMOCRACIA | L15: 08DES0013M MATUTINO | M15: 080028979S19 | N15: 3 | O15: 2 | P15: 1 | Q15: 3 | T15: SM7 | U15: =COUNTIF(O14:O28102,U13) -> 5 | V15: =COUNTIF(O14:O28102,V13) -> 20 | W15: =COUNTIF(O14:O28102,W13) -> 7 | X15: =COUNTIF(O14:O28102,X13) -> 3 | Y15: =SUM(U15:X15) -> 35 | Z15: SM7 | AA15: =(U15*100)/Y15 -> 14.28571429 | AB15: =(V15*100)/Y15 -> 57.14285714 | AC15: =(W15*100)/Y15 -> 20 | AD15: =(X15*100)/Y15 -> 8.571428571 | AE15: =SUM(AA15:AD15) -> 100
K16: HEROES DE LA DEMOCRACIA | L16: 08DES0013M MATUTINO | M16: 080028980S19 | N16: 3 | O16: 2 | P16: 1 | Q16: 4 | T16: SM14 | U16: =COUNTIF(P14:P28103,U13) -> 27 | V16: =COUNTIF(P14:P28103,V13) -> 2 | W16: =COUNTIF(P14:P28103,W13) -> 4 | X16: =COUNTIF(P14:P28103,X13) -> 2 | Y16: 35 | Z16: SM14 | AA16: 77.14285714 | AB16: 5.714285714 | AC16: 11.42857143 | AD16: 5.714285714 | AE16: 100
K17: HEROES DE LA DEMOCRACIA | L17: 08DES0013M MATUTINO | M17: 080028981S19 | N17: 4 | O17: 2 | P17: 4 | Q17: 4 | T17: SM29 | U17: =COUNTIF(Q14:Q28104,U13) -> 15 | V17: =COUNTIF(Q14:Q28104,V13) -> 5 | W17: =COUNTIF(Q14:Q28104,W13) -> 11 | X17: =COUNTIF(Q14:Q28104,X13) -> 5 | Y17: 36 | Z17: SM29 | AA17: 41.66666667 | AB17: 13.88888889 | AC17: 30.55555556 | AD17: 13.88888889 | AE17: 100
K18: HEROES DE LA DEMOCRACIA | L18: 08DES0013M MATUTINO | M18: 080028982S19 | N18: 1 | O18: 1 | P18: 1 | Q18: 3
K19: HEROES DE LA DEMOCRACIA | L19: 08DES0013M MATUTINO | M19: 080028983S19 | N19: 4 | O19: 2 | P19: 1 | Q19: 3
K20: HEROES DE LA DEMOCRACIA | L20: 08DES0013M MATUTINO | M20: 080028984S19 | N20: 3 | O20: 2 | P20: 3 | Q20: 1
K21: HEROES DE LA DEMOCRACIA | L21: 08DES0013M MATUTINO | M21: 080028985S19 | N21: 2 | O21: 4 | P21: 3 | Q21: 3
K22: HEROES DE LA DEMOCRACIA | L22: 08DES0013M MATUTINO | M22: 080028986S19 | N22: 3 | O22: 3 | P22: 1 | Q22: 1
K23: HEROES DE LA DEMOCRACIA | L23: 08DES0013M MATUTINO | M23: 080028987S19 | N23: 8 | O23: 8 | P23: 8 | Q23: 8
K24: HEROES DE LA DEMOCRACIA | L24: 08DES0013M MATUTINO | M24: 080028988S19 | N24: 2 | O24: 2 | P24: 3 | Q24: 1
K25: HEROES DE LA DEMOCRACIA | L25: 08DES0013M MATUTINO | M25: 080028989S19 | N25: 1 | O25: 1 | P25: 4 | Q25: 4
K26: HEROES DE LA DEMOCRACIA | L26: 08DES0013M MATUTINO | M26: 080028990S19 | N26: 4 | O26: 3 | P26: 1 | Q26: 3
K27: HEROES DE LA DEMOCRACIA | L27: 08DES0013M MATUTINO | M27: 080028991S19 | N27: 3 | O27: 2 | P27: 1 | Q27: 1
K28: HEROES DE LA DEMOCRACIA | L28: 08DES0013M MATUTINO | M28: 080028992S19 | N28: 4 | O28: 1 | P28: 8 | Q28: 3
K29: HEROES DE LA DEMOCRACIA | L29: 08DES0013M MATUTINO | M29: 080028993S19 | N29: 4 | O29: 4 | P29: 1 | Q29: 1
K30: HEROES DE LA DEMOCRACIA | L30: 08DES0013M MATUTINO | M30: 080028995S19 | N30: 3 | O30: 2 | P30: 1 | Q30: 1
K31: HEROES DE LA DEMOCRACIA | L31: 08DES0013M MATUTINO | M31: 080028996S19 | N31: 3 | O31: 1 | P31: 1 | Q31: 3
K32: HEROES DE LA DEMOCRACIA | L32: 08DES0013M MATUTINO | M32: 080028997S19 | N32: 4 | O32: 2 | P32: 1 | Q32: 3
K33: HEROES DE LA DEMOCRACIA | L33: 08DES0013M MATUTINO | M33: 080028998S19 | N33: 2 | O33: 2 | P33: 1 | Q33: 2
K34: HEROES DE LA DEMOCRACIA | L34: 08DES0013M MATUTINO | M34: 080028999S19 | N34: 1 | O34: 3 | P34: 1 | Q34: 1
K35: HEROES DE LA DEMOCRACIA | L35: 08DES0013M MATUTINO | M35: 080029000S19 | N35: 4 | O35: 3 | P35: 1 | Q35: 1
K36: HEROES DE LA DEMOCRACIA | L36: 08DES0013M MATUTINO | M36: 080029001S19 | N36: 4 | O36: 2 | P36: 1 | Q36: 1
K37: HEROES DE LA DEMOCRACIA | L37: 08DES0013M MATUTINO | M37: 080029002S19 | N37: 2 | O37: 3 | P37: 1 | Q37: 4
K38: HEROES DE LA DEMOCRACIA | L38: 08DES0013M MATUTINO | M38: 080029003S19 | N38: 3 | O38: 3 | P38: 3 | Q38: 2
K39: HEROES DE LA DEMOCRACIA | L39: 08DES0013M MATUTINO | M39: 080029004S19 | N39: 3 | O39: 8 | P39: 1 | Q39: 1
K40: HEROES DE LA DEMOCRACIA | L40: 08DES0013M MATUTINO | M40: 080029005S19 | N40: 4 | O40: 1 | P40: 1 | Q40: 1
K41: HEROES DE LA DEMOCRACIA | L41: 08DES0013M MATUTINO | M41: 080029006S19 | N41: 3 | O41: 3 | P41: 2 | Q41: 1
K42: HEROES DE LA DEMOCRACIA | L42: 08DES0013M MATUTINO | M42: 080029007S19 | N42: 3 | O42: 2 | P42: 1 | Q42: 1
K43: HEROES DE LA DEMOCRACIA | L43: 08DES0013M MATUTINO | M43: 080029008S19 | N43: 4 | O43: 2 | P43: 1 | Q43: 2
K44: HEROES DE LA DEMOCRACIA | L44: 08DES0013M MATUTINO | M44: 080029009S19 | N44: 4 | O44: 2 | P44: 1 | Q44: 3
K45: HEROES DE LA DEMOCRACIA | L45: 08DES0013M MATUTINO | M45: 080029010S19 | N45: 8 | O45: 8 | P45: 8 | Q45: 8
K46: HEROES DE LA DEMOCRACIA | L46: 08DES0013M MATUTINO | M46: 080029011S19 | N46: 4 | O46: 2 | P46: 1 | Q46: 3
K47: HEROES DE LA DEMOCRACIA | L47: 08DES0013M MATUTINO | M47: 080029012S19 | N47: 4 | O47: 2 | P47: 1 | Q47: 2
K48: HEROES DE LA DEMOCRACIA | L48: 08DES0013M MATUTINO | M48: 080029013S19 | N48: 8 | O48: 8 | P48: 8 | Q48: 8
K49: HEROES DE LA DEMOCRACIA | L49: 08DES0013M MATUTINO | M49: 080029014S19 | N49: 4 | O49: 2 | P49: 1 | Q49: 2
K50: HEROES DE LA DEMOCRACIA | L50: 08DES0013M MATUTINO | M50: 080029015S19 | N50: 3 | O50: 2 | P50: 1 | Q50: 3
K51: HEROES DE LA DEMOCRACIA | L51: 08DES0013M MATUTINO | M51: 080029016S19 | N51: 4 | O51: 2 | P51: 1 | Q51: 1
K52: HEROES DE LA DEMOCRACIA | L52: 08DES0013M MATUTINO | M52: 080029017S19 | N52: 4 | O52: 2 | P52: 2 | Q52: 1

Sheet UD_PROBABILIDAD
B2: Probabilidad
G3: MATEMÁTICAS | H3: 9 | I3: C | J3: 3 | K3: SECUNDARIA | L3: MATEMÁTICAS | M3: SM9 | N3: SM9 | P3: 9 | Q3: Nociones de probabilidad | R3: Calcular la probabilidad teórica de un evento simple.
G4: MATEMÁTICAS | H4: 11 | I4: D | J4: 4 | K4: SECUNDARIA | L4: MATEMÁTICAS | M4: SM11 | N4: SM11 | P4: 11 | Q4: Nociones de probabilidad | R4: Resolver problemas de conteo.
B16: nombre_ct | C16: CCT_TURNO | D16: Promedio de MAT_SEC_1_9 | E16: Promedio de MAT_SEC_1_111 | I16: nombre_ct | J16: CCT_TURNO | K16: nofolio | L16: Suma de MAT_SEC_19_RESP_9 | M16: Suma de MAT_SEC_19_RESP_11 | P16: REACTIVOS | Q16: 1 | R16: 2 | S16: 3 | T16: 4 | U16: TOTAL | V16: REACTIVOS | W16: R1 | X16: R2 | Y16: R3 | Z16: R4 | AA16: TOTAL
B17: HEROES DE LA DEMOCRACIA | C17: 08DES0013M MATUTINO | D17: 0.1666666667 | E17: 0.25 | I17: HEROES DE LA DEMOCRACIA | J17: 08DES0013M MATUTINO | K17: 080028978S19 | L17: 3 | M17: 1 | P17: SM9 | Q17: =COUNTIF(L17:L28101,Q16) -> 15 | R17: =COUNTIF(L17:L28101,R16) -> 13 | S17: =COUNTIF(L17:L28101,S16) -> 6 | T17: =COUNTIF(L17:L28101,T16) -> 2 | U17: =SUM(Q17:T17) -> 36 | V17: SM9 | W17: =(Q17*100)/U17 -> 41.66666667 | X17: =(R17*100)/U17 -> 36.11111111 | Y17: =(S17*100)/U17 -> 16.66666667 | Z17: =(T17*100)/U17 -> 5.555555556 | AA17: =SUM(W17:Z17) -> 100
I18: HEROES DE LA DEMOCRACIA | J18: 08DES0013M MATUTINO | K18: 080028979S19 | L18: 1 | M18: 1 | P18: SM11 | Q18: =COUNTIF(M17:M28102,Q16) -> 13 | R18: =COUNTIF(M17:M28102,R16) -> 2 | S18: =COUNTIF(M17:M28102,S16) -> 12 | T18: =COUNTIF(M17:M28102,T16) -> 9 | U18: =SUM(Q18:T18) -> 36 | V18: SM11 | W18: =(Q18*100)/U18 -> 36.11111111 | X18: =(R18*100)/U18 -> 5.555555556 | Y18: =(S18*100)/U18 -> 33.33333333 | Z18: =(T18*100)/U18 -> 25 | AA18: =SUM(W18:Z18) -> 100
I19: HEROES DE LA DEMOCRACIA | J19: 08DES0013M MATUTINO | K19: 080028980S19 | L19: 1 | M19: 4
I20: HEROES DE LA DEMOCRACIA | J20: 08DES0013M MATUTINO | K20: 080028981S19 | L20: 1 | M20: 1
I21: HEROES DE LA DEMOCRACIA | J21: 08DES0013M MATUTINO | K21: 080028982S19 | L21: 2 | M21: 3
I22: HEROES DE LA DEMOCRACIA | J22: 08DES0013M MATUTINO | K22: 080028983S19 | L22: 1 | M22: 3
I23: HEROES DE LA DEMOCRACIA | J23: 08DES0013M MATUTINO | K23: 080028984S19 | L23: 1 | M23: 4
I24: HEROES DE LA DEMOCRACIA | J24: 08DES0013M MATUTINO | K24: 080028985S19 | L24: 4 | M24: 3
I25: HEROES DE LA DEMOCRACIA | J25: 08DES0013M MATUTINO | K25: 080028986S19 | L25: 1 | M25: 3
I26: HEROES DE LA DEMOCRACIA | J26: 08DES0013M MATUTINO | K26: 080028987S19 | L26: 8 | M26: 8
I27: HEROES DE LA DEMOCRACIA | J27: 08DES0013M MATUTINO | K27: 080028988S19 | L27: 3 | M27: 2
I28: HEROES DE LA DEMOCRACIA | J28: 08DES0013M MATUTINO | K28: 080028989S19 | L28: 1 | M28: 1
I29: HEROES DE LA DEMOCRACIA | J29: 08DES0013M MATUTINO | K29: 080028990S19 | L29: 1 | M29: 1
I30: HEROES DE LA DEMOCRACIA | J30: 08DES0013M MATUTINO | K30: 080028991S19 | L30: 2 | M30: 4
I31: HEROES DE LA DEMOCRACIA | J31: 08DES0013M MATUTINO | K31: 080028992S19 | L31: 2 | M31: 1
I32: HEROES DE LA DEMOCRACIA | J32: 08DES0013M MATUTINO | K32: 080028993S19 | L32: 2 | M32: 1
I33: HEROES DE LA DEMOCRACIA | J33: 08DES0013M MATUTINO | K33: 080028995S19 | L33: 1 | M33: 3
I34: HEROES DE LA DEMOCRACIA | J34: 08DES0013M MATUTINO | K34: 080028996S19 | L34: 4 | M34: 1
I35: HEROES DE LA DEMOCRACIA | J35: 08DES0013M MATUTINO | K35: 080028997S19 | L35: 2 | M35: 3
I36: HEROES DE LA DEMOCRACIA | J36: 08DES0013M MATUTINO | K36: 080028998S19 | L36: 2 | M36: 4
I37: HEROES DE LA DEMOCRACIA | J37: 08DES0013M MATUTINO | K37: 080028999S19 | L37: 2 | M37: 3
I38: HEROES DE LA DEMOCRACIA | J38: 08DES0013M MATUTINO | K38: 080029000S19 | L38: 2 | M38: 3
I39: HEROES DE LA DEMOCRACIA | J39: 08DES0013M MATUTINO | K39: 080029001S19 | L39: 2 | M39: 4
I40: HEROES DE LA DEMOCRACIA | J40: 08DES0013M MATUTINO | K40: 080029002S19 | L40: 3 | M40: 2
I41: HEROES DE LA DEMOCRACIA | J41: 08DES0013M MATUTINO | K41: 080029003S19 | L41: 3 | M41: 3
I42: HEROES DE LA DEMOCRACIA | J42: 08DES0013M MATUTINO | K42: 080029004S19 | L42: 1 | M42: 1
I43: HEROES DE LA DEMOCRACIA | J43: 08DES0013M MATUTINO | K43: 080029005S19 | L43: 1 | M43: 3
I44: HEROES DE LA DEMOCRACIA | J44: 08DES0013M MATUTINO | K44: 080029006S19 | L44: 2 | M44: 4
I45: HEROES DE LA DEMOCRACIA | J45: 08DES0013M MATUTINO | K45: 080029007S19 | L45: 1 | M45: 4
I46: HEROES DE LA DEMOCRACIA | J46: 08DES0013M MATUTINO | K46: 080029008S19 | L46: 3 | M46: 4
I47: HEROES DE LA DEMOCRACIA | J47: 08DES0013M MATUTINO | K47: 080029009S19 | L47: 2 | M47: 1
I48: HEROES DE LA DEMOCRACIA | J48: 08DES0013M MATUTINO | K48: 080029010S19 | L48: 8 | M48: 8
I49: HEROES DE LA DEMOCRACIA | J49: 08DES0013M MATUTINO | K49: 080029011S19 | L49: 1 | M49: 4
I50: HEROES DE LA DEMOCRACIA | J50: 08DES0013M MATUTINO | K50: 080029012S19 | L50: 2 | M50: 1
I51: HEROES DE LA DEMOCRACIA | J51: 08DES0013M MATUTINO | K51: 080029013S19 | L51: 8 | M51: 8
I52: HEROES DE LA DEMOCRACIA | J52: 08DES0013M MATUTINO | K52: 080029014S19 | L52: 3 | M52: 1
I53: HEROES DE LA DEMOCRACIA | J53: 08DES0013M MATUTINO | K53: 080029015S19 | L53: 1 | M53: 1
I54: HEROES DE LA DEMOCRACIA | J54: 08DES0013M MATUTINO | K54: 080029016S19 | L54: 2 | M54: 3
I55: HEROES DE LA DEMOCRACIA | J55: 08DES0013M MATUTINO | K55: 080029017S19 | L55: 1 | M55: 3

Sheet UD_NÚMEROS Y SISTEMAS
A2: Números y Sistemas de numeración | B2: Números y Sistemas Numéricos
F3: MATEMÁTICAS | G3: 24 | H3: D | I3: 4 | J3: SECUNDARIA | K3: MATEMÁTICAS | L3: SM24 | M3: SM24 | O3: 24 | P3: Números y Sistemas de numeración | Q3: Ubicar en la recta numérica números decimales dados dos puntos cualesquiera.
F4: MATEMÁTICAS | G4: 46 | H4: B | I4: 2 | J4: SECUNDARIA | K4: MATEMÁTICAS | L4: SM46 | M4: SM46 | O4: 46 | P4: Números y Sistemas de numeración | Q4: Ubicar en la recta numérica números decimales dados dos puntos cualesquiera.
C13: nombre_ct | D13: CCT_TURNO | E13: Promedio de MAT_SEC_1_24 | F13: Promedio de MAT_SEC_1_46 | I13: nombre_ct | J13: CCT_TURNO | K13: nofolio | L13: Suma de MAT_SEC_19_RESP_24 | M13: Suma de MAT_SEC_19_RESP_46 | P13: REACTIVOS | Q13: 1 | R13: 2 | S13: 3 | T13: 4 | U13: TOTAL | V13: REACTIVOS | W13: R1 | X13: R2 | Y13: R3 | Z13: R4 | AA13: TOTAL
C14: HEROES DE LA DEMOCRACIA | D14: 08DES0013M MATUTINO | E14: 0.2777777778 | F14: 0.5 | I14: HEROES DE LA DEMOCRACIA | J14: 08DES0013M MATUTINO | K14: 080028978S19 | L14: 4 | M14: 1 | P14: SM24 | Q14: =COUNTIF(L14:L28101,Q13) -> 11 | R14: =COUNTIF(L14:L28101,R13) -> 7 | S14: =COUNTIF(L14:L28101,S13) -> 8 | T14: =COUNTIF(L14:L28101,T13) -> 10 | U14: =SUM(Q14:T14) -> 36 | V14: SM24 | W14: =(Q14*100)/U14 -> 30.55555556 | X14: =(R14*100)/U14 -> 19.44444444 | Y14: =(S14*100)/U14 -> 22.22222222 | Z14: =(T14*100)/U14 -> 27.77777778 | AA14: =SUM(W14:Z14) -> 100
I15: HEROES DE LA DEMOCRACIA | J15: 08DES0013M MATUTINO | K15: 080028979S19 | L15: 4 | M15: 2 | P15: SM46 | Q15: =COUNTIF(M14:M28102,Q13) -> 5 | R15: =COUNTIF(M14:M28102,R13) -> 18 | S15: =COUNTIF(M14:M28102,S13) -> 7 | T15: =COUNTIF(M14:M28102,T13) -> 6 | U15: =SUM(Q15:T15) -> 36 | V15: SM46 | W15: =(Q15*100)/U15 -> 13.88888889 | X15: =(R15*100)/U15 -> 50 | Y15: =(S15*100)/U15 -> 19.44444444 | Z15: =(T15*100)/U15 -> 16.66666667 | AA15: =SUM(W15:Z15) -> 100
I16: HEROES DE LA DEMOCRACIA | J16: 08DES0013M MATUTINO | K16: 080028980S19 | L16: 4 | M16: 2
I17: HEROES DE LA DEMOCRACIA | J17: 08DES0013M MATUTINO | K17: 080028981S19 | L17: 1 | M17: 4
I18: HEROES DE LA DEMOCRACIA | J18: 08DES0013M MATUTINO | K18: 080028982S19 | L18: 2 | M18: 1
I19: HEROES DE LA DEMOCRACIA | J19: 08DES0013M MATUTINO | K19: 080028983S19 | L19: 4 | M19: 3
I20: HEROES DE LA DEMOCRACIA | J20: 08DES0013M MATUTINO | K20: 080028984S19 | L20: 4 | M20: 1
I21: HEROES DE LA DEMOCRACIA | J21: 08DES0013M MATUTINO | K21: 080028985S19 | L21: 3 | M21: 2
I22: HEROES DE LA DEMOCRACIA | J22: 08DES0013M MATUTINO | K22: 080028986S19 | L22: 3 | M22: 2
I23: HEROES DE LA DEMOCRACIA | J23: 08DES0013M MATUTINO | K23: 080028987S19 | L23: 8 | M23: 8
I24: HEROES DE LA DEMOCRACIA | J24: 08DES0013M MATUTINO | K24: 080028988S19 | L24: 1 | M24: 1
I25: HEROES DE LA DEMOCRACIA | J25: 08DES0013M MATUTINO | K25: 080028989S19 | L25: 1 | M25: 4
I26: HEROES DE LA DEMOCRACIA | J26: 08DES0013M MATUTINO | K26: 080028990S19 | L26: 1 | M26: 2
I27: HEROES DE LA DEMOCRACIA | J27: 08DES0013M MATUTINO | K27: 080028991S19 | L27: 4 | M27: 2
I28: HEROES DE LA DEMOCRACIA | J28: 08DES0013M MATUTINO | K28: 080028992S19 | L28: 4 | M28: 3
I29: HEROES DE LA DEMOCRACIA | J29: 08DES0013M MATUTINO | K29: 080028993S19 | L29: 2 | M29: 4
I30: HEROES DE LA DEMOCRACIA | J30: 08DES0013M MATUTINO | K30: 080028995S19 | L30: 3 | M30: 3
I31: HEROES DE LA DEMOCRACIA | J31: 08DES0013M MATUTINO | K31: 080028996S19 | L31: 4 | M31: 2
I32: HEROES DE LA DEMOCRACIA | J32: 08DES0013M MATUTINO | K32: 080028997S19 | L32: 1 | M32: 4
I33: HEROES DE LA DEMOCRACIA | J33: 08DES0013M MATUTINO | K33: 080028998S19 | L33: 4 | M33: 2
I34: HEROES DE LA DEMOCRACIA | J34: 08DES0013M MATUTINO | K34: 080028999S19 | L34: 2 | M34: 2
I35: HEROES DE LA DEMOCRACIA | J35: 08DES0013M MATUTINO | K35: 080029000S19 | L35: 3 | M35: 4
I36: HEROES DE LA DEMOCRACIA | J36: 08DES0013M MATUTINO | K36: 080029001S19 | L36: 3 | M36: 2
I37: HEROES DE LA DEMOCRACIA | J37: 08DES0013M MATUTINO | K37: 080029002S19 | L37: 2 | M37: 3
I38: HEROES DE LA DEMOCRACIA | J38: 08DES0013M MATUTINO | K38: 080029003S19 | L38: 2 | M38: 2
I39: HEROES DE LA DEMOCRACIA | J39: 08DES0013M MATUTINO | K39: 080029004S19 | L39: 2 | M39: 2
I40: HEROES DE LA DEMOCRACIA | J40: 08DES0013M MATUTINO | K40: 080029005S19 | L40: 1 | M40: 2
I41: HEROES DE LA DEMOCRACIA | J41: 08DES0013M MATUTINO | K41: 080029006S19 | L41: 3 | M41: 2
I42: HEROES DE LA DEMOCRACIA | J42: 08DES0013M MATUTINO | K42: 080029007S19 | L42: 3 | M42: 3
I43: HEROES DE LA DEMOCRACIA | J43: 08DES0013M MATUTINO | K43: 080029008S19 | L43: 1 | M43: 4
I44: HEROES DE LA DEMOCRACIA | J44: 08DES0013M MATUTINO | K44: 080029009S19 | L44: 3 | M44: 3
I45: HEROES DE LA DEMOCRACIA | J45: 08DES0013M MATUTINO | K45: 080029010S19 | L45: 8 | M45: 8
I46: HEROES DE LA DEMOCRACIA | J46: 08DES0013M MATUTINO | K46: 080029011S19 | L46: 1 | M46: 2
I47: HEROES DE LA DEMOCRACIA | J47: 08DES0013M MATUTINO | K47: 080029012S19 | L47: 1 | M47: 1
I48: HEROES DE LA DEMOCRACIA | J48: 08DES0013M MATUTINO | K48: 080029013S19 | L48: 8 | M48: 8
I49: HEROES DE LA DEMOCRACIA | J49: 08DES0013M MATUTINO | K49: 080029014S19 | L49: 1 | M49: 2
I50: HEROES DE LA DEMOCRACIA | J50: 08DES0013M MATUTINO | K50: 080029015S19 | L50: 1 | M50: 2
I51: HEROES DE LA DEMOCRACIA | J51: 08DES0013M MATUTINO | K51: 080029016S19 | L51: 4 | M51: 2
I52: HEROES DE LA DEMOCRACIA | J52: 08DES0013M MATUTINO | K52: 080029017S19 | L52: 2 | M52: 3

Sheet UD_PATRONES Y ECUACIONES
B2: Patrones y ecuaciones
H3: MATEMÁTICAS | I3: 18 | J3: C | K3: 3 | L3: SECUNDARIA | M3: MATEMÁTICAS | N3: SM18 | O3: SM18 | Q3: 18 | R3: Patrones y ecuaciones | S3: Resolver ecuaciones de primer grado de la forma: ax + bx + c = dx + ex +f y con paréntesis en uno o en ambos miembros de la ecuación, utilizando coeficientes enteros o fraccionarios.
H4: MATEMÁTICAS | I4: 20 | J4: A | K4: 1 | L4: SECUNDARIA | M4: MATEMÁTICAS | N4: SM20 | O4: SM20 | Q4: 20 | R4: Patrones y ecuaciones | S4: Resolver ecuaciones de primer grado de la forma: ax + bx + c = dx + ex +f y con paréntesis en uno o en ambos miembros de la ecuación, utilizando coeficientes enteros o fraccionarios.
H5: MATEMÁTICAS | I5: 23 | J5: A | K5: 1 | L5: SECUNDARIA | M5: MATEMÁTICAS | N5: SM23 | O5: SM23 | Q5: 23 | R5: Patrones y ecuaciones | S5: Traducir al lenguaje natural el significado de fórmulas geométricas o viceversa.
H6: MATEMÁTICAS | I6: 39 | J6: D | K6: 4 | L6: SECUNDARIA | M6: MATEMÁTICAS | N6: SM39 | O6: SM39 | Q6: 39 | R6: Patrones y ecuaciones | S6: Resolver ecuaciones de primer grado de la forma: ax + bx + c = dx + ex +f y con paréntesis en uno o en ambos miembros de la ecuación, utilizando coeficientes enteros o fraccionarios.
H7: MATEMÁTICAS | I7: 43 | J7: A | K7: 1 | L7: SECUNDARIA | M7: MATEMÁTICAS | N7: SM43 | O7: SM43 | Q7: 43 | R7: Patrones y ecuaciones | S7: Resolver problemas que impliquen el uso de un sistema de dos ecuaciones lineales con dos incógnitas.
H8: MATEMÁTICAS | I8: 47 | J8: B | K8: 2 | L8: SECUNDARIA | M8: MATEMÁTICAS | N8: SM47 | O8: SM47 | Q8: 47 | R8: Patrones y ecuaciones | S8: Resolver ecuaciones de primer grado de la forma: ax + bx + c = dx + ex +f y con paréntesis en uno o en ambos miembros de la ecuación, utilizando coeficientes enteros o fraccionarios.
B13: nombre_ct | C13: CCT_TURNO | D13: Promedio de MAT_SEC_1_18 | E13: Promedio de MAT_SEC_1_20 | F13: Promedio de MAT_SEC_1_23 | G13: Promedio de MAT_SEC_1_39 | H13: Promedio de MAT_SEC_1_43 | I13: Promedio de MAT_SEC_1_47 | L13: nombre_ct | M13: CCT_TURNO | N13: nofolio | O13: MAT_SEC_19_RESP_18 | P13: MAT_SEC_19_RESP_20 | Q13: MAT_SEC_19_RESP_23 | R13: MAT_SEC_19_RESP_39 | S13: MAT_SEC_19_RESP_43 | T13: MAT_SEC_19_RESP_47 | W13: REACTIVOS | X13: 1 | Y13: 2 | Z13: 3 | AA13: 4 | AB13: TOTAL | AC13: REACTIVOS | AD13: R1 | AE13: R2 | AF13: R3 | AG13: R4 | AH13: TOTAL
B14: HEROES DE LA DEMOCRACIA | C14: 08DES0013M MATUTINO | D14: 0.4444444444 | E14: 0.6285714286 | F14: 0.2222222222 | G14: 0.2222222222 | H14: 0.3888888889 | I14: 0.3055555556 | L14: HEROES DE LA DEMOCRACIA | M14: 08DES0013M MATUTINO | N14: 080028978S19 | O14: 3 | P14: 1 | Q14: 4 | R14: 2 | S14: 3 | T14: 2 | W14: SM18 | X14: =COUNTIF(O14:O28101,X13) -> 6 | Y14: =COUNTIF(O14:O28101,Y13) -> 12 | Z14: =COUNTIF(O14:O28101,Z13) -> 16 | AA14: =COUNTIF(O14:O28101,AA13) -> 2 | AB14: =SUM(X14:AA14) -> 36 | AC14: SM18 | AD14: =(X14*100)/AB14 -> 16.66666667 | AE14: =(Y14*100)/AB14 -> 33.33333333 | AF14: =(Z14*100)/AB14 -> 44.44444444 | AG14: =(AA14*100)/AB14 -> 5.555555556 | AH14: =SUM(AD14:AG14) -> 100
L15: HEROES DE LA DEMOCRACIA | M15: 08DES0013M MATUTINO | N15: 080028979S19 | O15: 2 | P15: 1 | Q15: 3 | R15: 4 | S15: 3 | T15: 1 | W15: SM20 | X15: =COUNTIF(P14:P28102,X13) -> 22 | Y15: =COUNTIF(P14:P28102,Y13) -> 6 | Z15: =COUNTIF(P14:P28102,Z13) -> 4 | AA15: =COUNTIF(P14:P28102,AA13) -> 3 | AB15: =SUM(X15:AA15) -> 35 | AC15: SM20 | AD15: =(X15*100)/AB15 -> 62.85714286 | AE15: =(Y15*100)/AB15 -> 17.14285714 | AF15: =(Z15*100)/AB15 -> 11.42857143 | AG15: =(AA15*100)/AB15 -> 8.571428571 | AH15: =SUM(AD15:AG15) -> 100
L16: HEROES DE LA DEMOCRACIA | M16: 08DES0013M MATUTINO | N16: 080028980S19 | O16: 3 | P16: 1 | Q16: 1 | R16: 3 | S16: 3 | T16: 4 | W16: SM23 | X16: =COUNTIF(Q14:Q28103,X13) -> 8 | Y16: =COUNTIF(Q14:Q28103,Y13) -> 10 | Z16: =COUNTIF(Q14:Q28103,Z13) -> 8 | AA16: =COUNTIF(Q14:Q28103,AA13) -> 10 | AB16: 36 | AC16: SM23 | AD16: 22.22222222 | AE16: 27.77777778 | AF16: 22.22222222 | AG16: 27.77777778 | AH16: 100
L17: HEROES DE LA DEMOCRACIA | M17: 08DES0013M MATUTINO | N17: 080028981S19 | O17: 2 | P17: 2 | Q17: 3 | R17: 1 | S17: 1 | T17: 2 | W17: SM39 | X17: =COUNTIF(R14:R28104,X13) -> 10 | Y17: =COUNTIF(R14:R28104,Y13) -> 7 | Z17: =COUNTIF(R14:R28104,Z13) -> 11 | AA17: =COUNTIF(R14:R28104,AA13) -> 8 | AB17: 36 | AC17: SM39 | AD17: 27.77777778 | AE17: 19.44444444 | AF17: 30.55555556 | AG17: 22.22222222 | AH17: 100
L18: HEROES DE LA DEMOCRACIA | M18: 08DES0013M MATUTINO | N18: 080028982S19 | O18: 1 | P18: 1 | Q18: 1 | R18: 4 | S18: 4 | T18: 3 | W18: SM43 | X18: =COUNTIF(S14:S28105,X13) -> 14 | Y18: =COUNTIF(S14:S28105,Y13) -> 10 | Z18: =COUNTIF(S14:S28105,Z13) -> 6 | AA18: =COUNTIF(S14:S28105,AA13) -> 6 | AB18: 36 | AC18: SM43 | AD18: 38.88888889 | AE18: 27.77777778 | AF18: 16.66666667 | AG18: 16.66666667 | AH18: 100
L19: HEROES DE LA DEMOCRACIA | M19: 08DES0013M MATUTINO | N19: 080028983S19 | O19: 2 | P19: 3 | Q19: 1 | R19: 4 | S19: 1 | T19: 1 | W19: SM47 | X19: =COUNTIF(T14:T28106,X13) -> 9 | Y19: =COUNTIF(T14:T28106,Y13) -> 11 | Z19: =COUNTIF(T14:T28106,Z13) -> 7 | AA19: =COUNTIF(T14:T28106,AA13) -> 9 | AB19: 36 | AC19: SM47 | AD19: 25 | AE19: 30.55555556 | AF19: 19.44444444 | AG19: 25 | AH19: 100
L20: HEROES DE LA DEMOCRACIA | M20: 08DES0013M MATUTINO | N20: 080028984S19 | O20: 1 | P20: 2 | Q20: 2 | R20: 2 | S20: 1 | T20: 2
L21: HEROES DE LA DEMOCRACIA | M21: 08DES0013M MATUTINO | N21: 080028985S19 | O21: 1 | P21: 3 | Q21: 3 | R21: 2 | S21: 2 | T21: 2
L22: HEROES DE LA DEMOCRACIA | M22: 08DES0013M MATUTINO | N22: 080028986S19 | O22: 3 | P22: 1 | Q22: 1 | R22: 4 | S22: 1 | T22: 1
L23: HEROES DE LA DEMOCRACIA | M23: 08DES0013M MATUTINO | N23: 080028987S19 | O23: 8 | P23: 8 | Q23: 8 | R23: 8 | S23: 8 | T23: 8
L24: HEROES DE LA DEMOCRACIA | M24: 08DES0013M MATUTINO | N24: 080028988S19 | O24: 2 | P24: 1 | Q24: 2 | R24: 1 | S24: 4 | T24: 2
L25: HEROES DE LA DEMOCRACIA | M25: 08DES0013M MATUTINO | N25: 080028989S19 | O25: 4 | P25: 3 | Q25: 2 | R25: 4 | S25: 1 | T25: 4
L26: HEROES DE LA DEMOCRACIA | M26: 08DES0013M MATUTINO | N26: 080028990S19 | O26: 2 | P26: 2 | Q26: 1 | R26: 1 | S26: 4 | T26: 4
L27: HEROES DE LA DEMOCRACIA | M27: 08DES0013M MATUTINO | N27: 080028991S19 | O27: 3 | P27: 1 | Q27: 2 | R27: 4 | S27: 1 | T27: 2
L28: HEROES DE LA DEMOCRACIA | M28: 08DES0013M MATUTINO | N28: 080028992S19 | O28: 2 | P28: 1 | Q28: 4 | R28: 2 | S28: 2 | T28: 1
L29: HEROES DE LA DEMOCRACIA | M29: 08DES0013M MATUTINO | N29: 080028993S19 | O29: 2 | P29: 1 | Q29: 2 | R29: 3 | S29: 2 | T29: 3
L30: HEROES DE LA DEMOCRACIA | M30: 08DES0013M MATUTINO | N30: 080028995S19 | O30: 1 | P30: 1 | Q30: 1 | R30: 3 | S30: 2 | T30: 2
L31: HEROES DE LA DEMOCRACIA | M31: 08DES0013M MATUTINO | N31: 080028996S19 | O31: 3 | P31: 1 | Q31: 1 | R31: 3 | S31: 4 | T31: 4
L32: HEROES DE LA DEMOCRACIA | M32: 08DES0013M MATUTINO | N32: 080028997S19 | O32: 3 | P32: 1 | Q32: 3 | R32: 2 | S32: 1 | T32: 1
L33: HEROES DE LA DEMOCRACIA | M33: 08DES0013M MATUTINO | N33: 080028998S19 | O33: 3 | P33: 1 | Q33: 1 | R33: 3 | S33: 4 | T33: 4
L34: HEROES DE LA DEMOCRACIA | M34: 08DES0013M MATUTINO | N34: 080028999S19 | O34: 4 | P34: 1 | Q34: 3 | R34: 2 | S34: 3 | T34: 1
L35: HEROES DE LA DEMOCRACIA | M35: 08DES0013M MATUTINO | N35: 080029000S19 | O35: 3 | P35: 1 | Q35: 2 | R35: 3 | S35: 1 | T35: 2
L36: HEROES DE LA DEMOCRACIA | M36: 08DES0013M MATUTINO | N36: 080029001S19 | O36: 3 | P36: 1 | Q36: 2 | R36: 1 | S36: 4 | T36: 3
L37: HEROES DE LA DEMOCRACIA | M37: 08DES0013M MATUTINO | N37: 080029002S19 | O37: 3 | P37: 1 | Q37: 4 | R37: 3 | S37: 2 | T37: 1
L38: HEROES DE LA DEMOCRACIA | M38: 08DES0013M MATUTINO | N38: 080029003S19 | O38: 2 | P38: 4 | Q38: 2 | R38: 2 | S38: 2 | T38: 2
L39: HEROES DE LA DEMOCRACIA | M39: 08DES0013M MATUTINO | N39: 080029004S19 | O39: 3 | P39: 8 | Q39: 3 | R39: 1 | S39: 1 | T39: 3
L40: HEROES DE LA DEMOCRACIA | M40: 08DES0013M MATUTINO | N40: 080029005S19 | O40: 2 | P40: 1 | Q40: 2 | R40: 3 | S40: 1 | T40: 2
L41: HEROES DE LA DEMOCRACIA | M41: 08DES0013M MATUTINO | N41: 080029006S19 | O41: 3 | P41: 1 | Q41: 4 | R41: 1 | S41: 2 | T41: 4
L42: HEROES DE LA DEMOCRACIA | M42: 08DES0013M MATUTINO | N42: 080029007S19 | O42: 3 | P42: 4 | Q42: 3 | R42: 1 | S42: 2 | T42: 4
L43: HEROES DE LA DEMOCRACIA | M43: 08DES0013M MATUTINO | N43: 080029008S19 | O43: 2 | P43: 4 | Q43: 4 | R43: 1 | S43: 1 | T43: 1
L44: HEROES DE LA DEMOCRACIA | M44: 08DES0013M MATUTINO | N44: 080029009S19 | O44: 3 | P44: 3 | Q44: 4 | R44: 3 | S44: 3 | T44: 4
L45: HEROES DE LA DEMOCRACIA | M45: 08DES0013M MATUTINO | N45: 080029010S19 | O45: 8 | P45: 8 | Q45: 8 | R45: 8 | S45: 8 | T45: 8
L46: HEROES DE LA DEMOCRACIA | M46: 08DES0013M MATUTINO | N46: 080029011S19 | O46: 3 | P46: 1 | Q46: 4 | R46: 1 | S46: 1 | T46: 3
L47: HEROES DE LA DEMOCRACIA | M47: 08DES0013M MATUTINO | N47: 080029012S19 | O47: 1 | P47: 1 | Q47: 4 | R47: 4 | S47: 1 | T47: 2
L48: HEROES DE LA DEMOCRACIA | M48: 08DES0013M MATUTINO | N48: 080029013S19 | O48: 8 | P48: 8 | Q48: 8 | R48: 8 | S48: 8 | T48: 8
L49: HEROES DE LA DEMOCRACIA | M49: 08DES0013M MATUTINO | N49: 080029014S19 | O49: 3 | P49: 2 | Q49: 4 | R49: 4 | S49: 2 | T49: 3
L50: HEROES DE LA DEMOCRACIA | M50: 08DES0013M MATUTINO | N50: 080029015S19 | O50: 1 | P50: 2 | Q50: 4 | R50: 3 | S50: 3 | T50: 4
L51: HEROES DE LA DEMOCRACIA | M51: 08DES0013M MATUTINO | N51: 080029016S19 | O51: 2 | P51: 1 | Q51: 3 | R51: 1 | S51: 1 | T51: 3
L52: HEROES DE LA DEMOCRACIA | M52: 08DES0013M MATUTINO | N52: 080029017S19 | O52: 2 | P52: 2 | Q52: 2 | R52: 3 | S52: 2 | T52: 1

Sheet UD_PROBLEMAS ADITIVOS
B2: Problemas aditivos
I3: 17 | J3: D | K3: 4 | L3: SECUNDARIA | M3: MATEMÁTICAS | N3: SM17 | O3: SM17 | Q3: 17 | R3: Problemas aditivos | S3: Resolver problemas aditivos con números fraccionarios con distinto denominador.
I4: 25 | J4: C | K4: 3 | L4: SECUNDARIA | M4: MATEMÁTICAS | N4: SM25 | O4: SM25 | Q4: 25 | R4: Problemas aditivos | S4: Resolver problemas aditivos con números decimales.
I5: 40 | J5: C | K5: 3 | L5: SECUNDARIA | M5: MATEMÁTICAS | N5: SM40 | O5: SM40 | Q5: 40 | R5: Problemas aditivos | S5: Resolver problemas aditivos con números fraccionarios con distinto denominador.
I6: 41 | J6: D | K6: 4 | L6: SECUNDARIA | M6: MATEMÁTICAS | N6: SM41 | O6: SM41 | Q6: 41 | R6: Problemas aditivos | S6: Resolver problemas aditivos con números fraccionarios y decimales.
I7: 42 | J7: C | K7: 3 | L7: SECUNDARIA | M7: MATEMÁTICAS | N7: SM42 | O7: SM42 | Q7: 42 | R7: Problemas aditivos | S7: Resolver problemas aditivos con números fraccionarios con distinto denominador.
I8: 44 | J8: C | K8: 3 | L8: SECUNDARIA | M8: MATEMÁTICAS | N8: SM44 | O8: SM44 | Q8: 44 | R8: Problemas aditivos | S8: Resolver problemas aditivos que impliquen el uso de números enteros.
I9: 50 | J9: C | K9: 3 | L9: SECUNDARIA | M9: MATEMÁTICAS | N9: SM50 | O9: SM50 | Q9: 50 | R9: Problemas aditivos | S9: Resolver problemas aditivos que impliquen el uso de números enteros.
B13: nombre_ct | C13: CCT_TURNO | D13: Promedio de MAT_SEC_1_17 | E13: Promedio de MAT_SEC_1_25 | F13: Promedio de MAT_SEC_1_40 | G13: Promedio de MAT_SEC_1_41 | H13: Promedio de MAT_SEC_1_42 | I13: Promedio de MAT_SEC_1_44 | J13: Promedio de MAT_SEC_1_50 | M13: nombre_ct | N13: CCT_TURNO | O13: nofolio | P13: MAT_SEC_19_RESP_17 | Q13: MAT_SEC_19_RESP_25 | R13: MAT_SEC_19_RESP_40 | S13: MAT_SEC_19_RESP_41 | T13: MAT_SEC_19_RESP_42 | U13: MAT_SEC_19_RESP_44 | V13: MAT_SEC_19_RESP_50 | Y13: REACTIVOS | Z13: 1 | AA13: 2 | AB13: 3 | AC13: 4 | AD13: TOTAL | AE13: REACTIVOS | AF13: R1 | AG13: R2 | AH13: R3 | AI13: R4 | AJ13: TOTAL
B14: HEROES DE LA DEMOCRACIA | C14: 08DES0013M MATUTINO | D14: 0.3142857143 | E14: 0.5 | F14: 0.1944444444 | G14: 0.08333333333 | H14: 0.2777777778 | I14: 0.3611111111 | J14: 0.3333333333 | M14: HEROES DE LA DEMOCRACIA | N14: 08DES0013M MATUTINO | O14: 080028978S19 | P14: 8 | Q14: 3 | R14: 3 | S14: 4 | T14: 4 | U14: 2 | V14: 3 | Y14: SM17 | Z14: =COUNTIF(P14:P28101,Z13) -> 11 | AA14: =COUNTIF(P14:P28101,AA13) -> 1 | AB14: =COUNTIF(P14:P28101,AB13) -> 12 | AC14: =COUNTIF(P14:P28101,AC13) -> 11 | AD14: =SUM(Z14:AC14) -> 35 | AE14: SM17 | AF14: =(Z14*100)/AD14 -> 31.42857143 | AG14: =(AA14*100)/AD14 -> 2.857142857 | AH14: =(AB14*100)/AD14 -> 34.28571429 | AI14: =(AC14*100)/AD14 -> 31.42857143 | AJ14: =SUM(AF14:AI14) -> 100
M15: HEROES DE LA DEMOCRACIA | N15: 08DES0013M MATUTINO | O15: 080028979S19 | P15: 1 | Q15: 1 | R15: 1 | S15: 1 | T15: 1 | U15: 1 | V15: 4 | Y15: SM25 | Z15: =COUNTIF(Q14:Q28102,Z13) -> 7 | AA15: =COUNTIF(Q14:Q28102,AA13) -> 5 | AB15: =COUNTIF(Q14:Q28102,AB13) -> 18 | AC15: =COUNTIF(Q14:Q28102,AC13) -> 6 | AD15: =SUM(Z15:AC15) -> 36 | AE15: SM25 | AF15: =(Z15*100)/AD15 -> 19.44444444 | AG15: =(AA15*100)/AD15 -> 13.88888889 | AH15: =(AB15*100)/AD15 -> 50 | AI15: =(AC15*100)/AD15 -> 16.66666667 | AJ15: =SUM(AF15:AI15) -> 100
M16: HEROES DE LA DEMOCRACIA | N16: 08DES0013M MATUTINO | O16: 080028980S19 | P16: 4 | Q16: 3 | R16: 4 | S16: 2 | T16: 2 | U16: 3 | V16: 3 | Y16: SM40 | Z16: =COUNTIF(R14:R28103,Z13) -> 15 | AA16: =COUNTIF(R14:R28103,AA13) -> 8 | AB16: =COUNTIF(R14:R28103,AB13) -> 7 | AC16: =COUNTIF(R14:R28103,AC13) -> 6 | AD16: 36 | AE16: SM40 | AF16: 41.66666667 | AG16: 22.22222222 | AH16: 19.44444444 | AI16: 16.66666667 | AJ16: 100
M17: HEROES DE LA DEMOCRACIA | N17: 08DES0013M MATUTINO | O17: 080028981S19 | P17: 4 | Q17: 3 | R17: 1 | S17: 3 | T17: 3 | U17: 3 | V17: 3 | Y17: SM41 | Z17: =COUNTIF(S14:S28104,Z13) -> 7 | AA17: =COUNTIF(S14:S28104,AA13) -> 13 | AB17: =COUNTIF(S14:S28104,AB13) -> 13 | AC17: =COUNTIF(S14:S28104,AC13) -> 3 | AD17: 36 | AE17: SM41 | AF17: 19.44444444 | AG17: 36.11111111 | AH17: 36.11111111 | AI17: 8.333333333 | AJ17: 100
M18: HEROES DE LA DEMOCRACIA | N18: 08DES0013M MATUTINO | O18: 080028982S19 | P18: 1 | Q18: 1 | R18: 1 | S18: 3 | T18: 4 | U18: 2 | V18: 4 | Y18: SM42 | Z18: =COUNTIF(T14:T28105,Z13) -> 11 | AA18: =COUNTIF(T14:T28105,AA13) -> 9 | AB18: =COUNTIF(T14:T28105,AB13) -> 10 | AC18: =COUNTIF(T14:T28105,AC13) -> 6 | AD18: 36 | AE18: SM42 | AF18: 30.55555556 | AG18: 25 | AH18: 27.77777778 | AI18: 16.66666667 | AJ18: 100
M19: HEROES DE LA DEMOCRACIA | N19: 08DES0013M MATUTINO | O19: 080028983S19 | P19: 4 | Q19: 1 | R19: 3 | S19: 2 | T19: 1 | U19: 4 | V19: 2 | Y19: SM44 | Z19: =COUNTIF(U14:U28106,Z13) -> 10 | AA19: =COUNTIF(U14:U28106,AA13) -> 9 | AB19: =COUNTIF(U14:U28106,AB13) -> 13 | AC19: =COUNTIF(U14:U28106,AC13) -> 4 | AD19: 36 | AE19: SM44 | AF19: 27.77777778 | AG19: 25 | AH19: 36.11111111 | AI19: 11.11111111 | AJ19: 100
M20: HEROES DE LA DEMOCRACIA | N20: 08DES0013M MATUTINO | O20: 080028984S19 | P20: 1 | Q20: 2 | R20: 1 | S20: 3 | T20: 1 | U20: 2 | V20: 2 | Y20: SM50 | Z20: =COUNTIF(V14:V28107,Z13) -> 7 | AA20: =COUNTIF(V14:V28107,AA13) -> 11 | AB20: =COUNTIF(V14:V28107,AB13) -> 12 | AC20: =COUNTIF(V14:V28107,AC13) -> 6 | AD20: 36 | AE20: SM50 | AF20: 19.44444444 | AG20: 30.55555556 | AH20: 33.33333333 | AI20: 16.66666667 | AJ20: 100
M21: HEROES DE LA DEMOCRACIA | N21: 08DES0013M MATUTINO | O21: 080028985S19 | P21: 3 | Q21: 2 | R21: 3 | S21: 2 | T21: 1 | U21: 1 | V21: 3
M22: HEROES DE LA DEMOCRACIA | N22: 08DES0013M MATUTINO | O22: 080028986S19 | P22: 2 | Q22: 4 | R22: 3 | S22: 3 | T22: 2 | U22: 2 | V22: 1
M23: HEROES DE LA DEMOCRACIA | N23: 08DES0013M MATUTINO | O23: 080028987S19 | P23: 8 | Q23: 8 | R23: 8 | S23: 8 | T23: 8 | U23: 8 | V23: 8
M24: HEROES DE LA DEMOCRACIA | N24: 08DES0013M MATUTINO | O24: 080028988S19 | P24: 1 | Q24: 4 | R24: 4 | S24: 4 | T24: 3 | U24: 4 | V24: 3
M25: HEROES DE LA DEMOCRACIA | N25: 08DES0013M MATUTINO | O25: 080028989S19 | P25: 3 | Q25: 4 | R25: 2 | S25: 1 | T25: 1 | U25: 2 | V25: 1
M26: HEROES DE LA DEMOCRACIA | N26: 08DES0013M MATUTINO | O26: 080028990S19 | P26: 1 | Q26: 3 | R26: 1 | S26: 1 | T26: 1 | U26: 1 | V26: 1
M27: HEROES DE LA DEMOCRACIA | N27: 08DES0013M MATUTINO | O27: 080028991S19 | P27: 3 | Q27: 3 | R27: 1 | S27: 3 | T27: 1 | U27: 3 | V27: 3
M28: HEROES DE LA DEMOCRACIA | N28: 08DES0013M MATUTINO | O28: 080028992S19 | P28: 3 | Q28: 3 | R28: 2 | S28: 3 | T28: 3 | U28: 2 | V28: 4
M29: HEROES DE LA DEMOCRACIA | N29: 08DES0013M MATUTINO | O29: 080028993S19 | P29: 4 | Q29: 2 | R29: 4 | S29: 3 | T29: 3 | U29: 3 | V29: 4
M30: HEROES DE LA DEMOCRACIA | N30: 08DES0013M MATUTINO | O30: 080028995S19 | P30: 3 | Q30: 3 | R30: 4 | S30: 3 | T30: 3 | U30: 1 | V30: 1
M31: HEROES DE LA DEMOCRACIA | N31: 08DES0013M MATUTINO | O31: 080028996S19 | P31: 1 | Q31: 4 | R31: 4 | S31: 3 | T31: 2 | U31: 1 | V31: 3
M32: HEROES DE LA DEMOCRACIA | N32: 08DES0013M MATUTINO | O32: 080028997S19 | P32: 1 | Q32: 3 | R32: 4 | S32: 2 | T32: 4 | U32: 3 | V32: 1
M33: HEROES DE LA DEMOCRACIA | N33: 08DES0013M MATUTINO | O33: 080028998S19 | P33: 4 | Q33: 1 | R33: 2 | S33: 3 | T33: 4 | U33: 1 | V33: 2
M34: HEROES DE LA DEMOCRACIA | N34: 08DES0013M MATUTINO | O34: 080028999S19 | P34: 3 | Q34: 3 | R34: 1 | S34: 2 | T34: 2 | U34: 1 | V34: 2
M35: HEROES DE LA DEMOCRACIA | N35: 08DES0013M MATUTINO | O35: 080029000S19 | P35: 1 | Q35: 3 | R35: 1 | S35: 3 | T35: 2 | U35: 3 | V35: 4
M36: HEROES DE LA DEMOCRACIA | N36: 08DES0013M MATUTINO | O36: 080029001S19 | P36: 4 | Q36: 3 | R36: 1 | S36: 2 | T36: 3 | U36: 1 | V36: 3
M37: HEROES DE LA DEMOCRACIA | N37: 08DES0013M MATUTINO | O37: 080029002S19 | P37: 1 | Q37: 3 | R37: 2 | S37: 1 | T37: 4 | U37: 3 | V37: 3
M38: HEROES DE LA DEMOCRACIA | N38: 08DES0013M MATUTINO | O38: 080029003S19 | P38: 4 | Q38: 2 | R38: 2 | S38: 1 | T38: 2 | U38: 3 | V38: 2
M39: HEROES DE LA DEMOCRACIA | N39: 08DES0013M MATUTINO | O39: 080029004S19 | P39: 3 | Q39: 3 | R39: 1 | S39: 2 | T39: 1 | U39: 2 | V39: 2
M40: HEROES DE LA DEMOCRACIA | N40: 08DES0013M MATUTINO | O40: 080029005S19 | P40: 1 | Q40: 1 | R40: 2 | S40: 2 | T40: 3 | U40: 2 | V40: 1
M41: HEROES DE LA DEMOCRACIA | N41: 08DES0013M MATUTINO | O41: 080029006S19 | P41: 1 | Q41: 4 | R41: 1 | S41: 2 | T41: 2 | U41: 3 | V41: 1
M42: HEROES DE LA DEMOCRACIA | N42: 08DES0013M MATUTINO | O42: 080029007S19 | P42: 3 | Q42: 3 | R42: 3 | S42: 4 | T42: 2 | U42: 3 | V42: 2
M43: HEROES DE LA DEMOCRACIA | N43: 08DES0013M MATUTINO | O43: 080029008S19 | P43: 4 | Q43: 3 | R43: 1 | S43: 2 | T43: 2 | U43: 4 | V43: 2
M44: HEROES DE LA DEMOCRACIA | N44: 08DES0013M MATUTINO | O44: 080029009S19 | P44: 4 | Q44: 2 | R44: 1 | S44: 2 | T44: 4 | U44: 2 | V44: 3
M45: HEROES DE LA DEMOCRACIA | N45: 08DES0013M MATUTINO | O45: 080029010S19 | P45: 8 | Q45: 8 | R45: 8 | S45: 8 | T45: 8 | U45: 8 | V45: 8
M46: HEROES DE LA DEMOCRACIA | N46: 08DES0013M MATUTINO | O46: 080029011S19 | P46: 4 | Q46: 1 | R46: 1 | S46: 3 | T46: 1 | U46: 3 | V46: 4
M47: HEROES DE LA DEMOCRACIA | N47: 08DES0013M MATUTINO | O47: 080029012S19 | P47: 3 | Q47: 3 | R47: 3 | S47: 1 | T47: 3 | U47: 3 | V47: 2
M48: HEROES DE LA DEMOCRACIA | N48: 08DES0013M MATUTINO | O48: 080029013S19 | P48: 8 | Q48: 8 | R48: 8 | S48: 8 | T48: 8 | U48: 8 | V48: 8
M49: HEROES DE LA DEMOCRACIA | N49: 08DES0013M MATUTINO | O49: 080029014S19 | P49: 3 | Q49: 3 | R49: 3 | S49: 2 | T49: 3 | U49: 4 | V49: 2
M50: HEROES DE LA DEMOCRACIA | N50: 08DES0013M MATUTINO | O50: 080029015S19 | P50: 3 | Q50: 1 | R50: 2 | S50: 1 | T50: 1 | U50: 1 | V50: 2
M51: HEROES DE LA DEMOCRACIA | N51: 08DES0013M MATUTINO | O51: 080029016S19 | P51: 3 | Q51: 4 | R51: 2 | S51: 3 | T51: 1 | U51: 1 | V51: 3
M52: HEROES DE LA DEMOCRACIA | N52: 08DES0013M MATUTINO | O52: 080029017S19 | P52: 4 | Q52: 3 | R52: 1 | S52: 2 | T52: 3 | U52: 3 | V52: 3

Sheet UD_PROBLEMAS MULTIPLICATIVOS
B2: Problemas multiplicativos
F3: MATEMÁTICAS | G3: 15 | H3: D | I3: 4 | J3: SECUNDARIA | K3: MATEMÁTICAS | L3: SM15 | M3: SM15 | O3: 15 | P3: Problemas multiplicativos | Q3: Resolver problemas que impliquen divisiones de números fraccionarios.
F4: MATEMÁTICAS | G4: 16 | H4: A | I4: 1 | J4: SECUNDARIA | K4: MATEMÁTICAS | L4: SM16 | M4: SM16 | O4: 16 | P4: Problemas multiplicativos | Q4: Resolver problemas que impliquen multiplicaciones de números fraccionarios
F5: MATEMÁTICAS | G5: 19 | H5: C | I5: 3 | J5: SECUNDARIA | K5: MATEMÁTICAS | L5: SM19 | M5: SM19 | O5: 19 | P5: Problemas multiplicativos | Q5: Resolver problemas que impliquen divisiones de números fraccionarios.
F6: MATEMÁTICAS | G6: 21 | H6: B | I6: 2 | J6: SECUNDARIA | K6: MATEMÁTICAS | L6: SM21 | M6: SM21 | O6: 21 | P6: Problemas multiplicativos | Q6: Resolver problemas que impliquen multiplicación de números decimales.
F7: MATEMÁTICAS | G7: 45 | H7: A | I7: 1 | J7: SECUNDARIA | K7: MATEMÁTICAS | L7: SM45 | M7: SM45 | O7: 45 | P7: Problemas multiplicativos | Q7: Resolver problemas que impliquen multiplicaciones de números fraccionarios
F8: MATEMÁTICAS | G8: 48 | H8: A | I8: 1 | J8: SECUNDARIA | K8: MATEMÁTICAS | L8: SM48 | M8: SM48 | O8: 48 | P8: Problemas multiplicativos | Q8: Resolver problemas que impliquen el cálculo de la raíz cuadrada
F9: MATEMÁTICAS | G9: 49 | H9: D | I9: 4 | J9: SECUNDARIA | K9: MATEMÁTICAS | L9: SM49 | M9: SM49 | O9: 49 | P9: Problemas multiplicativos | Q9: Resolver problemas multiplicativos con números enteros.
B13: nombre_ct | C13: CCT_TURNO | D13: Promedio de MAT_SEC_1_15 | E13: Promedio de MAT_SEC_1_16 | F13: Promedio de MAT_SEC_1_19 | G13: Promedio de MAT_SEC_1_211 | H13: Promedio de MAT_SEC_1_45 | I13: Promedio de MAT_SEC_1_48 | J13: Promedio de MAT_SEC_1_49 | M13: nombre_ct | N13: CCT_TURNO | O13: nofolio | P13: MAT_SEC_19_RESP_15 | Q13: MAT_SEC_19_RESP_16 | R13: MAT_SEC_19_RESP_19 | S13: MAT_SEC_19_RESP_21 | T13: MAT_SEC_19_RESP_45 | U13: MAT_SEC_19_RESP_48 | V13: MAT_SEC_19_RESP_49 | Y13: REACTIVOS | Z13: 1 | AA13: 2 | AB13: 3 | AC13: 4 | AD13: TOTAL | AE13: REACTIVOS | AF13: R1 | AG13: R2 | AH13: R3 | AI13: R4 | AJ13: TOTAL
B14: HEROES DE LA DEMOCRACIA | C14: 08DES0013M MATUTINO | D14: 0.1944444444 | E14: 0.1944444444 | F14: 0.2777777778 | G14: 0.6111111111 | H14: 0.3888888889 | I14: 0.3888888889 | J14: 0.3888888889 | M14: HEROES DE LA DEMOCRACIA | N14: 08DES0013M MATUTINO | O14: 080028978S19 | P14: 4 | Q14: 4 | R14: 2 | S14: 2 | T14: 1 | U14: 4 | V14: 3 | Y14: SM15 | Z14: =COUNTIF(P14:P28101,Z13) -> 8 | AA14: =COUNTIF(P14:P28101,AA13) -> 12 | AB14: =COUNTIF(P14:P28101,AB13) -> 9 | AC14: =COUNTIF(P14:P28101,AC13) -> 7 | AD14: =SUM(Z14:AC14) -> 36 | AE14: SM15 | AF14: =(Z14*100)/AD14 -> 22.22222222 | AG14: =(AA14*100)/AD14 -> 33.33333333 | AH14: =(AB14*100)/AD14 -> 25 | AI14: =(AC14*100)/AD14 -> 19.44444444 | AJ14: =SUM(AF14:AI14) -> 100
M15: HEROES DE LA DEMOCRACIA | N15: 08DES0013M MATUTINO | O15: 080028979S19 | P15: 4 | Q15: 4 | R15: 3 | S15: 1 | T15: 2 | U15: 2 | V15: 1 | Y15: SM16 | Z15: =COUNTIF(Q14:Q28102,Z13) -> 7 | AA15: =COUNTIF(Q14:Q28102,AA13) -> 9 | AB15: =COUNTIF(Q14:Q28102,AB13) -> 8 | AC15: =COUNTIF(Q14:Q28102,AC13) -> 12 | AD15: =SUM(Z15:AC15) -> 36 | AE15: SM16 | AF15: =(Z15*100)/AD15 -> 19.44444444 | AG15: =(AA15*100)/AD15 -> 25 | AH15: =(AB15*100)/AD15 -> 22.22222222 | AI15: =(AC15*100)/AD15 -> 33.33333333 | AJ15: =SUM(AF15:AI15) -> 100
M16: HEROES DE LA DEMOCRACIA | N16: 08DES0013M MATUTINO | O16: 080028980S19 | P16: 2 | Q16: 4 | R16: 3 | S16: 3 | T16: 2 | U16: 1 | V16: 3 | Y16: SM19 | Z16: =COUNTIF(R14:R28103,Z13) -> 5 | AA16: =COUNTIF(R14:R28103,AA13) -> 12 | AB16: =COUNTIF(R14:R28103,AB13) -> 10 | AC16: =COUNTIF(R14:R28103,AC13) -> 9 | AD16: 36 | AE16: SM19 | AF16: 13.88888889 | AG16: 33.33333333 | AH16: 27.77777778 | AI16: 25 | AJ16: 100
M17: HEROES DE LA DEMOCRACIA | N17: 08DES0013M MATUTINO | O17: 080028981S19 | P17: 4 | Q17: 3 | R17: 3 | S17: 1 | T17: 1 | U17: 1 | V17: 4 | Y17: SM21 | Z17: =COUNTIF(S14:S28104,Z13) -> 5 | AA17: =COUNTIF(S14:S28104,AA13) -> 22 | AB17: =COUNTIF(S14:S28104,AB13) -> 6 | AC17: =COUNTIF(S14:S28104,AC13) -> 3 | AD17: 36 | AE17: SM21 | AF17: 13.88888889 | AG17: 61.11111111 | AH17: 16.66666667 | AI17: 8.333333333 | AJ17: 100
M18: HEROES DE LA DEMOCRACIA | N18: 08DES0013M MATUTINO | O18: 080028982S19 | P18: 4 | Q18: 3 | R18: 2 | S18: 4 | T18: 3 | U18: 4 | V18: 2 | Y18: SM45 | Z18: =COUNTIF(T14:T28105,Z13) -> 14 | AA18: =COUNTIF(T14:T28105,AA13) -> 10 | AB18: =COUNTIF(T14:T28105,AB13) -> 8 | AC18: =COUNTIF(T14:T28105,AC13) -> 4 | AD18: 36 | AE18: SM45 | AF18: 38.88888889 | AG18: 27.77777778 | AH18: 22.22222222 | AI18: 11.11111111 | AJ18: 100
M19: HEROES DE LA DEMOCRACIA | N19: 08DES0013M MATUTINO | O19: 080028983S19 | P19: 3 | Q19: 2 | R19: 1 | S19: 4 | T19: 4 | U19: 1 | V19: 3 | Y19: SM48 | Z19: =COUNTIF(U14:U28106,Z13) -> 14 | AA19: =COUNTIF(U14:U28106,AA13) -> 9 | AB19: =COUNTIF(U14:U28106,AB13) -> 7 | AC19: =COUNTIF(U14:U28106,AC13) -> 6 | AD19: 36 | AE19: SM48 | AF19: 38.88888889 | AG19: 25 | AH19: 19.44444444 | AI19: 16.66666667 | AJ19: 100
M20: HEROES DE LA DEMOCRACIA | N20: 08DES0013M MATUTINO | O20: 080028984S19 | P20: 2 | Q20: 4 | R20: 2 | S20: 2 | T20: 1 | U20: 2 | V20: 1 | Y20: SM49 | Z20: =COUNTIF(V14:V28107,Z13) -> 8 | AA20: =COUNTIF(V14:V28107,AA13) -> 8 | AB20: =COUNTIF(V14:V28107,AB13) -> 6 | AC20: =COUNTIF(V14:V28107,AC13) -> 14 | AD20: 36 | AE20: SM49 | AF20: 22.22222222 | AG20: 22.22222222 | AH20: 16.66666667 | AI20: 38.88888889 | AJ20: 100
M21: HEROES DE LA DEMOCRACIA | N21: 08DES0013M MATUTINO | O21: 080028985S19 | P21: 2 | Q21: 2 | R21: 2 | S21: 3 | T21: 1 | U21: 2 | V21: 4
M22: HEROES DE LA DEMOCRACIA | N22: 08DES0013M MATUTINO | O22: 080028986S19 | P22: 4 | Q22: 3 | R22: 2 | S22: 2 | T22: 1 | U22: 4 | V22: 3
M23: HEROES DE LA DEMOCRACIA | N23: 08DES0013M MATUTINO | O23: 080028987S19 | P23: 8 | Q23: 8 | R23: 8 | S23: 8 | T23: 8 | U23: 8 | V23: 8
M24: HEROES DE LA DEMOCRACIA | N24: 08DES0013M MATUTINO | O24: 080028988S19 | P24: 1 | Q24: 2 | R24: 4 | S24: 2 | T24: 3 | U24: 2 | V24: 4
M25: HEROES DE LA DEMOCRACIA | N25: 08DES0013M MATUTINO | O25: 080028989S19 | P25: 1 | Q25: 1 | R25: 2 | S25: 3 | T25: 3 | U25: 1 | V25: 2
M26: HEROES DE LA DEMOCRACIA | N26: 08DES0013M MATUTINO | O26: 080028990S19 | P26: 1 | Q26: 3 | R26: 4 | S26: 2 | T26: 2 | U26: 2 | V26: 4
M27: HEROES DE LA DEMOCRACIA | N27: 08DES0013M MATUTINO | O27: 080028991S19 | P27: 2 | Q27: 1 | R27: 4 | S27: 2 | T27: 1 | U27: 1 | V27: 4
M28: HEROES DE LA DEMOCRACIA | N28: 08DES0013M MATUTINO | O28: 080028992S19 | P28: 3 | Q28: 3 | R28: 4 | S28: 4 | T28: 3 | U28: 3 | V28: 2
M29: HEROES DE LA DEMOCRACIA | N29: 08DES0013M MATUTINO | O29: 080028993S19 | P29: 1 | Q29: 2 | R29: 4 | S29: 2 | T29: 2 | U29: 1 | V29: 1
M30: HEROES DE LA DEMOCRACIA | N30: 08DES0013M MATUTINO | O30: 080028995S19 | P30: 2 | Q30: 1 | R30: 2 | S30: 2 | T30: 1 | U30: 4 | V30: 3
M31: HEROES DE LA DEMOCRACIA | N31: 08DES0013M MATUTINO | O31: 080028996S19 | P31: 1 | Q31: 3 | R31: 3 | S31: 2 | T31: 3 | U31: 2 | V31: 1
M32: HEROES DE LA DEMOCRACIA | N32: 08DES0013M MATUTINO | O32: 080028997S19 | P32: 4 | Q32: 4 | R32: 2 | S32: 2 | T32: 2 | U32: 3 | V32: 4
M33: HEROES DE LA DEMOCRACIA | N33: 08DES0013M MATUTINO | O33: 080028998S19 | P33: 2 | Q33: 1 | R33: 1 | S33: 2 | T33: 2 | U33: 4 | V33: 1
M34: HEROES DE LA DEMOCRACIA | N34: 08DES0013M MATUTINO | O34: 080028999S19 | P34: 3 | Q34: 1 | R34: 2 | S34: 3 | T34: 4 | U34: 4 | V34: 1
M35: HEROES DE LA DEMOCRACIA | N35: 08DES0013M MATUTINO | O35: 080029000S19 | P35: 2 | Q35: 4 | R35: 4 | S35: 2 | T35: 2 | U35: 3 | V35: 2
M36: HEROES DE LA DEMOCRACIA | N36: 08DES0013M MATUTINO | O36: 080029001S19 | P36: 3 | Q36: 2 | R36: 4 | S36: 2 | T36: 2 | U36: 1 | V36: 4
M37: HEROES DE LA DEMOCRACIA | N37: 08DES0013M MATUTINO | O37: 080029002S19 | P37: 3 | Q37: 3 | R37: 3 | S37: 2 | T37: 1 | U37: 3 | V37: 4
M38: HEROES DE LA DEMOCRACIA | N38: 08DES0013M MATUTINO | O38: 080029003S19 | P38: 3 | Q38: 4 | R38: 2 | S38: 2 | T38: 3 | U38: 1 | V38: 2
M39: HEROES DE LA DEMOCRACIA | N39: 08DES0013M MATUTINO | O39: 080029004S19 | P39: 2 | Q39: 1 | R39: 2 | S39: 2 | T39: 2 | U39: 2 | V39: 4
M40: HEROES DE LA DEMOCRACIA | N40: 08DES0013M MATUTINO | O40: 080029005S19 | P40: 2 | Q40: 3 | R40: 3 | S40: 1 | T40: 3 | U40: 3 | V40: 1
M41: HEROES DE LA DEMOCRACIA | N41: 08DES0013M MATUTINO | O41: 080029006S19 | P41: 3 | Q41: 2 | R41: 2 | S41: 3 | T41: 4 | U41: 1 | V41: 4
M42: HEROES DE LA DEMOCRACIA | N42: 08DES0013M MATUTINO | O42: 080029007S19 | P42: 3 | Q42: 4 | R42: 1 | S42: 2 | T42: 2 | U42: 1 | V42: 4
M43: HEROES DE LA DEMOCRACIA | N43: 08DES0013M MATUTINO | O43: 080029008S19 | P43: 1 | Q43: 1 | R43: 4 | S43: 3 | T43: 4 | U43: 1 | V43: 3
M44: HEROES DE LA DEMOCRACIA | N44: 08DES0013M MATUTINO | O44: 080029009S19 | P44: 3 | Q44: 4 | R44: 1 | S44: 2 | T44: 1 | U44: 2 | V44: 1
M45: HEROES DE LA DEMOCRACIA | N45: 08DES0013M MATUTINO | O45: 080029010S19 | P45: 8 | Q45: 8 | R45: 8 | S45: 8 | T45: 8 | U45: 8 | V45: 8
M46: HEROES DE LA DEMOCRACIA | N46: 08DES0013M MATUTINO | O46: 080029011S19 | P46: 4 | Q46: 2 | R46: 4 | S46: 2 | T46: 1 | U46: 1 | V46: 2
M47: HEROES DE LA DEMOCRACIA | N47: 08DES0013M MATUTINO | O47: 080029012S19 | P47: 2 | Q47: 4 | R47: 3 | S47: 2 | T47: 3 | U47: 3 | V47: 2
M48: HEROES DE LA DEMOCRACIA | N48: 08DES0013M MATUTINO | O48: 080029013S19 | P48: 8 | Q48: 8 | R48: 8 | S48: 8 | T48: 8 | U48: 8 | V48: 8
M49: HEROES DE LA DEMOCRACIA | N49: 08DES0013M MATUTINO | O49: 080029014S19 | P49: 2 | Q49: 4 | R49: 1 | S49: 2 | T49: 1 | U49: 1 | V49: 4
M50: HEROES DE LA DEMOCRACIA | N50: 08DES0013M MATUTINO | O50: 080029015S19 | P50: 1 | Q50: 2 | R50: 3 | S50: 2 | T50: 1 | U50: 2 | V50: 4
M51: HEROES DE LA DEMOCRACIA | N51: 08DES0013M MATUTINO | O51: 080029016S19 | P51: 2 | Q51: 2 | R51: 3 | S51: 1 | T51: 1 | U51: 1 | V51: 4
M52: HEROES DE LA DEMOCRACIA | N52: 08DES0013M MATUTINO | O52: 080029017S19 | P52: 1 | Q52: 4 | R52: 3 | S52: 1 | T52: 1 | U52: 3 | V52: 2

Sheet UD_PROPORCIONALIDAD
B1: Proporcionalidad y funciones
G2: MATEMÁTICAS | H2: 10 | I2: B | J2: 2 | K2: SECUNDARIA | L2: MATEMÁTICAS | M2: SM10 | N2: SM10 | P2: 10 | Q2: Proporcionalidad y funciones | R2: Encontrar el factor inverso en una relación de proporcionalidad.
G3: MATEMÁTICAS | H3: 12 | I3: B | J3: 2 | K3: SECUNDARIA | L3: MATEMÁTICAS | M3: SM12 | N3: SM12 | P3: 12 | Q3: Proporcionalidad y funciones | R3: Identificar la relación entre la pendiente y la razón de cambio.
G4: MATEMÁTICAS | H4: 13 | I4: A | J4: 1 | K4: SECUNDARIA | L4: MATEMÁTICAS | M4: SM13 | N4: SM13 | P4: 13 | Q4: Proporcionalidad y funciones | R4: Identificar las representaciones (gráfica, tabla y expresión algebraica) que correspondan a una misma situación de proporcionalidad directa.
G5: MATEMÁTICAS | H5: 33 | I5: D | J5: 4 | K5: SECUNDARIA | L5: MATEMÁTICAS | M5: SM33 | N5: SM33 | P5: 33 | Q5: Proporcionalidad y funciones | R5: Resolver problemas de proporcionalidad directa en los que se apliquen sucesivamente dos factores constantes de proporcionalidad.
G6: MATEMÁTICAS | H6: 35 | I6: B | J6: 2 | K6: SECUNDARIA | L6: MATEMÁTICAS | M6: SM35 | N6: SM35 | P6: 35 | Q6: Proporcionalidad y funciones | R6: Identificar la relación de un fenómeno con su representación gráfica formada por segmentos de recta y curvas.
G7: MATEMÁTICAS | H7: 36 | I7: D | J7: 4 | K7: SECUNDARIA | L7: MATEMÁTICAS | M7: SM36 | N7: SM36 | P7: 36 | Q7: Proporcionalidad y funciones | R7: Resolver problemas que impliquen una relación inversamente proporcional entre dos conjuntos de cantidades.
G8: MATEMÁTICAS | H8: 38 | I8: B | J8: 2 | K8: SECUNDARIA | L8: MATEMÁTICAS | M8: SM38 | N8: SM38 | P8: 38 | Q8: Proporcionalidad y funciones | R8: Identificar la relación entre la pendiente y la razón de cambio.
B12: nombre_ct | C12: CCT_TURNO | D12: Promedio de MAT_SEC_1_10 | E12: Promedio de MAT_SEC_1_12 | F12: Promedio de MAT_SEC_1_13 | G12: Promedio de MAT_SEC_1_33 | H12: Promedio de MAT_SEC_1_35 | I12: Promedio de MAT_SEC_1_36 | J12: Promedio de MAT_SEC_1_38 | M12: nombre_ct | N12: CCT_TURNO | O12: nofolio | P12: MAT_SEC_19_RESP_10 | Q12: MAT_SEC_19_RESP_12 | R12: MAT_SEC_19_RESP_13 | S12: MAT_SEC_19_RESP_33 | T12: MAT_SEC_19_RESP_35 | U12: MAT_SEC_19_RESP_36 | V12: MAT_SEC_19_RESP_38 | Y12: REACTIVOS | Z12: 1 | AA12: 2 | AB12: 3 | AC12: 4 | AD12: TOTAL | AE12: REACTIVOS | AF12: R1 | AG12: R2 | AH12: R3 | AI12: R4 | AJ12: TOTAL
B13: HEROES DE LA DEMOCRACIA | C13: 08DES0013M MATUTINO | D13: 0.05555555556 | E13: 0.3611111111 | F13: 0.3888888889 | G13: 0.25 | H13: 0.2777777778 | I13: 0.3055555556 | J13: 0.3333333333 | M13: HEROES DE LA DEMOCRACIA | N13: 08DES0013M MATUTINO | O13: 080028978S19 | P13: 4 | Q13: 3 | R13: 2 | S13: 4 | T13: 1 | U13: 4 | V13: 1 | Y13: SM10 | Z13: =COUNTIF(P13:P28100,Z12) -> 14 | AA13: =COUNTIF(P13:P28100,AA12) -> 2 | AB13: =COUNTIF(P13:P28100,AB12) -> 14 | AC13: =COUNTIF(P13:P28100,AC12) -> 6 | AD13: =SUM(Z13:AC13) -> 36 | AE13: SM10 | AF13: =(Z13*100)/AD13 -> 38.88888889 | AG13: =(AA13*100)/AD13 -> 5.555555556 | AH13: =(AB13*100)/AD13 -> 38.88888889 | AI13: =(AC13*100)/AD13 -> 16.66666667 | AJ13: =SUM(AF13:AI13) -> 100
M14: HEROES DE LA DEMOCRACIA | N14: 08DES0013M MATUTINO | O14: 080028979S19 | P14: 3 | Q14: 2 | R14: 1 | S14: 3 | T14: 1 | U14: 1 | V14: 2 | Y14: SM12 | Z14: =COUNTIF(Q13:Q28101,Z12) -> 6 | AA14: =COUNTIF(Q13:Q28101,AA12) -> 13 | AB14: =COUNTIF(Q13:Q28101,AB12) -> 11 | AC14: =COUNTIF(Q13:Q28101,AC12) -> 6 | AD14: =SUM(Z14:AC14) -> 36 | AE14: SM12 | AF14: =(Z14*100)/AD14 -> 16.66666667 | AG14: =(AA14*100)/AD14 -> 36.11111111 | AH14: =(AB14*100)/AD14 -> 30.55555556 | AI14: =(AC14*100)/AD14 -> 16.66666667 | AJ14: =SUM(AF14:AI14) -> 100
M15: HEROES DE LA DEMOCRACIA | N15: 08DES0013M MATUTINO | O15: 080028980S19 | P15: 3 | Q15: 2 | R15: 2 | S15: 4 | T15: 1 | U15: 4 | V15: 2 | Y15: SM13 | Z15: =COUNTIF(R13:R28102,Z12) -> 14 | AA15: =COUNTIF(R13:R28102,AA12) -> 8 | AB15: =COUNTIF(R13:R28102,AB12) -> 3 | AC15: =COUNTIF(R13:R28102,AC12) -> 11 | AD15: 36 | AE15: SM13 | AF15: 38.88888889 | AG15: 22.22222222 | AH15: 8.333333333 | AI15: 30.55555556 | AJ15: 100
M16: HEROES DE LA DEMOCRACIA | N16: 08DES0013M MATUTINO | O16: 080028981S19 | P16: 4 | Q16: 4 | R16: 1 | S16: 1 | T16: 2 | U16: 2 | V16: 4 | Y16: SM33 | Z16: =COUNTIF(S13:S28103,Z12) -> 4 | AA16: =COUNTIF(S13:S28103,AA12) -> 18 | AB16: =COUNTIF(S13:S28103,AB12) -> 5 | AC16: =COUNTIF(S13:S28103,AC12) -> 9 | AD16: 36 | AE16: SM33 | AF16: 11.11111111 | AG16: 50 | AH16: 13.88888889 | AI16: 25 | AJ16: 100
M17: HEROES DE LA DEMOCRACIA | N17: 08DES0013M MATUTINO | O17: 080028982S19 | P17: 1 | Q17: 2 | R17: 4 | S17: 2 | T17: 2 | U17: 3 | V17: 3 | Y17: SM35 | Z17: =COUNTIF(T13:T28104,Z12) -> 19 | AA17: =COUNTIF(T13:T28104,AA12) -> 10 | AB17: =COUNTIF(T13:T28104,AB12) -> 6 | AC17: =COUNTIF(T13:T28104,AC12) -> 1 | AD17: 36 | AE17: SM35 | AF17: 52.77777778 | AG17: 27.77777778 | AH17: 16.66666667 | AI17: 2.777777778 | AJ17: 100
M18: HEROES DE LA DEMOCRACIA | N18: 08DES0013M MATUTINO | O18: 080028983S19 | P18: 1 | Q18: 2 | R18: 4 | S18: 1 | T18: 4 | U18: 1 | V18: 2 | Y18: SM36 | Z18: =COUNTIF(U13:U28105,Z12) -> 12 | AA18: =COUNTIF(U13:U28105,AA12) -> 9 | AB18: =COUNTIF(U13:U28105,AB12) -> 4 | AC18: =COUNTIF(U13:U28105,AC12) -> 11 | AD18: 36 | AE18: SM36 | AF18: 33.33333333 | AG18: 25 | AH18: 11.11111111 | AI18: 30.55555556 | AJ18: 100
M19: HEROES DE LA DEMOCRACIA | N19: 08DES0013M MATUTINO | O19: 080028984S19 | P19: 3 | Q19: 3 | R19: 2 | S19: 1 | T19: 1 | U19: 2 | V19: 1 | Y19: SM38 | Z19: =COUNTIF(V13:V28106,Z12) -> 15 | AA19: =COUNTIF(V13:V28106,AA12) -> 12 | AB19: =COUNTIF(V13:V28106,AB12) -> 5 | AC19: =COUNTIF(V13:V28106,AC12) -> 4 | AD19: 36 | AE19: SM38 | AF19: 41.66666667 | AG19: 33.33333333 | AH19: 13.88888889 | AI19: 11.11111111 | AJ19: 100
M20: HEROES DE LA DEMOCRACIA | N20: 08DES0013M MATUTINO | O20: 080028985S19 | P20: 3 | Q20: 4 | R20: 4 | S20: 4 | T20: 1 | U20: 2 | V20: 4
M21: HEROES DE LA DEMOCRACIA | N21: 08DES0013M MATUTINO | O21: 080028986S19 | P21: 3 | Q21: 2 | R21: 1 | S21: 2 | T21: 2 | U21: 1 | V21: 2
M22: HEROES DE LA DEMOCRACIA | N22: 08DES0013M MATUTINO | O22: 080028987S19 | P22: 8 | Q22: 8 | R22: 8 | S22: 8 | T22: 8 | U22: 8 | V22: 8
M23: HEROES DE LA DEMOCRACIA | N23: 08DES0013M MATUTINO | O23: 080028988S19 | P23: 4 | Q23: 1 | R23: 3 | S23: 4 | T23: 1 | U23: 2 | V23: 2
M24: HEROES DE LA DEMOCRACIA | N24: 08DES0013M MATUTINO | O24: 080028989S19 | P24: 3 | Q24: 3 | R24: 2 | S24: 1 | T24: 2 | U24: 4 | V24: 1
M25: HEROES DE LA DEMOCRACIA | N25: 08DES0013M MATUTINO | O25: 080028990S19 | P25: 1 | Q25: 4 | R25: 4 | S25: 2 | T25: 1 | U25: 4 | V25: 3
M26: HEROES DE LA DEMOCRACIA | N26: 08DES0013M MATUTINO | O26: 080028991S19 | P26: 1 | Q26: 2 | R26: 1 | S26: 2 | T26: 1 | U26: 4 | V26: 2
M27: HEROES DE LA DEMOCRACIA | N27: 08DES0013M MATUTINO | O27: 080028992S19 | P27: 3 | Q27: 1 | R27: 4 | S27: 2 | T27: 1 | U27: 2 | V27: 3
M28: HEROES DE LA DEMOCRACIA | N28: 08DES0013M MATUTINO | O28: 080028993S19 | P28: 1 | Q28: 3 | R28: 4 | S28: 4 | T28: 1 | U28: 2 | V28: 2
M29: HEROES DE LA DEMOCRACIA | N29: 08DES0013M MATUTINO | O29: 080028995S19 | P29: 1 | Q29: 4 | R29: 1 | S29: 2 | T29: 1 | U29: 4 | V29: 1
M30: HEROES DE LA DEMOCRACIA | N30: 08DES0013M MATUTINO | O30: 080028996S19 | P30: 3 | Q30: 3 | R30: 2 | S30: 3 | T30: 1 | U30: 1 | V30: 2
M31: HEROES DE LA DEMOCRACIA | N31: 08DES0013M MATUTINO | O31: 080028997S19 | P31: 3 | Q31: 2 | R31: 1 | S31: 4 | T31: 1 | U31: 4 | V31: 1
M32: HEROES DE LA DEMOCRACIA | N32: 08DES0013M MATUTINO | O32: 080028998S19 | P32: 3 | Q32: 3 | R32: 2 | S32: 2 | T32: 2 | U32: 3 | V32: 3
M33: HEROES DE LA DEMOCRACIA | N33: 08DES0013M MATUTINO | O33: 080028999S19 | P33: 3 | Q33: 2 | R33: 4 | S33: 2 | T33: 1 | U33: 3 | V33: 1
M34: HEROES DE LA DEMOCRACIA | N34: 08DES0013M MATUTINO | O34: 080029000S19 | P34: 4 | Q34: 2 | R34: 1 | S34: 2 | T34: 2 | U34: 1 | V34: 4
M35: HEROES DE LA DEMOCRACIA | N35: 08DES0013M MATUTINO | O35: 080029001S19 | P35: 1 | Q35: 3 | R35: 4 | S35: 2 | T35: 1 | U35: 1 | V35: 1
M36: HEROES DE LA DEMOCRACIA | N36: 08DES0013M MATUTINO | O36: 080029002S19 | P36: 4 | Q36: 1 | R36: 4 | S36: 4 | T36: 1 | U36: 4 | V36: 2
M37: HEROES DE LA DEMOCRACIA | N37: 08DES0013M MATUTINO | O37: 080029003S19 | P37: 2 | Q37: 2 | R37: 1 | S37: 2 | T37: 2 | U37: 1 | V37: 1
M38: HEROES DE LA DEMOCRACIA | N38: 08DES0013M MATUTINO | O38: 080029004S19 | P38: 3 | Q38: 3 | R38: 1 | S38: 3 | T38: 1 | U38: 2 | V38: 1
M39: HEROES DE LA DEMOCRACIA | N39: 08DES0013M MATUTINO | O39: 080029005S19 | P39: 1 | Q39: 3 | R39: 3 | S39: 4 | T39: 1 | U39: 3 | V39: 2
M40: HEROES DE LA DEMOCRACIA | N40: 08DES0013M MATUTINO | O40: 080029006S19 | P40: 4 | Q40: 1 | R40: 1 | S40: 2 | T40: 2 | U40: 4 | V40: 1
M41: HEROES DE LA DEMOCRACIA | N41: 08DES0013M MATUTINO | O41: 080029007S19 | P41: 1 | Q41: 1 | R41: 3 | S41: 2 | T41: 3 | U41: 1 | V41: 4
M42: HEROES DE LA DEMOCRACIA | N42: 08DES0013M MATUTINO | O42: 080029008S19 | P42: 1 | Q42: 1 | R42: 4 | S42: 3 | T42: 2 | U42: 4 | V42: 1
M43: HEROES DE LA DEMOCRACIA | N43: 08DES0013M MATUTINO | O43: 080029009S19 | P43: 1 | Q43: 2 | R43: 1 | S43: 2 | T43: 3 | U43: 4 | V43: 2
M44: HEROES DE LA DEMOCRACIA | N44: 08DES0013M MATUTINO | O44: 080029010S19 | P44: 8 | Q44: 8 | R44: 8 | S44: 8 | T44: 8 | U44: 8 | V44: 8
M45: HEROES DE LA DEMOCRACIA | N45: 08DES0013M MATUTINO | O45: 080029011S19 | P45: 1 | Q45: 3 | R45: 4 | S45: 2 | T45: 1 | U45: 1 | V45: 1
M46: HEROES DE LA DEMOCRACIA | N46: 08DES0013M MATUTINO | O46: 080029012S19 | P46: 2 | Q46: 2 | R46: 1 | S46: 4 | T46: 3 | U46: 2 | V46: 1
M47: HEROES DE LA DEMOCRACIA | N47: 08DES0013M MATUTINO | O47: 080029013S19 | P47: 8 | Q47: 8 | R47: 8 | S47: 8 | T47: 8 | U47: 8 | V47: 8
M48: HEROES DE LA DEMOCRACIA | N48: 08DES0013M MATUTINO | O48: 080029014S19 | P48: 3 | Q48: 2 | R48: 1 | S48: 3 | T48: 3 | U48: 2 | V48: 1
M49: HEROES DE LA DEMOCRACIA | N49: 08DES0013M MATUTINO | O49: 080029015S19 | P49: 1 | Q49: 4 | R49: 2 | S49: 2 | T49: 3 | U49: 1 | V49: 1
M50: HEROES DE LA DEMOCRACIA | N50: 08DES0013M MATUTINO | O50: 080029016S19 | P50: 1 | Q50: 3 | R50: 1 | S50: 2 | T50: 2 | U50: 1 | V50: 3
M51: HEROES DE LA DEMOCRACIA | N51: 08DES0013M MATUTINO | O51: 080029017S19 | P51: 3 | Q51: 4 | R51: 2 | S51: 2 | T51: 3 | U51: 1 | V51: 2
